{"text_format":"1","workbook":"xlsx","n_sheets":4,"sheets":["Wordle","Stats","Param","Home"],"not_rendered":{"charts":1,"images":13,"macros":1,"external_links":0,"defined_names":13,"comments":0,"pivot_tables":0},"unopened":[],"bounds":{"document_bytes":16777216,"sheet_cells":100000,"rows_first":2000,"rows_last":500,"rows_between":2000,"halvings":0,"cell_chars":16384,"cell_head_chars":4096},"cells_cut":0,"cells_raw":0,"read":"whole","date_system":"1900"}

{"sheet":"Wordle","index":0,"n_rows":14,"n_cols":20,"rows_kept":14,"cut":false,"hidden":true,"merged":[]}
[null,null,null,null,null,null,null,null,null,null,null,null,"Wordle"]
[]
[]
[null,null,null,null,null,null,null,null,null,null,null,null,null,null,null,null,null,null,{"$f":"I4&K4&M4&O4&Q4","v":""},{"$f":"_xlfn.IFNA(MATCH(S4,tbl_db[DB_word],0),\"0\")","v":"0"}]
[]
[null,null,null,null,null,null,null,null,null,null,null,null,null,null,null,null,null,null,{"$f":"I6&K6&M6&O6&Q6","v":""},{"$f":"_xlfn.IFNA(MATCH(S6,tbl_db[DB_word],0),\"0\")","v":"0"}]
[]
[null,null,null,null,null,null,null,null,null,null,null,null,null,null,null,null,null,null,{"$f":"I8&K8&M8&O8&Q8","v":""},{"$f":"_xlfn.IFNA(MATCH(S8,tbl_db[DB_word],0),\"0\")","v":"0"}]
[]
[null,null,null,null,null,null,null,null,null,null,null,null,null,null,null,null,null,null,{"$f":"I10&K10&M10&O10&Q10","v":""},{"$f":"_xlfn.IFNA(MATCH(S10,tbl_db[DB_word],0),\"0\")","v":"0"}]
[]
[null,null,null,null,null,null,null,null,null,null,null,null,null,null,null,null,null,null,{"$f":"I12&K12&M12&O12&Q12","v":""},{"$f":"_xlfn.IFNA(MATCH(S12,tbl_db[DB_word],0),\"0\")","v":"0"}]
[]
[null,null,null,null,null,null,null,null,null,null,null,null,null,null,null,null,null,null,{"$f":"I14&K14&M14&O14&Q14","v":""},{"$f":"_xlfn.IFNA(MATCH(S14,tbl_db[DB_word],0),\"0\")","v":"0"}]

{"sheet":"Stats","index":1,"n_rows":258,"n_cols":19,"rows_kept":258,"cut":false,"hidden":true,"merged":[]}
[]
[null,"Date","Beginning","Daily_word","Flag_Play","Flag_Success","Flag_Fail","Streak","Daily_Streak","Nb_attempts",null,"Played","Win %","Current Streak","Daily Streak",null,null,"Nb attempt","Nb"]
[null,"2023-07-14",null,null,null,null,null,{"$f":"IF(tbl_stats[[#This Row],[Beginning]]=\"\",0,IF(tbl_stats[[#This Row],[Flag_Play]]=1,IF(tbl_stats[[#This Row],[Flag_Success]]=1,H2+1,0),H2))","v":0},{"$f":"IF(tbl_stats[[#This Row],[Beginning]]=1,0,IF(tbl_stats[[#This Row],[Flag_Success]]=1,I2+1,0))","v":0},null,null,{"$f":"SUM(tbl_stats[Flag_Play])","v":8},{"$f":"IF(SUM(tbl_stats[Flag_Play])=0,0,SUM(tbl_stats[Flag_Success])/SUM(tbl_stats[Flag_Play]))","v":1},{"$f":"_xlfn.IFNA(INDEX(tbl_stats[Streak],MATCH(Param!$D$3,tbl_stats[Date],0)),0)","v":0},{"$f":"_xlfn.IFNA(INDEX(tbl_stats[Daily_Streak],MATCH(Param!$D$3,tbl_stats[Date],0)),0)","v":0},null,null,6,{"$f":"COUNTIF(tbl_stats[Nb_attempts],tbl_guess_distribution[[#This Row],[Nb attempt]])","v":2}]
[null,"2023-07-15",0,"rally",1,1,null,{"$f":"IF(tbl_stats[[#This Row],[Beginning]]=\"\",0,IF(tbl_stats[[#This Row],[Flag_Play]]=1,IF(tbl_stats[[#This Row],[Flag_Success]]=1,H3+1,0),H3))","v":1},{"$f":"IF(tbl_stats[[#This Row],[Beginning]]=1,0,IF(tbl_stats[[#This Row],[Flag_Success]]=1,I3+1,0))","v":1},5,null,null,null,null,null,null,null,5,{"$f":"COUNTIF(tbl_stats[Nb_attempts],tbl_guess_distribution[[#This Row],[Nb attempt]])","v":3}]
[null,"2023-07-16",0,"photo",1,1,0,{"$f":"IF(tbl_stats[[#This Row],[Beginning]]=\"\",0,IF(tbl_stats[[#This Row],[Flag_Play]]=1,IF(tbl_stats[[#This Row],[Flag_Success]]=1,H4+1,0),H4))","v":2},{"$f":"IF(tbl_stats[[#This Row],[Beginning]]=1,0,IF(tbl_stats[[#This Row],[Flag_Success]]=1,I4+1,0))","v":2},4,null,null,null,null,null,null,null,4,{"$f":"COUNTIF(tbl_stats[Nb_attempts],tbl_guess_distribution[[#This Row],[Nb attempt]])","v":3}]
[null,"2023-07-17",0,"suing",1,1,0,{"$f":"IF(tbl_stats[[#This Row],[Beginning]]=\"\",0,IF(tbl_stats[[#This Row],[Flag_Play]]=1,IF(tbl_stats[[#This Row],[Flag_Success]]=1,H5+1,0),H5))","v":3},{"$f":"IF(tbl_stats[[#This Row],[Beginning]]=1,0,IF(tbl_stats[[#This Row],[Flag_Success]]=1,I5+1,0))","v":3},4,null,null,null,null,null,null,null,3,{"$f":"COUNTIF(tbl_stats[Nb_attempts],tbl_guess_distribution[[#This Row],[Nb attempt]])","v":0}]
[null,"2023-07-18",0,"truss",1,1,0,{"$f":"IF(tbl_stats[[#This Row],[Beginning]]=\"\",0,IF(tbl_stats[[#This Row],[Flag_Play]]=1,IF(tbl_stats[[#This Row],[Flag_Success]]=1,H6+1,0),H6))","v":4},{"$f":"IF(tbl_stats[[#This Row],[Beginning]]=1,0,IF(tbl_stats[[#This Row],[Flag_Success]]=1,I6+1,0))","v":4},5,null,null,null,null,null,null,null,2,{"$f":"COUNTIF(tbl_stats[Nb_attempts],tbl_guess_distribution[[#This Row],[Nb attempt]])","v":0}]
[null,"2023-07-19",0,"those",1,1,0,{"$f":"IF(tbl_stats[[#This Row],[Beginning]]=\"\",0,IF(tbl_stats[[#This Row],[Flag_Play]]=1,IF(tbl_stats[[#This Row],[Flag_Success]]=1,H7+1,0),H7))","v":5},{"$f":"IF(tbl_stats[[#This Row],[Beginning]]=1,0,IF(tbl_stats[[#This Row],[Flag_Success]]=1,I7+1,0))","v":5},6,null,null,null,null,null,null,null,1,{"$f":"COUNTIF(tbl_stats[Nb_attempts],tbl_guess_distribution[[#This Row],[Nb attempt]])","v":0}]
[null,"2023-07-20",null,null,null,null,null,{"$f":"IF(tbl_stats[[#This Row],[Beginning]]=\"\",0,IF(tbl_stats[[#This Row],[Flag_Play]]=1,IF(tbl_stats[[#This Row],[Flag_Success]]=1,H8+1,0),H8))","v":0},{"$f":"IF(tbl_stats[[#This Row],[Beginning]]=1,0,IF(tbl_stats[[#This Row],[Flag_Success]]=1,I8+1,0))","v":0}]
[null,"2023-07-21",null,null,null,null,null,{"$f":"IF(tbl_stats[[#This Row],[Beginning]]=\"\",0,IF(tbl_stats[[#This Row],[Flag_Play]]=1,IF(tbl_stats[[#This Row],[Flag_Success]]=1,H9+1,0),H9))","v":0},{"$f":"IF(tbl_stats[[#This Row],[Beginning]]=1,0,IF(tbl_stats[[#This Row],[Flag_Success]]=1,I9+1,0))","v":0}]
[null,"2023-07-22",null,null,null,null,null,{"$f":"IF(tbl_stats[[#This Row],[Beginning]]=\"\",0,IF(tbl_stats[[#This Row],[Flag_Play]]=1,IF(tbl_stats[[#This Row],[Flag_Success]]=1,H10+1,0),H10))","v":0},{"$f":"IF(tbl_stats[[#This Row],[Beginning]]=1,0,IF(tbl_stats[[#This Row],[Flag_Success]]=1,I10+1,0))","v":0}]
[null,"2023-07-23",null,null,null,null,null,{"$f":"IF(tbl_stats[[#This Row],[Beginning]]=\"\",0,IF(tbl_stats[[#This Row],[Flag_Play]]=1,IF(tbl_stats[[#This Row],[Flag_Success]]=1,H11+1,0),H11))","v":0},{"$f":"IF(tbl_stats[[#This Row],[Beginning]]=1,0,IF(tbl_stats[[#This Row],[Flag_Success]]=1,I11+1,0))","v":0}]
[null,"2023-07-24",null,null,null,null,null,{"$f":"IF(tbl_stats[[#This Row],[Beginning]]=\"\",0,IF(tbl_stats[[#This Row],[Flag_Play]]=1,IF(tbl_stats[[#This Row],[Flag_Success]]=1,H12+1,0),H12))","v":0},{"$f":"IF(tbl_stats[[#This Row],[Beginning]]=1,0,IF(tbl_stats[[#This Row],[Flag_Success]]=1,I12+1,0))","v":0}]
[null,"2023-07-25",null,null,null,null,null,{"$f":"IF(tbl_stats[[#This Row],[Beginning]]=\"\",0,IF(tbl_stats[[#This Row],[Flag_Play]]=1,IF(tbl_stats[[#This Row],[Flag_Success]]=1,H13+1,0),H13))","v":0},{"$f":"IF(tbl_stats[[#This Row],[Beginning]]=1,0,IF(tbl_stats[[#This Row],[Flag_Success]]=1,I13+1,0))","v":0}]
[null,"2023-07-26",null,null,null,null,null,{"$f":"IF(tbl_stats[[#This Row],[Beginning]]=\"\",0,IF(tbl_stats[[#This Row],[Flag_Play]]=1,IF(tbl_stats[[#This Row],[Flag_Success]]=1,H14+1,0),H14))","v":0},{"$f":"IF(tbl_stats[[#This Row],[Beginning]]=1,0,IF(tbl_stats[[#This Row],[Flag_Success]]=1,I14+1,0))","v":0}]
[null,"2023-07-27",null,null,null,null,null,{"$f":"IF(tbl_stats[[#This Row],[Beginning]]=\"\",0,IF(tbl_stats[[#This Row],[Flag_Play]]=1,IF(tbl_stats[[#This Row],[Flag_Success]]=1,H15+1,0),H15))","v":0},{"$f":"IF(tbl_stats[[#This Row],[Beginning]]=1,0,IF(tbl_stats[[#This Row],[Flag_Success]]=1,I15+1,0))","v":0}]
[null,"2023-07-28",null,null,null,null,null,{"$f":"IF(tbl_stats[[#This Row],[Beginning]]=\"\",0,IF(tbl_stats[[#This Row],[Flag_Play]]=1,IF(tbl_stats[[#This Row],[Flag_Success]]=1,H16+1,0),H16))","v":0},{"$f":"IF(tbl_stats[[#This Row],[Beginning]]=1,0,IF(tbl_stats[[#This Row],[Flag_Success]]=1,I16+1,0))","v":0}]
[null,"2023-07-29",null,null,null,null,null,{"$f":"IF(tbl_stats[[#This Row],[Beginning]]=\"\",0,IF(tbl_stats[[#This Row],[Flag_Play]]=1,IF(tbl_stats[[#This Row],[Flag_Success]]=1,H17+1,0),H17))","v":0},{"$f":"IF(tbl_stats[[#This Row],[Beginning]]=1,0,IF(tbl_stats[[#This Row],[Flag_Success]]=1,I17+1,0))","v":0}]
[null,"2023-07-30",null,null,null,null,null,{"$f":"IF(tbl_stats[[#This Row],[Beginning]]=\"\",0,IF(tbl_stats[[#This Row],[Flag_Play]]=1,IF(tbl_stats[[#This Row],[Flag_Success]]=1,H18+1,0),H18))","v":0},{"$f":"IF(tbl_stats[[#This Row],[Beginning]]=1,0,IF(tbl_stats[[#This Row],[Flag_Success]]=1,I18+1,0))","v":0}]
[null,"2023-07-31",null,null,null,null,null,{"$f":"IF(tbl_stats[[#This Row],[Beginning]]=\"\",0,IF(tbl_stats[[#This Row],[Flag_Play]]=1,IF(tbl_stats[[#This Row],[Flag_Success]]=1,H19+1,0),H19))","v":0},{"$f":"IF(tbl_stats[[#This Row],[Beginning]]=1,0,IF(tbl_stats[[#This Row],[Flag_Success]]=1,I19+1,0))","v":0}]
[null,"2023-08-01",null,null,null,null,null,{"$f":"IF(tbl_stats[[#This Row],[Beginning]]=\"\",0,IF(tbl_stats[[#This Row],[Flag_Play]]=1,IF(tbl_stats[[#This Row],[Flag_Success]]=1,H20+1,0),H20))","v":0},{"$f":"IF(tbl_stats[[#This Row],[Beginning]]=1,0,IF(tbl_stats[[#This Row],[Flag_Success]]=1,I20+1,0))","v":0}]
[null,"2023-08-02",null,null,null,null,null,{"$f":"IF(tbl_stats[[#This Row],[Beginning]]=\"\",0,IF(tbl_stats[[#This Row],[Flag_Play]]=1,IF(tbl_stats[[#This Row],[Flag_Success]]=1,H21+1,0),H21))","v":0},{"$f":"IF(tbl_stats[[#This Row],[Beginning]]=1,0,IF(tbl_stats[[#This Row],[Flag_Success]]=1,I21+1,0))","v":0}]
[null,"2023-08-03",null,null,null,null,null,{"$f":"IF(tbl_stats[[#This Row],[Beginning]]=\"\",0,IF(tbl_stats[[#This Row],[Flag_Play]]=1,IF(tbl_stats[[#This Row],[Flag_Success]]=1,H22+1,0),H22))","v":0},{"$f":"IF(tbl_stats[[#This Row],[Beginning]]=1,0,IF(tbl_stats[[#This Row],[Flag_Success]]=1,I22+1,0))","v":0}]
[null,"2023-08-04",null,null,null,null,null,{"$f":"IF(tbl_stats[[#This Row],[Beginning]]=\"\",0,IF(tbl_stats[[#This Row],[Flag_Play]]=1,IF(tbl_stats[[#This Row],[Flag_Success]]=1,H23+1,0),H23))","v":0},{"$f":"IF(tbl_stats[[#This Row],[Beginning]]=1,0,IF(tbl_stats[[#This Row],[Flag_Success]]=1,I23+1,0))","v":0}]
[null,"2023-08-05",null,null,null,null,null,{"$f":"IF(tbl_stats[[#This Row],[Beginning]]=\"\",0,IF(tbl_stats[[#This Row],[Flag_Play]]=1,IF(tbl_stats[[#This Row],[Flag_Success]]=1,H24+1,0),H24))","v":0},{"$f":"IF(tbl_stats[[#This Row],[Beginning]]=1,0,IF(tbl_stats[[#This Row],[Flag_Success]]=1,I24+1,0))","v":0}]
[null,"2023-08-06",null,null,null,null,null,{"$f":"IF(tbl_stats[[#This Row],[Beginning]]=\"\",0,IF(tbl_stats[[#This Row],[Flag_Play]]=1,IF(tbl_stats[[#This Row],[Flag_Success]]=1,H25+1,0),H25))","v":0},{"$f":"IF(tbl_stats[[#This Row],[Beginning]]=1,0,IF(tbl_stats[[#This Row],[Flag_Success]]=1,I25+1,0))","v":0}]
[null,"2023-08-07",null,null,null,null,null,{"$f":"IF(tbl_stats[[#This Row],[Beginning]]=\"\",0,IF(tbl_stats[[#This Row],[Flag_Play]]=1,IF(tbl_stats[[#This Row],[Flag_Success]]=1,H26+1,0),H26))","v":0},{"$f":"IF(tbl_stats[[#This Row],[Beginning]]=1,0,IF(tbl_stats[[#This Row],[Flag_Success]]=1,I26+1,0))","v":0}]
[null,"2023-08-08",null,null,null,null,null,{"$f":"IF(tbl_stats[[#This Row],[Beginning]]=\"\",0,IF(tbl_stats[[#This Row],[Flag_Play]]=1,IF(tbl_stats[[#This Row],[Flag_Success]]=1,H27+1,0),H27))","v":0},{"$f":"IF(tbl_stats[[#This Row],[Beginning]]=1,0,IF(tbl_stats[[#This Row],[Flag_Success]]=1,I27+1,0))","v":0}]
[null,"2023-08-09",null,null,null,null,null,{"$f":"IF(tbl_stats[[#This Row],[Beginning]]=\"\",0,IF(tbl_stats[[#This Row],[Flag_Play]]=1,IF(tbl_stats[[#This Row],[Flag_Success]]=1,H28+1,0),H28))","v":0},{"$f":"IF(tbl_stats[[#This Row],[Beginning]]=1,0,IF(tbl_stats[[#This Row],[Flag_Success]]=1,I28+1,0))","v":0}]
[null,"2023-08-10",null,null,null,null,null,{"$f":"IF(tbl_stats[[#This Row],[Beginning]]=\"\",0,IF(tbl_stats[[#This Row],[Flag_Play]]=1,IF(tbl_stats[[#This Row],[Flag_Success]]=1,H29+1,0),H29))","v":0},{"$f":"IF(tbl_stats[[#This Row],[Beginning]]=1,0,IF(tbl_stats[[#This Row],[Flag_Success]]=1,I29+1,0))","v":0}]
[null,"2023-08-11",null,null,null,null,null,{"$f":"IF(tbl_stats[[#This Row],[Beginning]]=\"\",0,IF(tbl_stats[[#This Row],[Flag_Play]]=1,IF(tbl_stats[[#This Row],[Flag_Success]]=1,H30+1,0),H30))","v":0},{"$f":"IF(tbl_stats[[#This Row],[Beginning]]=1,0,IF(tbl_stats[[#This Row],[Flag_Success]]=1,I30+1,0))","v":0}]
[null,"2023-08-12",null,null,null,null,null,{"$f":"IF(tbl_stats[[#This Row],[Beginning]]=\"\",0,IF(tbl_stats[[#This Row],[Flag_Play]]=1,IF(tbl_stats[[#This Row],[Flag_Success]]=1,H31+1,0),H31))","v":0},{"$f":"IF(tbl_stats[[#This Row],[Beginning]]=1,0,IF(tbl_stats[[#This Row],[Flag_Success]]=1,I31+1,0))","v":0}]
[null,"2023-08-13",null,null,null,null,null,{"$f":"IF(tbl_stats[[#This Row],[Beginning]]=\"\",0,IF(tbl_stats[[#This Row],[Flag_Play]]=1,IF(tbl_stats[[#This Row],[Flag_Success]]=1,H32+1,0),H32))","v":0},{"$f":"IF(tbl_stats[[#This Row],[Beginning]]=1,0,IF(tbl_stats[[#This Row],[Flag_Success]]=1,I32+1,0))","v":0}]
[null,"2023-08-14",null,null,null,null,null,{"$f":"IF(tbl_stats[[#This Row],[Beginning]]=\"\",0,IF(tbl_stats[[#This Row],[Flag_Play]]=1,IF(tbl_stats[[#This Row],[Flag_Success]]=1,H33+1,0),H33))","v":0},{"$f":"IF(tbl_stats[[#This Row],[Beginning]]=1,0,IF(tbl_stats[[#This Row],[Flag_Success]]=1,I33+1,0))","v":0}]
[null,"2023-08-15",null,null,null,null,null,{"$f":"IF(tbl_stats[[#This Row],[Beginning]]=\"\",0,IF(tbl_stats[[#This Row],[Flag_Play]]=1,IF(tbl_stats[[#This Row],[Flag_Success]]=1,H34+1,0),H34))","v":0},{"$f":"IF(tbl_stats[[#This Row],[Beginning]]=1,0,IF(tbl_stats[[#This Row],[Flag_Success]]=1,I34+1,0))","v":0}]
[null,"2023-08-16",null,null,null,null,null,{"$f":"IF(tbl_stats[[#This Row],[Beginning]]=\"\",0,IF(tbl_stats[[#This Row],[Flag_Play]]=1,IF(tbl_stats[[#This Row],[Flag_Success]]=1,H35+1,0),H35))","v":0},{"$f":"IF(tbl_stats[[#This Row],[Beginning]]=1,0,IF(tbl_stats[[#This Row],[Flag_Success]]=1,I35+1,0))","v":0}]
[null,"2023-08-17",null,null,null,null,null,{"$f":"IF(tbl_stats[[#This Row],[Beginning]]=\"\",0,IF(tbl_stats[[#This Row],[Flag_Play]]=1,IF(tbl_stats[[#This Row],[Flag_Success]]=1,H36+1,0),H36))","v":0},{"$f":"IF(tbl_stats[[#This Row],[Beginning]]=1,0,IF(tbl_stats[[#This Row],[Flag_Success]]=1,I36+1,0))","v":0}]
[null,"2023-08-18",null,null,null,null,null,{"$f":"IF(tbl_stats[[#This Row],[Beginning]]=\"\",0,IF(tbl_stats[[#This Row],[Flag_Play]]=1,IF(tbl_stats[[#This Row],[Flag_Success]]=1,H37+1,0),H37))","v":0},{"$f":"IF(tbl_stats[[#This Row],[Beginning]]=1,0,IF(tbl_stats[[#This Row],[Flag_Success]]=1,I37+1,0))","v":0}]
[null,"2023-08-19",null,null,null,null,null,{"$f":"IF(tbl_stats[[#This Row],[Beginning]]=\"\",0,IF(tbl_stats[[#This Row],[Flag_Play]]=1,IF(tbl_stats[[#This Row],[Flag_Success]]=1,H38+1,0),H38))","v":0},{"$f":"IF(tbl_stats[[#This Row],[Beginning]]=1,0,IF(tbl_stats[[#This Row],[Flag_Success]]=1,I38+1,0))","v":0}]
[null,"2023-08-20",null,null,null,null,null,{"$f":"IF(tbl_stats[[#This Row],[Beginning]]=\"\",0,IF(tbl_stats[[#This Row],[Flag_Play]]=1,IF(tbl_stats[[#This Row],[Flag_Success]]=1,H39+1,0),H39))","v":0},{"$f":"IF(tbl_stats[[#This Row],[Beginning]]=1,0,IF(tbl_stats[[#This Row],[Flag_Success]]=1,I39+1,0))","v":0}]
[null,"2023-08-21",null,null,null,null,null,{"$f":"IF(tbl_stats[[#This Row],[Beginning]]=\"\",0,IF(tbl_stats[[#This Row],[Flag_Play]]=1,IF(tbl_stats[[#This Row],[Flag_Success]]=1,H40+1,0),H40))","v":0},{"$f":"IF(tbl_stats[[#This Row],[Beginning]]=1,0,IF(tbl_stats[[#This Row],[Flag_Success]]=1,I40+1,0))","v":0}]
[null,"2023-08-22",null,null,null,null,null,{"$f":"IF(tbl_stats[[#This Row],[Beginning]]=\"\",0,IF(tbl_stats[[#This Row],[Flag_Play]]=1,IF(tbl_stats[[#This Row],[Flag_Success]]=1,H41+1,0),H41))","v":0},{"$f":"IF(tbl_stats[[#This Row],[Beginning]]=1,0,IF(tbl_stats[[#This Row],[Flag_Success]]=1,I41+1,0))","v":0}]
[null,"2023-08-23",null,null,null,null,null,{"$f":"IF(tbl_stats[[#This Row],[Beginning]]=\"\",0,IF(tbl_stats[[#This Row],[Flag_Play]]=1,IF(tbl_stats[[#This Row],[Flag_Success]]=1,H42+1,0),H42))","v":0},{"$f":"IF(tbl_stats[[#This Row],[Beginning]]=1,0,IF(tbl_stats[[#This Row],[Flag_Success]]=1,I42+1,0))","v":0}]
[null,"2023-08-24",null,null,null,null,null,{"$f":"IF(tbl_stats[[#This Row],[Beginning]]=\"\",0,IF(tbl_stats[[#This Row],[Flag_Play]]=1,IF(tbl_stats[[#This Row],[Flag_Success]]=1,H43+1,0),H43))","v":0},{"$f":"IF(tbl_stats[[#This Row],[Beginning]]=1,0,IF(tbl_stats[[#This Row],[Flag_Success]]=1,I43+1,0))","v":0}]
[null,"2023-08-25",null,null,null,null,null,{"$f":"IF(tbl_stats[[#This Row],[Beginning]]=\"\",0,IF(tbl_stats[[#This Row],[Flag_Play]]=1,IF(tbl_stats[[#This Row],[Flag_Success]]=1,H44+1,0),H44))","v":0},{"$f":"IF(tbl_stats[[#This Row],[Beginning]]=1,0,IF(tbl_stats[[#This Row],[Flag_Success]]=1,I44+1,0))","v":0}]
[null,"2023-08-26",null,null,null,null,null,{"$f":"IF(tbl_stats[[#This Row],[Beginning]]=\"\",0,IF(tbl_stats[[#This Row],[Flag_Play]]=1,IF(tbl_stats[[#This Row],[Flag_Success]]=1,H45+1,0),H45))","v":0},{"$f":"IF(tbl_stats[[#This Row],[Beginning]]=1,0,IF(tbl_stats[[#This Row],[Flag_Success]]=1,I45+1,0))","v":0}]
[null,"2023-08-27",null,null,null,null,null,{"$f":"IF(tbl_stats[[#This Row],[Beginning]]=\"\",0,IF(tbl_stats[[#This Row],[Flag_Play]]=1,IF(tbl_stats[[#This Row],[Flag_Success]]=1,H46+1,0),H46))","v":0},{"$f":"IF(tbl_stats[[#This Row],[Beginning]]=1,0,IF(tbl_stats[[#This Row],[Flag_Success]]=1,I46+1,0))","v":0}]
[null,"2023-08-28",null,null,null,null,null,{"$f":"IF(tbl_stats[[#This Row],[Beginning]]=\"\",0,IF(tbl_stats[[#This Row],[Flag_Play]]=1,IF(tbl_stats[[#This Row],[Flag_Success]]=1,H47+1,0),H47))","v":0},{"$f":"IF(tbl_stats[[#This Row],[Beginning]]=1,0,IF(tbl_stats[[#This Row],[Flag_Success]]=1,I47+1,0))","v":0}]
[null,"2023-08-29",null,null,null,null,null,{"$f":"IF(tbl_stats[[#This Row],[Beginning]]=\"\",0,IF(tbl_stats[[#This Row],[Flag_Play]]=1,IF(tbl_stats[[#This Row],[Flag_Success]]=1,H48+1,0),H48))","v":0},{"$f":"IF(tbl_stats[[#This Row],[Beginning]]=1,0,IF(tbl_stats[[#This Row],[Flag_Success]]=1,I48+1,0))","v":0}]
[null,"2023-08-30",null,null,null,null,null,{"$f":"IF(tbl_stats[[#This Row],[Beginning]]=\"\",0,IF(tbl_stats[[#This Row],[Flag_Play]]=1,IF(tbl_stats[[#This Row],[Flag_Success]]=1,H49+1,0),H49))","v":0},{"$f":"IF(tbl_stats[[#This Row],[Beginning]]=1,0,IF(tbl_stats[[#This Row],[Flag_Success]]=1,I49+1,0))","v":0}]
[null,"2023-08-31",null,null,null,null,null,{"$f":"IF(tbl_stats[[#This Row],[Beginning]]=\"\",0,IF(tbl_stats[[#This Row],[Flag_Play]]=1,IF(tbl_stats[[#This Row],[Flag_Success]]=1,H50+1,0),H50))","v":0},{"$f":"IF(tbl_stats[[#This Row],[Beginning]]=1,0,IF(tbl_stats[[#This Row],[Flag_Success]]=1,I50+1,0))","v":0}]
[null,"2023-09-01",null,null,null,null,null,{"$f":"IF(tbl_stats[[#This Row],[Beginning]]=\"\",0,IF(tbl_stats[[#This Row],[Flag_Play]]=1,IF(tbl_stats[[#This Row],[Flag_Success]]=1,H51+1,0),H51))","v":0},{"$f":"IF(tbl_stats[[#This Row],[Beginning]]=1,0,IF(tbl_stats[[#This Row],[Flag_Success]]=1,I51+1,0))","v":0}]
[null,"2023-09-02",null,null,null,null,null,{"$f":"IF(tbl_stats[[#This Row],[Beginning]]=\"\",0,IF(tbl_stats[[#This Row],[Flag_Play]]=1,IF(tbl_stats[[#This Row],[Flag_Success]]=1,H52+1,0),H52))","v":0},{"$f":"IF(tbl_stats[[#This Row],[Beginning]]=1,0,IF(tbl_stats[[#This Row],[Flag_Success]]=1,I52+1,0))","v":0}]
[null,"2023-09-03",null,null,null,null,null,{"$f":"IF(tbl_stats[[#This Row],[Beginning]]=\"\",0,IF(tbl_stats[[#This Row],[Flag_Play]]=1,IF(tbl_stats[[#This Row],[Flag_Success]]=1,H53+1,0),H53))","v":0},{"$f":"IF(tbl_stats[[#This Row],[Beginning]]=1,0,IF(tbl_stats[[#This Row],[Flag_Success]]=1,I53+1,0))","v":0}]
[null,"2023-09-04",null,null,null,null,null,{"$f":"IF(tbl_stats[[#This Row],[Beginning]]=\"\",0,IF(tbl_stats[[#This Row],[Flag_Play]]=1,IF(tbl_stats[[#This Row],[Flag_Success]]=1,H54+1,0),H54))","v":0},{"$f":"IF(tbl_stats[[#This Row],[Beginning]]=1,0,IF(tbl_stats[[#This Row],[Flag_Success]]=1,I54+1,0))","v":0}]
[null,"2023-09-05",null,null,null,null,null,{"$f":"IF(tbl_stats[[#This Row],[Beginning]]=\"\",0,IF(tbl_stats[[#This Row],[Flag_Play]]=1,IF(tbl_stats[[#This Row],[Flag_Success]]=1,H55+1,0),H55))","v":0},{"$f":"IF(tbl_stats[[#This Row],[Beginning]]=1,0,IF(tbl_stats[[#This Row],[Flag_Success]]=1,I55+1,0))","v":0}]
[null,"2023-09-06",null,null,null,null,null,{"$f":"IF(tbl_stats[[#This Row],[Beginning]]=\"\",0,IF(tbl_stats[[#This Row],[Flag_Play]]=1,IF(tbl_stats[[#This Row],[Flag_Success]]=1,H56+1,0),H56))","v":0},{"$f":"IF(tbl_stats[[#This Row],[Beginning]]=1,0,IF(tbl_stats[[#This Row],[Flag_Success]]=1,I56+1,0))","v":0}]
[null,"2023-09-07",null,null,null,null,null,{"$f":"IF(tbl_stats[[#This Row],[Beginning]]=\"\",0,IF(tbl_stats[[#This Row],[Flag_Play]]=1,IF(tbl_stats[[#This Row],[Flag_Success]]=1,H57+1,0),H57))","v":0},{"$f":"IF(tbl_stats[[#This Row],[Beginning]]=1,0,IF(tbl_stats[[#This Row],[Flag_Success]]=1,I57+1,0))","v":0}]
[null,"2023-09-08",null,null,null,null,null,{"$f":"IF(tbl_stats[[#This Row],[Beginning]]=\"\",0,IF(tbl_stats[[#This Row],[Flag_Play]]=1,IF(tbl_stats[[#This Row],[Flag_Success]]=1,H58+1,0),H58))","v":0},{"$f":"IF(tbl_stats[[#This Row],[Beginning]]=1,0,IF(tbl_stats[[#This Row],[Flag_Success]]=1,I58+1,0))","v":0}]
[null,"2023-09-09",null,null,null,null,null,{"$f":"IF(tbl_stats[[#This Row],[Beginning]]=\"\",0,IF(tbl_stats[[#This Row],[Flag_Play]]=1,IF(tbl_stats[[#This Row],[Flag_Success]]=1,H59+1,0),H59))","v":0},{"$f":"IF(tbl_stats[[#This Row],[Beginning]]=1,0,IF(tbl_stats[[#This Row],[Flag_Success]]=1,I59+1,0))","v":0}]
[null,"2023-09-10",null,null,null,null,null,{"$f":"IF(tbl_stats[[#This Row],[Beginning]]=\"\",0,IF(tbl_stats[[#This Row],[Flag_Play]]=1,IF(tbl_stats[[#This Row],[Flag_Success]]=1,H60+1,0),H60))","v":0},{"$f":"IF(tbl_stats[[#This Row],[Beginning]]=1,0,IF(tbl_stats[[#This Row],[Flag_Success]]=1,I60+1,0))","v":0}]
[null,"2023-09-11",null,null,null,null,null,{"$f":"IF(tbl_stats[[#This Row],[Beginning]]=\"\",0,IF(tbl_stats[[#This Row],[Flag_Play]]=1,IF(tbl_stats[[#This Row],[Flag_Success]]=1,H61+1,0),H61))","v":0},{"$f":"IF(tbl_stats[[#This Row],[Beginning]]=1,0,IF(tbl_stats[[#This Row],[Flag_Success]]=1,I61+1,0))","v":0}]
[null,"2023-09-12",null,null,null,null,null,{"$f":"IF(tbl_stats[[#This Row],[Beginning]]=\"\",0,IF(tbl_stats[[#This Row],[Flag_Play]]=1,IF(tbl_stats[[#This Row],[Flag_Success]]=1,H62+1,0),H62))","v":0},{"$f":"IF(tbl_stats[[#This Row],[Beginning]]=1,0,IF(tbl_stats[[#This Row],[Flag_Success]]=1,I62+1,0))","v":0}]
[null,"2023-09-13",null,null,null,null,null,{"$f":"IF(tbl_stats[[#This Row],[Beginning]]=\"\",0,IF(tbl_stats[[#This Row],[Flag_Play]]=1,IF(tbl_stats[[#This Row],[Flag_Success]]=1,H63+1,0),H63))","v":0},{"$f":"IF(tbl_stats[[#This Row],[Beginning]]=1,0,IF(tbl_stats[[#This Row],[Flag_Success]]=1,I63+1,0))","v":0}]
[null,"2023-09-14",null,null,null,null,null,{"$f":"IF(tbl_stats[[#This Row],[Beginning]]=\"\",0,IF(tbl_stats[[#This Row],[Flag_Play]]=1,IF(tbl_stats[[#This Row],[Flag_Success]]=1,H64+1,0),H64))","v":0},{"$f":"IF(tbl_stats[[#This Row],[Beginning]]=1,0,IF(tbl_stats[[#This Row],[Flag_Success]]=1,I64+1,0))","v":0}]
[null,"2023-09-15",null,null,null,null,null,{"$f":"IF(tbl_stats[[#This Row],[Beginning]]=\"\",0,IF(tbl_stats[[#This Row],[Flag_Play]]=1,IF(tbl_stats[[#This Row],[Flag_Success]]=1,H65+1,0),H65))","v":0},{"$f":"IF(tbl_stats[[#This Row],[Beginning]]=1,0,IF(tbl_stats[[#This Row],[Flag_Success]]=1,I65+1,0))","v":0}]
[null,"2023-09-16",null,null,null,null,null,{"$f":"IF(tbl_stats[[#This Row],[Beginning]]=\"\",0,IF(tbl_stats[[#This Row],[Flag_Play]]=1,IF(tbl_stats[[#This Row],[Flag_Success]]=1,H66+1,0),H66))","v":0},{"$f":"IF(tbl_stats[[#This Row],[Beginning]]=1,0,IF(tbl_stats[[#This Row],[Flag_Success]]=1,I66+1,0))","v":0}]
[null,"2023-09-17",null,null,null,null,null,{"$f":"IF(tbl_stats[[#This Row],[Beginning]]=\"\",0,IF(tbl_stats[[#This Row],[Flag_Play]]=1,IF(tbl_stats[[#This Row],[Flag_Success]]=1,H67+1,0),H67))","v":0},{"$f":"IF(tbl_stats[[#This Row],[Beginning]]=1,0,IF(tbl_stats[[#This Row],[Flag_Success]]=1,I67+1,0))","v":0}]
[null,"2023-09-18",null,null,null,null,null,{"$f":"IF(tbl_stats[[#This Row],[Beginning]]=\"\",0,IF(tbl_stats[[#This Row],[Flag_Play]]=1,IF(tbl_stats[[#This Row],[Flag_Success]]=1,H68+1,0),H68))","v":0},{"$f":"IF(tbl_stats[[#This Row],[Beginning]]=1,0,IF(tbl_stats[[#This Row],[Flag_Success]]=1,I68+1,0))","v":0}]
[null,"2023-09-19",null,null,null,null,null,{"$f":"IF(tbl_stats[[#This Row],[Beginning]]=\"\",0,IF(tbl_stats[[#This Row],[Flag_Play]]=1,IF(tbl_stats[[#This Row],[Flag_Success]]=1,H69+1,0),H69))","v":0},{"$f":"IF(tbl_stats[[#This Row],[Beginning]]=1,0,IF(tbl_stats[[#This Row],[Flag_Success]]=1,I69+1,0))","v":0}]
[null,"2023-09-20",null,null,null,null,null,{"$f":"IF(tbl_stats[[#This Row],[Beginning]]=\"\",0,IF(tbl_stats[[#This Row],[Flag_Play]]=1,IF(tbl_stats[[#This Row],[Flag_Success]]=1,H70+1,0),H70))","v":0},{"$f":"IF(tbl_stats[[#This Row],[Beginning]]=1,0,IF(tbl_stats[[#This Row],[Flag_Success]]=1,I70+1,0))","v":0}]
[null,"2023-09-21",null,null,null,null,null,{"$f":"IF(tbl_stats[[#This Row],[Beginning]]=\"\",0,IF(tbl_stats[[#This Row],[Flag_Play]]=1,IF(tbl_stats[[#This Row],[Flag_Success]]=1,H71+1,0),H71))","v":0},{"$f":"IF(tbl_stats[[#This Row],[Beginning]]=1,0,IF(tbl_stats[[#This Row],[Flag_Success]]=1,I71+1,0))","v":0}]
[null,"2023-09-22",null,null,null,null,null,{"$f":"IF(tbl_stats[[#This Row],[Beginning]]=\"\",0,IF(tbl_stats[[#This Row],[Flag_Play]]=1,IF(tbl_stats[[#This Row],[Flag_Success]]=1,H72+1,0),H72))","v":0},{"$f":"IF(tbl_stats[[#This Row],[Beginning]]=1,0,IF(tbl_stats[[#This Row],[Flag_Success]]=1,I72+1,0))","v":0}]
[null,"2023-09-23",null,null,null,null,null,{"$f":"IF(tbl_stats[[#This Row],[Beginning]]=\"\",0,IF(tbl_stats[[#This Row],[Flag_Play]]=1,IF(tbl_stats[[#This Row],[Flag_Success]]=1,H73+1,0),H73))","v":0},{"$f":"IF(tbl_stats[[#This Row],[Beginning]]=1,0,IF(tbl_stats[[#This Row],[Flag_Success]]=1,I73+1,0))","v":0}]
[null,"2023-09-24",null,null,null,null,null,{"$f":"IF(tbl_stats[[#This Row],[Beginning]]=\"\",0,IF(tbl_stats[[#This Row],[Flag_Play]]=1,IF(tbl_stats[[#This Row],[Flag_Success]]=1,H74+1,0),H74))","v":0},{"$f":"IF(tbl_stats[[#This Row],[Beginning]]=1,0,IF(tbl_stats[[#This Row],[Flag_Success]]=1,I74+1,0))","v":0}]
[null,"2023-09-25",null,null,null,null,null,{"$f":"IF(tbl_stats[[#This Row],[Beginning]]=\"\",0,IF(tbl_stats[[#This Row],[Flag_Play]]=1,IF(tbl_stats[[#This Row],[Flag_Success]]=1,H75+1,0),H75))","v":0},{"$f":"IF(tbl_stats[[#This Row],[Beginning]]=1,0,IF(tbl_stats[[#This Row],[Flag_Success]]=1,I75+1,0))","v":0}]
[null,"2023-09-26",null,null,null,null,null,{"$f":"IF(tbl_stats[[#This Row],[Beginning]]=\"\",0,IF(tbl_stats[[#This Row],[Flag_Play]]=1,IF(tbl_stats[[#This Row],[Flag_Success]]=1,H76+1,0),H76))","v":0},{"$f":"IF(tbl_stats[[#This Row],[Beginning]]=1,0,IF(tbl_stats[[#This Row],[Flag_Success]]=1,I76+1,0))","v":0}]
[null,"2023-09-27",null,null,null,null,null,{"$f":"IF(tbl_stats[[#This Row],[Beginning]]=\"\",0,IF(tbl_stats[[#This Row],[Flag_Play]]=1,IF(tbl_stats[[#This Row],[Flag_Success]]=1,H77+1,0),H77))","v":0},{"$f":"IF(tbl_stats[[#This Row],[Beginning]]=1,0,IF(tbl_stats[[#This Row],[Flag_Success]]=1,I77+1,0))","v":0}]
[null,"2023-09-28",null,null,null,null,null,{"$f":"IF(tbl_stats[[#This Row],[Beginning]]=\"\",0,IF(tbl_stats[[#This Row],[Flag_Play]]=1,IF(tbl_stats[[#This Row],[Flag_Success]]=1,H78+1,0),H78))","v":0},{"$f":"IF(tbl_stats[[#This Row],[Beginning]]=1,0,IF(tbl_stats[[#This Row],[Flag_Success]]=1,I78+1,0))","v":0}]
[null,"2023-09-29",null,null,null,null,null,{"$f":"IF(tbl_stats[[#This Row],[Beginning]]=\"\",0,IF(tbl_stats[[#This Row],[Flag_Play]]=1,IF(tbl_stats[[#This Row],[Flag_Success]]=1,H79+1,0),H79))","v":0},{"$f":"IF(tbl_stats[[#This Row],[Beginning]]=1,0,IF(tbl_stats[[#This Row],[Flag_Success]]=1,I79+1,0))","v":0}]
[null,"2023-09-30",null,null,null,null,null,{"$f":"IF(tbl_stats[[#This Row],[Beginning]]=\"\",0,IF(tbl_stats[[#This Row],[Flag_Play]]=1,IF(tbl_stats[[#This Row],[Flag_Success]]=1,H80+1,0),H80))","v":0},{"$f":"IF(tbl_stats[[#This Row],[Beginning]]=1,0,IF(tbl_stats[[#This Row],[Flag_Success]]=1,I80+1,0))","v":0}]
[null,"2023-10-01",null,null,null,null,null,{"$f":"IF(tbl_stats[[#This Row],[Beginning]]=\"\",0,IF(tbl_stats[[#This Row],[Flag_Play]]=1,IF(tbl_stats[[#This Row],[Flag_Success]]=1,H81+1,0),H81))","v":0},{"$f":"IF(tbl_stats[[#This Row],[Beginning]]=1,0,IF(tbl_stats[[#This Row],[Flag_Success]]=1,I81+1,0))","v":0}]
[null,"2023-10-02",null,null,null,null,null,{"$f":"IF(tbl_stats[[#This Row],[Beginning]]=\"\",0,IF(tbl_stats[[#This Row],[Flag_Play]]=1,IF(tbl_stats[[#This Row],[Flag_Success]]=1,H82+1,0),H82))","v":0},{"$f":"IF(tbl_stats[[#This Row],[Beginning]]=1,0,IF(tbl_stats[[#This Row],[Flag_Success]]=1,I82+1,0))","v":0}]
[null,"2023-10-03",null,null,null,null,null,{"$f":"IF(tbl_stats[[#This Row],[Beginning]]=\"\",0,IF(tbl_stats[[#This Row],[Flag_Play]]=1,IF(tbl_stats[[#This Row],[Flag_Success]]=1,H83+1,0),H83))","v":0},{"$f":"IF(tbl_stats[[#This Row],[Beginning]]=1,0,IF(tbl_stats[[#This Row],[Flag_Success]]=1,I83+1,0))","v":0}]
[null,"2023-10-04",null,null,null,null,null,{"$f":"IF(tbl_stats[[#This Row],[Beginning]]=\"\",0,IF(tbl_stats[[#This Row],[Flag_Play]]=1,IF(tbl_stats[[#This Row],[Flag_Success]]=1,H84+1,0),H84))","v":0},{"$f":"IF(tbl_stats[[#This Row],[Beginning]]=1,0,IF(tbl_stats[[#This Row],[Flag_Success]]=1,I84+1,0))","v":0}]
[null,"2023-10-05",null,null,null,null,null,{"$f":"IF(tbl_stats[[#This Row],[Beginning]]=\"\",0,IF(tbl_stats[[#This Row],[Flag_Play]]=1,IF(tbl_stats[[#This Row],[Flag_Success]]=1,H85+1,0),H85))","v":0},{"$f":"IF(tbl_stats[[#This Row],[Beginning]]=1,0,IF(tbl_stats[[#This Row],[Flag_Success]]=1,I85+1,0))","v":0}]
[null,"2023-10-06",null,null,null,null,null,{"$f":"IF(tbl_stats[[#This Row],[Beginning]]=\"\",0,IF(tbl_stats[[#This Row],[Flag_Play]]=1,IF(tbl_stats[[#This Row],[Flag_Success]]=1,H86+1,0),H86))","v":0},{"$f":"IF(tbl_stats[[#This Row],[Beginning]]=1,0,IF(tbl_stats[[#This Row],[Flag_Success]]=1,I86+1,0))","v":0}]
[null,"2023-10-07",null,null,null,null,null,{"$f":"IF(tbl_stats[[#This Row],[Beginning]]=\"\",0,IF(tbl_stats[[#This Row],[Flag_Play]]=1,IF(tbl_stats[[#This Row],[Flag_Success]]=1,H87+1,0),H87))","v":0},{"$f":"IF(tbl_stats[[#This Row],[Beginning]]=1,0,IF(tbl_stats[[#This Row],[Flag_Success]]=1,I87+1,0))","v":0}]
[null,"2023-10-08",null,null,null,null,null,{"$f":"IF(tbl_stats[[#This Row],[Beginning]]=\"\",0,IF(tbl_stats[[#This Row],[Flag_Play]]=1,IF(tbl_stats[[#This Row],[Flag_Success]]=1,H88+1,0),H88))","v":0},{"$f":"IF(tbl_stats[[#This Row],[Beginning]]=1,0,IF(tbl_stats[[#This Row],[Flag_Success]]=1,I88+1,0))","v":0}]
[null,"2023-10-09",null,null,null,null,null,{"$f":"IF(tbl_stats[[#This Row],[Beginning]]=\"\",0,IF(tbl_stats[[#This Row],[Flag_Play]]=1,IF(tbl_stats[[#This Row],[Flag_Success]]=1,H89+1,0),H89))","v":0},{"$f":"IF(tbl_stats[[#This Row],[Beginning]]=1,0,IF(tbl_stats[[#This Row],[Flag_Success]]=1,I89+1,0))","v":0}]
[null,"2023-10-10",null,null,null,null,null,{"$f":"IF(tbl_stats[[#This Row],[Beginning]]=\"\",0,IF(tbl_stats[[#This Row],[Flag_Play]]=1,IF(tbl_stats[[#This Row],[Flag_Success]]=1,H90+1,0),H90))","v":0},{"$f":"IF(tbl_stats[[#This Row],[Beginning]]=1,0,IF(tbl_stats[[#This Row],[Flag_Success]]=1,I90+1,0))","v":0}]
[null,"2023-10-11",null,null,null,null,null,{"$f":"IF(tbl_stats[[#This Row],[Beginning]]=\"\",0,IF(tbl_stats[[#This Row],[Flag_Play]]=1,IF(tbl_stats[[#This Row],[Flag_Success]]=1,H91+1,0),H91))","v":0},{"$f":"IF(tbl_stats[[#This Row],[Beginning]]=1,0,IF(tbl_stats[[#This Row],[Flag_Success]]=1,I91+1,0))","v":0}]
[null,"2023-10-12",null,null,null,null,null,{"$f":"IF(tbl_stats[[#This Row],[Beginning]]=\"\",0,IF(tbl_stats[[#This Row],[Flag_Play]]=1,IF(tbl_stats[[#This Row],[Flag_Success]]=1,H92+1,0),H92))","v":0},{"$f":"IF(tbl_stats[[#This Row],[Beginning]]=1,0,IF(tbl_stats[[#This Row],[Flag_Success]]=1,I92+1,0))","v":0}]
[null,"2023-10-13",null,null,null,null,null,{"$f":"IF(tbl_stats[[#This Row],[Beginning]]=\"\",0,IF(tbl_stats[[#This Row],[Flag_Play]]=1,IF(tbl_stats[[#This Row],[Flag_Success]]=1,H93+1,0),H93))","v":0},{"$f":"IF(tbl_stats[[#This Row],[Beginning]]=1,0,IF(tbl_stats[[#This Row],[Flag_Success]]=1,I93+1,0))","v":0}]
[null,"2023-10-14",null,null,null,null,null,{"$f":"IF(tbl_stats[[#This Row],[Beginning]]=\"\",0,IF(tbl_stats[[#This Row],[Flag_Play]]=1,IF(tbl_stats[[#This Row],[Flag_Success]]=1,H94+1,0),H94))","v":0},{"$f":"IF(tbl_stats[[#This Row],[Beginning]]=1,0,IF(tbl_stats[[#This Row],[Flag_Success]]=1,I94+1,0))","v":0}]
[null,"2023-10-15",null,null,null,null,null,{"$f":"IF(tbl_stats[[#This Row],[Beginning]]=\"\",0,IF(tbl_stats[[#This Row],[Flag_Play]]=1,IF(tbl_stats[[#This Row],[Flag_Success]]=1,H95+1,0),H95))","v":0},{"$f":"IF(tbl_stats[[#This Row],[Beginning]]=1,0,IF(tbl_stats[[#This Row],[Flag_Success]]=1,I95+1,0))","v":0}]
[null,"2023-10-16",null,null,null,null,null,{"$f":"IF(tbl_stats[[#This Row],[Beginning]]=\"\",0,IF(tbl_stats[[#This Row],[Flag_Play]]=1,IF(tbl_stats[[#This Row],[Flag_Success]]=1,H96+1,0),H96))","v":0},{"$f":"IF(tbl_stats[[#This Row],[Beginning]]=1,0,IF(tbl_stats[[#This Row],[Flag_Success]]=1,I96+1,0))","v":0}]
[null,"2023-10-17",null,null,null,null,null,{"$f":"IF(tbl_stats[[#This Row],[Beginning]]=\"\",0,IF(tbl_stats[[#This Row],[Flag_Play]]=1,IF(tbl_stats[[#This Row],[Flag_Success]]=1,H97+1,0),H97))","v":0},{"$f":"IF(tbl_stats[[#This Row],[Beginning]]=1,0,IF(tbl_stats[[#This Row],[Flag_Success]]=1,I97+1,0))","v":0}]
[null,"2023-10-18",null,null,null,null,null,{"$f":"IF(tbl_stats[[#This Row],[Beginning]]=\"\",0,IF(tbl_stats[[#This Row],[Flag_Play]]=1,IF(tbl_stats[[#This Row],[Flag_Success]]=1,H98+1,0),H98))","v":0},{"$f":"IF(tbl_stats[[#This Row],[Beginning]]=1,0,IF(tbl_stats[[#This Row],[Flag_Success]]=1,I98+1,0))","v":0}]
[null,"2023-10-19",null,null,null,null,null,{"$f":"IF(tbl_stats[[#This Row],[Beginning]]=\"\",0,IF(tbl_stats[[#This Row],[Flag_Play]]=1,IF(tbl_stats[[#This Row],[Flag_Success]]=1,H99+1,0),H99))","v":0},{"$f":"IF(tbl_stats[[#This Row],[Beginning]]=1,0,IF(tbl_stats[[#This Row],[Flag_Success]]=1,I99+1,0))","v":0}]
[null,"2023-10-20",null,null,null,null,null,{"$f":"IF(tbl_stats[[#This Row],[Beginning]]=\"\",0,IF(tbl_stats[[#This Row],[Flag_Play]]=1,IF(tbl_stats[[#This Row],[Flag_Success]]=1,H100+1,0),H100))","v":0},{"$f":"IF(tbl_stats[[#This Row],[Beginning]]=1,0,IF(tbl_stats[[#This Row],[Flag_Success]]=1,I100+1,0))","v":0}]
[null,"2023-10-21",null,null,null,null,null,{"$f":"IF(tbl_stats[[#This Row],[Beginning]]=\"\",0,IF(tbl_stats[[#This Row],[Flag_Play]]=1,IF(tbl_stats[[#This Row],[Flag_Success]]=1,H101+1,0),H101))","v":0},{"$f":"IF(tbl_stats[[#This Row],[Beginning]]=1,0,IF(tbl_stats[[#This Row],[Flag_Success]]=1,I101+1,0))","v":0}]
[null,"2023-10-22",null,null,null,null,null,{"$f":"IF(tbl_stats[[#This Row],[Beginning]]=\"\",0,IF(tbl_stats[[#This Row],[Flag_Play]]=1,IF(tbl_stats[[#This Row],[Flag_Success]]=1,H102+1,0),H102))","v":0},{"$f":"IF(tbl_stats[[#This Row],[Beginning]]=1,0,IF(tbl_stats[[#This Row],[Flag_Success]]=1,I102+1,0))","v":0}]
[null,"2023-10-23",null,null,null,null,null,{"$f":"IF(tbl_stats[[#This Row],[Beginning]]=\"\",0,IF(tbl_stats[[#This Row],[Flag_Play]]=1,IF(tbl_stats[[#This Row],[Flag_Success]]=1,H103+1,0),H103))","v":0},{"$f":"IF(tbl_stats[[#This Row],[Beginning]]=1,0,IF(tbl_stats[[#This Row],[Flag_Success]]=1,I103+1,0))","v":0}]
[null,"2023-10-24",null,null,null,null,null,{"$f":"IF(tbl_stats[[#This Row],[Beginning]]=\"\",0,IF(tbl_stats[[#This Row],[Flag_Play]]=1,IF(tbl_stats[[#This Row],[Flag_Success]]=1,H104+1,0),H104))","v":0},{"$f":"IF(tbl_stats[[#This Row],[Beginning]]=1,0,IF(tbl_stats[[#This Row],[Flag_Success]]=1,I104+1,0))","v":0}]
[null,"2023-10-25",null,null,null,null,null,{"$f":"IF(tbl_stats[[#This Row],[Beginning]]=\"\",0,IF(tbl_stats[[#This Row],[Flag_Play]]=1,IF(tbl_stats[[#This Row],[Flag_Success]]=1,H105+1,0),H105))","v":0},{"$f":"IF(tbl_stats[[#This Row],[Beginning]]=1,0,IF(tbl_stats[[#This Row],[Flag_Success]]=1,I105+1,0))","v":0}]
[null,"2023-10-26",null,null,null,null,null,{"$f":"IF(tbl_stats[[#This Row],[Beginning]]=\"\",0,IF(tbl_stats[[#This Row],[Flag_Play]]=1,IF(tbl_stats[[#This Row],[Flag_Success]]=1,H106+1,0),H106))","v":0},{"$f":"IF(tbl_stats[[#This Row],[Beginning]]=1,0,IF(tbl_stats[[#This Row],[Flag_Success]]=1,I106+1,0))","v":0}]
[null,"2023-10-27",null,null,null,null,null,{"$f":"IF(tbl_stats[[#This Row],[Beginning]]=\"\",0,IF(tbl_stats[[#This Row],[Flag_Play]]=1,IF(tbl_stats[[#This Row],[Flag_Success]]=1,H107+1,0),H107))","v":0},{"$f":"IF(tbl_stats[[#This Row],[Beginning]]=1,0,IF(tbl_stats[[#This Row],[Flag_Success]]=1,I107+1,0))","v":0}]
[null,"2023-10-28",null,null,null,null,null,{"$f":"IF(tbl_stats[[#This Row],[Beginning]]=\"\",0,IF(tbl_stats[[#This Row],[Flag_Play]]=1,IF(tbl_stats[[#This Row],[Flag_Success]]=1,H108+1,0),H108))","v":0},{"$f":"IF(tbl_stats[[#This Row],[Beginning]]=1,0,IF(tbl_stats[[#This Row],[Flag_Success]]=1,I108+1,0))","v":0}]
[null,"2023-10-29",null,null,null,null,null,{"$f":"IF(tbl_stats[[#This Row],[Beginning]]=\"\",0,IF(tbl_stats[[#This Row],[Flag_Play]]=1,IF(tbl_stats[[#This Row],[Flag_Success]]=1,H109+1,0),H109))","v":0},{"$f":"IF(tbl_stats[[#This Row],[Beginning]]=1,0,IF(tbl_stats[[#This Row],[Flag_Success]]=1,I109+1,0))","v":0}]
[null,"2023-10-30",null,null,null,null,null,{"$f":"IF(tbl_stats[[#This Row],[Beginning]]=\"\",0,IF(tbl_stats[[#This Row],[Flag_Play]]=1,IF(tbl_stats[[#This Row],[Flag_Success]]=1,H110+1,0),H110))","v":0},{"$f":"IF(tbl_stats[[#This Row],[Beginning]]=1,0,IF(tbl_stats[[#This Row],[Flag_Success]]=1,I110+1,0))","v":0}]
[null,"2023-10-31",null,null,null,null,null,{"$f":"IF(tbl_stats[[#This Row],[Beginning]]=\"\",0,IF(tbl_stats[[#This Row],[Flag_Play]]=1,IF(tbl_stats[[#This Row],[Flag_Success]]=1,H111+1,0),H111))","v":0},{"$f":"IF(tbl_stats[[#This Row],[Beginning]]=1,0,IF(tbl_stats[[#This Row],[Flag_Success]]=1,I111+1,0))","v":0}]
[null,"2023-11-01",null,null,null,null,null,{"$f":"IF(tbl_stats[[#This Row],[Beginning]]=\"\",0,IF(tbl_stats[[#This Row],[Flag_Play]]=1,IF(tbl_stats[[#This Row],[Flag_Success]]=1,H112+1,0),H112))","v":0},{"$f":"IF(tbl_stats[[#This Row],[Beginning]]=1,0,IF(tbl_stats[[#This Row],[Flag_Success]]=1,I112+1,0))","v":0}]
[null,"2023-11-02",null,null,null,null,null,{"$f":"IF(tbl_stats[[#This Row],[Beginning]]=\"\",0,IF(tbl_stats[[#This Row],[Flag_Play]]=1,IF(tbl_stats[[#This Row],[Flag_Success]]=1,H113+1,0),H113))","v":0},{"$f":"IF(tbl_stats[[#This Row],[Beginning]]=1,0,IF(tbl_stats[[#This Row],[Flag_Success]]=1,I113+1,0))","v":0}]
[null,"2023-11-03",null,null,null,null,null,{"$f":"IF(tbl_stats[[#This Row],[Beginning]]=\"\",0,IF(tbl_stats[[#This Row],[Flag_Play]]=1,IF(tbl_stats[[#This Row],[Flag_Success]]=1,H114+1,0),H114))","v":0},{"$f":"IF(tbl_stats[[#This Row],[Beginning]]=1,0,IF(tbl_stats[[#This Row],[Flag_Success]]=1,I114+1,0))","v":0}]
[null,"2023-11-04",null,null,null,null,null,{"$f":"IF(tbl_stats[[#This Row],[Beginning]]=\"\",0,IF(tbl_stats[[#This Row],[Flag_Play]]=1,IF(tbl_stats[[#This Row],[Flag_Success]]=1,H115+1,0),H115))","v":0},{"$f":"IF(tbl_stats[[#This Row],[Beginning]]=1,0,IF(tbl_stats[[#This Row],[Flag_Success]]=1,I115+1,0))","v":0}]
[null,"2023-11-05",null,null,null,null,null,{"$f":"IF(tbl_stats[[#This Row],[Beginning]]=\"\",0,IF(tbl_stats[[#This Row],[Flag_Play]]=1,IF(tbl_stats[[#This Row],[Flag_Success]]=1,H116+1,0),H116))","v":0},{"$f":"IF(tbl_stats[[#This Row],[Beginning]]=1,0,IF(tbl_stats[[#This Row],[Flag_Success]]=1,I116+1,0))","v":0}]
[null,"2023-11-06",null,null,null,null,null,{"$f":"IF(tbl_stats[[#This Row],[Beginning]]=\"\",0,IF(tbl_stats[[#This Row],[Flag_Play]]=1,IF(tbl_stats[[#This Row],[Flag_Success]]=1,H117+1,0),H117))","v":0},{"$f":"IF(tbl_stats[[#This Row],[Beginning]]=1,0,IF(tbl_stats[[#This Row],[Flag_Success]]=1,I117+1,0))","v":0}]
[null,"2023-11-07",null,null,null,null,null,{"$f":"IF(tbl_stats[[#This Row],[Beginning]]=\"\",0,IF(tbl_stats[[#This Row],[Flag_Play]]=1,IF(tbl_stats[[#This Row],[Flag_Success]]=1,H118+1,0),H118))","v":0},{"$f":"IF(tbl_stats[[#This Row],[Beginning]]=1,0,IF(tbl_stats[[#This Row],[Flag_Success]]=1,I118+1,0))","v":0}]
[null,"2023-11-08",null,null,null,null,null,{"$f":"IF(tbl_stats[[#This Row],[Beginning]]=\"\",0,IF(tbl_stats[[#This Row],[Flag_Play]]=1,IF(tbl_stats[[#This Row],[Flag_Success]]=1,H119+1,0),H119))","v":0},{"$f":"IF(tbl_stats[[#This Row],[Beginning]]=1,0,IF(tbl_stats[[#This Row],[Flag_Success]]=1,I119+1,0))","v":0}]
[null,"2023-11-09",null,null,null,null,null,{"$f":"IF(tbl_stats[[#This Row],[Beginning]]=\"\",0,IF(tbl_stats[[#This Row],[Flag_Play]]=1,IF(tbl_stats[[#This Row],[Flag_Success]]=1,H120+1,0),H120))","v":0},{"$f":"IF(tbl_stats[[#This Row],[Beginning]]=1,0,IF(tbl_stats[[#This Row],[Flag_Success]]=1,I120+1,0))","v":0}]
[null,"2023-11-10",null,null,null,null,null,{"$f":"IF(tbl_stats[[#This Row],[Beginning]]=\"\",0,IF(tbl_stats[[#This Row],[Flag_Play]]=1,IF(tbl_stats[[#This Row],[Flag_Success]]=1,H121+1,0),H121))","v":0},{"$f":"IF(tbl_stats[[#This Row],[Beginning]]=1,0,IF(tbl_stats[[#This Row],[Flag_Success]]=1,I121+1,0))","v":0}]
[null,"2023-11-11",null,null,null,null,null,{"$f":"IF(tbl_stats[[#This Row],[Beginning]]=\"\",0,IF(tbl_stats[[#This Row],[Flag_Play]]=1,IF(tbl_stats[[#This Row],[Flag_Success]]=1,H122+1,0),H122))","v":0},{"$f":"IF(tbl_stats[[#This Row],[Beginning]]=1,0,IF(tbl_stats[[#This Row],[Flag_Success]]=1,I122+1,0))","v":0}]
[null,"2023-11-12",null,null,null,null,null,{"$f":"IF(tbl_stats[[#This Row],[Beginning]]=\"\",0,IF(tbl_stats[[#This Row],[Flag_Play]]=1,IF(tbl_stats[[#This Row],[Flag_Success]]=1,H123+1,0),H123))","v":0},{"$f":"IF(tbl_stats[[#This Row],[Beginning]]=1,0,IF(tbl_stats[[#This Row],[Flag_Success]]=1,I123+1,0))","v":0}]
[null,"2023-11-13",null,null,null,null,null,{"$f":"IF(tbl_stats[[#This Row],[Beginning]]=\"\",0,IF(tbl_stats[[#This Row],[Flag_Play]]=1,IF(tbl_stats[[#This Row],[Flag_Success]]=1,H124+1,0),H124))","v":0},{"$f":"IF(tbl_stats[[#This Row],[Beginning]]=1,0,IF(tbl_stats[[#This Row],[Flag_Success]]=1,I124+1,0))","v":0}]
[null,"2023-11-14",null,null,null,null,null,{"$f":"IF(tbl_stats[[#This Row],[Beginning]]=\"\",0,IF(tbl_stats[[#This Row],[Flag_Play]]=1,IF(tbl_stats[[#This Row],[Flag_Success]]=1,H125+1,0),H125))","v":0},{"$f":"IF(tbl_stats[[#This Row],[Beginning]]=1,0,IF(tbl_stats[[#This Row],[Flag_Success]]=1,I125+1,0))","v":0}]
[null,"2023-11-15",null,null,null,null,null,{"$f":"IF(tbl_stats[[#This Row],[Beginning]]=\"\",0,IF(tbl_stats[[#This Row],[Flag_Play]]=1,IF(tbl_stats[[#This Row],[Flag_Success]]=1,H126+1,0),H126))","v":0},{"$f":"IF(tbl_stats[[#This Row],[Beginning]]=1,0,IF(tbl_stats[[#This Row],[Flag_Success]]=1,I126+1,0))","v":0}]
[null,"2023-11-16",null,null,null,null,null,{"$f":"IF(tbl_stats[[#This Row],[Beginning]]=\"\",0,IF(tbl_stats[[#This Row],[Flag_Play]]=1,IF(tbl_stats[[#This Row],[Flag_Success]]=1,H127+1,0),H127))","v":0},{"$f":"IF(tbl_stats[[#This Row],[Beginning]]=1,0,IF(tbl_stats[[#This Row],[Flag_Success]]=1,I127+1,0))","v":0}]
[null,"2023-11-17",null,null,null,null,null,{"$f":"IF(tbl_stats[[#This Row],[Beginning]]=\"\",0,IF(tbl_stats[[#This Row],[Flag_Play]]=1,IF(tbl_stats[[#This Row],[Flag_Success]]=1,H128+1,0),H128))","v":0},{"$f":"IF(tbl_stats[[#This Row],[Beginning]]=1,0,IF(tbl_stats[[#This Row],[Flag_Success]]=1,I128+1,0))","v":0}]
[null,"2023-11-18",null,null,null,null,null,{"$f":"IF(tbl_stats[[#This Row],[Beginning]]=\"\",0,IF(tbl_stats[[#This Row],[Flag_Play]]=1,IF(tbl_stats[[#This Row],[Flag_Success]]=1,H129+1,0),H129))","v":0},{"$f":"IF(tbl_stats[[#This Row],[Beginning]]=1,0,IF(tbl_stats[[#This Row],[Flag_Success]]=1,I129+1,0))","v":0}]
[null,"2023-11-19",null,null,null,null,null,{"$f":"IF(tbl_stats[[#This Row],[Beginning]]=\"\",0,IF(tbl_stats[[#This Row],[Flag_Play]]=1,IF(tbl_stats[[#This Row],[Flag_Success]]=1,H130+1,0),H130))","v":0},{"$f":"IF(tbl_stats[[#This Row],[Beginning]]=1,0,IF(tbl_stats[[#This Row],[Flag_Success]]=1,I130+1,0))","v":0}]
[null,"2023-11-20",null,null,null,null,null,{"$f":"IF(tbl_stats[[#This Row],[Beginning]]=\"\",0,IF(tbl_stats[[#This Row],[Flag_Play]]=1,IF(tbl_stats[[#This Row],[Flag_Success]]=1,H131+1,0),H131))","v":0},{"$f":"IF(tbl_stats[[#This Row],[Beginning]]=1,0,IF(tbl_stats[[#This Row],[Flag_Success]]=1,I131+1,0))","v":0}]
[null,"2023-11-21",null,null,null,null,null,{"$f":"IF(tbl_stats[[#This Row],[Beginning]]=\"\",0,IF(tbl_stats[[#This Row],[Flag_Play]]=1,IF(tbl_stats[[#This Row],[Flag_Success]]=1,H132+1,0),H132))","v":0},{"$f":"IF(tbl_stats[[#This Row],[Beginning]]=1,0,IF(tbl_stats[[#This Row],[Flag_Success]]=1,I132+1,0))","v":0}]
[null,"2023-11-22",null,null,null,null,null,{"$f":"IF(tbl_stats[[#This Row],[Beginning]]=\"\",0,IF(tbl_stats[[#This Row],[Flag_Play]]=1,IF(tbl_stats[[#This Row],[Flag_Success]]=1,H133+1,0),H133))","v":0},{"$f":"IF(tbl_stats[[#This Row],[Beginning]]=1,0,IF(tbl_stats[[#This Row],[Flag_Success]]=1,I133+1,0))","v":0}]
[null,"2023-11-23",null,null,null,null,null,{"$f":"IF(tbl_stats[[#This Row],[Beginning]]=\"\",0,IF(tbl_stats[[#This Row],[Flag_Play]]=1,IF(tbl_stats[[#This Row],[Flag_Success]]=1,H134+1,0),H134))","v":0},{"$f":"IF(tbl_stats[[#This Row],[Beginning]]=1,0,IF(tbl_stats[[#This Row],[Flag_Success]]=1,I134+1,0))","v":0}]
[null,"2023-11-24",null,null,null,null,null,{"$f":"IF(tbl_stats[[#This Row],[Beginning]]=\"\",0,IF(tbl_stats[[#This Row],[Flag_Play]]=1,IF(tbl_stats[[#This Row],[Flag_Success]]=1,H135+1,0),H135))","v":0},{"$f":"IF(tbl_stats[[#This Row],[Beginning]]=1,0,IF(tbl_stats[[#This Row],[Flag_Success]]=1,I135+1,0))","v":0}]
[null,"2023-11-25",null,null,null,null,null,{"$f":"IF(tbl_stats[[#This Row],[Beginning]]=\"\",0,IF(tbl_stats[[#This Row],[Flag_Play]]=1,IF(tbl_stats[[#This Row],[Flag_Success]]=1,H136+1,0),H136))","v":0},{"$f":"IF(tbl_stats[[#This Row],[Beginning]]=1,0,IF(tbl_stats[[#This Row],[Flag_Success]]=1,I136+1,0))","v":0}]
[null,"2023-11-26",null,null,null,null,null,{"$f":"IF(tbl_stats[[#This Row],[Beginning]]=\"\",0,IF(tbl_stats[[#This Row],[Flag_Play]]=1,IF(tbl_stats[[#This Row],[Flag_Success]]=1,H137+1,0),H137))","v":0},{"$f":"IF(tbl_stats[[#This Row],[Beginning]]=1,0,IF(tbl_stats[[#This Row],[Flag_Success]]=1,I137+1,0))","v":0}]
[null,"2023-11-27",null,null,null,null,null,{"$f":"IF(tbl_stats[[#This Row],[Beginning]]=\"\",0,IF(tbl_stats[[#This Row],[Flag_Play]]=1,IF(tbl_stats[[#This Row],[Flag_Success]]=1,H138+1,0),H138))","v":0},{"$f":"IF(tbl_stats[[#This Row],[Beginning]]=1,0,IF(tbl_stats[[#This Row],[Flag_Success]]=1,I138+1,0))","v":0}]
[null,"2023-11-28",null,null,null,null,null,{"$f":"IF(tbl_stats[[#This Row],[Beginning]]=\"\",0,IF(tbl_stats[[#This Row],[Flag_Play]]=1,IF(tbl_stats[[#This Row],[Flag_Success]]=1,H139+1,0),H139))","v":0},{"$f":"IF(tbl_stats[[#This Row],[Beginning]]=1,0,IF(tbl_stats[[#This Row],[Flag_Success]]=1,I139+1,0))","v":0}]
[null,"2023-11-29",null,null,null,null,null,{"$f":"IF(tbl_stats[[#This Row],[Beginning]]=\"\",0,IF(tbl_stats[[#This Row],[Flag_Play]]=1,IF(tbl_stats[[#This Row],[Flag_Success]]=1,H140+1,0),H140))","v":0},{"$f":"IF(tbl_stats[[#This Row],[Beginning]]=1,0,IF(tbl_stats[[#This Row],[Flag_Success]]=1,I140+1,0))","v":0}]
[null,"2023-11-30",null,null,null,null,null,{"$f":"IF(tbl_stats[[#This Row],[Beginning]]=\"\",0,IF(tbl_stats[[#This Row],[Flag_Play]]=1,IF(tbl_stats[[#This Row],[Flag_Success]]=1,H141+1,0),H141))","v":0},{"$f":"IF(tbl_stats[[#This Row],[Beginning]]=1,0,IF(tbl_stats[[#This Row],[Flag_Success]]=1,I141+1,0))","v":0}]
[null,"2023-12-01",null,null,null,null,null,{"$f":"IF(tbl_stats[[#This Row],[Beginning]]=\"\",0,IF(tbl_stats[[#This Row],[Flag_Play]]=1,IF(tbl_stats[[#This Row],[Flag_Success]]=1,H142+1,0),H142))","v":0},{"$f":"IF(tbl_stats[[#This Row],[Beginning]]=1,0,IF(tbl_stats[[#This Row],[Flag_Success]]=1,I142+1,0))","v":0}]
[null,"2023-12-02",null,null,null,null,null,{"$f":"IF(tbl_stats[[#This Row],[Beginning]]=\"\",0,IF(tbl_stats[[#This Row],[Flag_Play]]=1,IF(tbl_stats[[#This Row],[Flag_Success]]=1,H143+1,0),H143))","v":0},{"$f":"IF(tbl_stats[[#This Row],[Beginning]]=1,0,IF(tbl_stats[[#This Row],[Flag_Success]]=1,I143+1,0))","v":0}]
[null,"2023-12-03",null,null,null,null,null,{"$f":"IF(tbl_stats[[#This Row],[Beginning]]=\"\",0,IF(tbl_stats[[#This Row],[Flag_Play]]=1,IF(tbl_stats[[#This Row],[Flag_Success]]=1,H144+1,0),H144))","v":0},{"$f":"IF(tbl_stats[[#This Row],[Beginning]]=1,0,IF(tbl_stats[[#This Row],[Flag_Success]]=1,I144+1,0))","v":0}]
[null,"2023-12-04",null,null,null,null,null,{"$f":"IF(tbl_stats[[#This Row],[Beginning]]=\"\",0,IF(tbl_stats[[#This Row],[Flag_Play]]=1,IF(tbl_stats[[#This Row],[Flag_Success]]=1,H145+1,0),H145))","v":0},{"$f":"IF(tbl_stats[[#This Row],[Beginning]]=1,0,IF(tbl_stats[[#This Row],[Flag_Success]]=1,I145+1,0))","v":0}]
[null,"2023-12-05",null,null,null,null,null,{"$f":"IF(tbl_stats[[#This Row],[Beginning]]=\"\",0,IF(tbl_stats[[#This Row],[Flag_Play]]=1,IF(tbl_stats[[#This Row],[Flag_Success]]=1,H146+1,0),H146))","v":0},{"$f":"IF(tbl_stats[[#This Row],[Beginning]]=1,0,IF(tbl_stats[[#This Row],[Flag_Success]]=1,I146+1,0))","v":0}]
[null,"2023-12-06",null,null,null,null,null,{"$f":"IF(tbl_stats[[#This Row],[Beginning]]=\"\",0,IF(tbl_stats[[#This Row],[Flag_Play]]=1,IF(tbl_stats[[#This Row],[Flag_Success]]=1,H147+1,0),H147))","v":0},{"$f":"IF(tbl_stats[[#This Row],[Beginning]]=1,0,IF(tbl_stats[[#This Row],[Flag_Success]]=1,I147+1,0))","v":0}]
[null,"2023-12-07",null,null,null,null,null,{"$f":"IF(tbl_stats[[#This Row],[Beginning]]=\"\",0,IF(tbl_stats[[#This Row],[Flag_Play]]=1,IF(tbl_stats[[#This Row],[Flag_Success]]=1,H148+1,0),H148))","v":0},{"$f":"IF(tbl_stats[[#This Row],[Beginning]]=1,0,IF(tbl_stats[[#This Row],[Flag_Success]]=1,I148+1,0))","v":0}]
[null,"2023-12-08",null,null,null,null,null,{"$f":"IF(tbl_stats[[#This Row],[Beginning]]=\"\",0,IF(tbl_stats[[#This Row],[Flag_Play]]=1,IF(tbl_stats[[#This Row],[Flag_Success]]=1,H149+1,0),H149))","v":0},{"$f":"IF(tbl_stats[[#This Row],[Beginning]]=1,0,IF(tbl_stats[[#This Row],[Flag_Success]]=1,I149+1,0))","v":0}]
[null,"2023-12-09",null,null,null,null,null,{"$f":"IF(tbl_stats[[#This Row],[Beginning]]=\"\",0,IF(tbl_stats[[#This Row],[Flag_Play]]=1,IF(tbl_stats[[#This Row],[Flag_Success]]=1,H150+1,0),H150))","v":0},{"$f":"IF(tbl_stats[[#This Row],[Beginning]]=1,0,IF(tbl_stats[[#This Row],[Flag_Success]]=1,I150+1,0))","v":0}]
[null,"2023-12-10",null,null,null,null,null,{"$f":"IF(tbl_stats[[#This Row],[Beginning]]=\"\",0,IF(tbl_stats[[#This Row],[Flag_Play]]=1,IF(tbl_stats[[#This Row],[Flag_Success]]=1,H151+1,0),H151))","v":0},{"$f":"IF(tbl_stats[[#This Row],[Beginning]]=1,0,IF(tbl_stats[[#This Row],[Flag_Success]]=1,I151+1,0))","v":0}]
[null,"2023-12-11",null,null,null,null,null,{"$f":"IF(tbl_stats[[#This Row],[Beginning]]=\"\",0,IF(tbl_stats[[#This Row],[Flag_Play]]=1,IF(tbl_stats[[#This Row],[Flag_Success]]=1,H152+1,0),H152))","v":0},{"$f":"IF(tbl_stats[[#This Row],[Beginning]]=1,0,IF(tbl_stats[[#This Row],[Flag_Success]]=1,I152+1,0))","v":0}]
[null,"2023-12-12",null,null,null,null,null,{"$f":"IF(tbl_stats[[#This Row],[Beginning]]=\"\",0,IF(tbl_stats[[#This Row],[Flag_Play]]=1,IF(tbl_stats[[#This Row],[Flag_Success]]=1,H153+1,0),H153))","v":0},{"$f":"IF(tbl_stats[[#This Row],[Beginning]]=1,0,IF(tbl_stats[[#This Row],[Flag_Success]]=1,I153+1,0))","v":0}]
[null,"2023-12-13",null,null,null,null,null,{"$f":"IF(tbl_stats[[#This Row],[Beginning]]=\"\",0,IF(tbl_stats[[#This Row],[Flag_Play]]=1,IF(tbl_stats[[#This Row],[Flag_Success]]=1,H154+1,0),H154))","v":0},{"$f":"IF(tbl_stats[[#This Row],[Beginning]]=1,0,IF(tbl_stats[[#This Row],[Flag_Success]]=1,I154+1,0))","v":0}]
[null,"2023-12-14",null,null,null,null,null,{"$f":"IF(tbl_stats[[#This Row],[Beginning]]=\"\",0,IF(tbl_stats[[#This Row],[Flag_Play]]=1,IF(tbl_stats[[#This Row],[Flag_Success]]=1,H155+1,0),H155))","v":0},{"$f":"IF(tbl_stats[[#This Row],[Beginning]]=1,0,IF(tbl_stats[[#This Row],[Flag_Success]]=1,I155+1,0))","v":0}]
[null,"2023-12-15",null,null,null,null,null,{"$f":"IF(tbl_stats[[#This Row],[Beginning]]=\"\",0,IF(tbl_stats[[#This Row],[Flag_Play]]=1,IF(tbl_stats[[#This Row],[Flag_Success]]=1,H156+1,0),H156))","v":0},{"$f":"IF(tbl_stats[[#This Row],[Beginning]]=1,0,IF(tbl_stats[[#This Row],[Flag_Success]]=1,I156+1,0))","v":0}]
[null,"2023-12-16",null,null,null,null,null,{"$f":"IF(tbl_stats[[#This Row],[Beginning]]=\"\",0,IF(tbl_stats[[#This Row],[Flag_Play]]=1,IF(tbl_stats[[#This Row],[Flag_Success]]=1,H157+1,0),H157))","v":0},{"$f":"IF(tbl_stats[[#This Row],[Beginning]]=1,0,IF(tbl_stats[[#This Row],[Flag_Success]]=1,I157+1,0))","v":0}]
[null,"2023-12-17",null,null,null,null,null,{"$f":"IF(tbl_stats[[#This Row],[Beginning]]=\"\",0,IF(tbl_stats[[#This Row],[Flag_Play]]=1,IF(tbl_stats[[#This Row],[Flag_Success]]=1,H158+1,0),H158))","v":0},{"$f":"IF(tbl_stats[[#This Row],[Beginning]]=1,0,IF(tbl_stats[[#This Row],[Flag_Success]]=1,I158+1,0))","v":0}]
[null,"2023-12-18",null,null,null,null,null,{"$f":"IF(tbl_stats[[#This Row],[Beginning]]=\"\",0,IF(tbl_stats[[#This Row],[Flag_Play]]=1,IF(tbl_stats[[#This Row],[Flag_Success]]=1,H159+1,0),H159))","v":0},{"$f":"IF(tbl_stats[[#This Row],[Beginning]]=1,0,IF(tbl_stats[[#This Row],[Flag_Success]]=1,I159+1,0))","v":0}]
[null,"2023-12-19",null,null,null,null,null,{"$f":"IF(tbl_stats[[#This Row],[Beginning]]=\"\",0,IF(tbl_stats[[#This Row],[Flag_Play]]=1,IF(tbl_stats[[#This Row],[Flag_Success]]=1,H160+1,0),H160))","v":0},{"$f":"IF(tbl_stats[[#This Row],[Beginning]]=1,0,IF(tbl_stats[[#This Row],[Flag_Success]]=1,I160+1,0))","v":0}]
[null,"2023-12-20",null,null,null,null,null,{"$f":"IF(tbl_stats[[#This Row],[Beginning]]=\"\",0,IF(tbl_stats[[#This Row],[Flag_Play]]=1,IF(tbl_stats[[#This Row],[Flag_Success]]=1,H161+1,0),H161))","v":0},{"$f":"IF(tbl_stats[[#This Row],[Beginning]]=1,0,IF(tbl_stats[[#This Row],[Flag_Success]]=1,I161+1,0))","v":0}]
[null,"2023-12-21",null,null,null,null,null,{"$f":"IF(tbl_stats[[#This Row],[Beginning]]=\"\",0,IF(tbl_stats[[#This Row],[Flag_Play]]=1,IF(tbl_stats[[#This Row],[Flag_Success]]=1,H162+1,0),H162))","v":0},{"$f":"IF(tbl_stats[[#This Row],[Beginning]]=1,0,IF(tbl_stats[[#This Row],[Flag_Success]]=1,I162+1,0))","v":0}]
[null,"2023-12-22",null,null,null,null,null,{"$f":"IF(tbl_stats[[#This Row],[Beginning]]=\"\",0,IF(tbl_stats[[#This Row],[Flag_Play]]=1,IF(tbl_stats[[#This Row],[Flag_Success]]=1,H163+1,0),H163))","v":0},{"$f":"IF(tbl_stats[[#This Row],[Beginning]]=1,0,IF(tbl_stats[[#This Row],[Flag_Success]]=1,I163+1,0))","v":0}]
[null,"2023-12-23",null,null,null,null,null,{"$f":"IF(tbl_stats[[#This Row],[Beginning]]=\"\",0,IF(tbl_stats[[#This Row],[Flag_Play]]=1,IF(tbl_stats[[#This Row],[Flag_Success]]=1,H164+1,0),H164))","v":0},{"$f":"IF(tbl_stats[[#This Row],[Beginning]]=1,0,IF(tbl_stats[[#This Row],[Flag_Success]]=1,I164+1,0))","v":0}]
[null,"2023-12-24",null,null,null,null,null,{"$f":"IF(tbl_stats[[#This Row],[Beginning]]=\"\",0,IF(tbl_stats[[#This Row],[Flag_Play]]=1,IF(tbl_stats[[#This Row],[Flag_Success]]=1,H165+1,0),H165))","v":0},{"$f":"IF(tbl_stats[[#This Row],[Beginning]]=1,0,IF(tbl_stats[[#This Row],[Flag_Success]]=1,I165+1,0))","v":0}]
[null,"2023-12-25",null,null,null,null,null,{"$f":"IF(tbl_stats[[#This Row],[Beginning]]=\"\",0,IF(tbl_stats[[#This Row],[Flag_Play]]=1,IF(tbl_stats[[#This Row],[Flag_Success]]=1,H166+1,0),H166))","v":0},{"$f":"IF(tbl_stats[[#This Row],[Beginning]]=1,0,IF(tbl_stats[[#This Row],[Flag_Success]]=1,I166+1,0))","v":0}]
[null,"2023-12-26",null,null,null,null,null,{"$f":"IF(tbl_stats[[#This Row],[Beginning]]=\"\",0,IF(tbl_stats[[#This Row],[Flag_Play]]=1,IF(tbl_stats[[#This Row],[Flag_Success]]=1,H167+1,0),H167))","v":0},{"$f":"IF(tbl_stats[[#This Row],[Beginning]]=1,0,IF(tbl_stats[[#This Row],[Flag_Success]]=1,I167+1,0))","v":0}]
[null,"2023-12-27",null,null,null,null,null,{"$f":"IF(tbl_stats[[#This Row],[Beginning]]=\"\",0,IF(tbl_stats[[#This Row],[Flag_Play]]=1,IF(tbl_stats[[#This Row],[Flag_Success]]=1,H168+1,0),H168))","v":0},{"$f":"IF(tbl_stats[[#This Row],[Beginning]]=1,0,IF(tbl_stats[[#This Row],[Flag_Success]]=1,I168+1,0))","v":0}]
[null,"2023-12-28",null,null,null,null,null,{"$f":"IF(tbl_stats[[#This Row],[Beginning]]=\"\",0,IF(tbl_stats[[#This Row],[Flag_Play]]=1,IF(tbl_stats[[#This Row],[Flag_Success]]=1,H169+1,0),H169))","v":0},{"$f":"IF(tbl_stats[[#This Row],[Beginning]]=1,0,IF(tbl_stats[[#This Row],[Flag_Success]]=1,I169+1,0))","v":0}]
[null,"2023-12-29",null,null,null,null,null,{"$f":"IF(tbl_stats[[#This Row],[Beginning]]=\"\",0,IF(tbl_stats[[#This Row],[Flag_Play]]=1,IF(tbl_stats[[#This Row],[Flag_Success]]=1,H170+1,0),H170))","v":0},{"$f":"IF(tbl_stats[[#This Row],[Beginning]]=1,0,IF(tbl_stats[[#This Row],[Flag_Success]]=1,I170+1,0))","v":0}]
[null,"2023-12-30",null,null,null,null,null,{"$f":"IF(tbl_stats[[#This Row],[Beginning]]=\"\",0,IF(tbl_stats[[#This Row],[Flag_Play]]=1,IF(tbl_stats[[#This Row],[Flag_Success]]=1,H171+1,0),H171))","v":0},{"$f":"IF(tbl_stats[[#This Row],[Beginning]]=1,0,IF(tbl_stats[[#This Row],[Flag_Success]]=1,I171+1,0))","v":0}]
[null,"2023-12-31",null,null,null,null,null,{"$f":"IF(tbl_stats[[#This Row],[Beginning]]=\"\",0,IF(tbl_stats[[#This Row],[Flag_Play]]=1,IF(tbl_stats[[#This Row],[Flag_Success]]=1,H172+1,0),H172))","v":0},{"$f":"IF(tbl_stats[[#This Row],[Beginning]]=1,0,IF(tbl_stats[[#This Row],[Flag_Success]]=1,I172+1,0))","v":0}]
[null,"2024-01-01",null,null,null,null,null,{"$f":"IF(tbl_stats[[#This Row],[Beginning]]=\"\",0,IF(tbl_stats[[#This Row],[Flag_Play]]=1,IF(tbl_stats[[#This Row],[Flag_Success]]=1,H173+1,0),H173))","v":0},{"$f":"IF(tbl_stats[[#This Row],[Beginning]]=1,0,IF(tbl_stats[[#This Row],[Flag_Success]]=1,I173+1,0))","v":0}]
[null,"2024-01-02",null,null,null,null,null,{"$f":"IF(tbl_stats[[#This Row],[Beginning]]=\"\",0,IF(tbl_stats[[#This Row],[Flag_Play]]=1,IF(tbl_stats[[#This Row],[Flag_Success]]=1,H174+1,0),H174))","v":0},{"$f":"IF(tbl_stats[[#This Row],[Beginning]]=1,0,IF(tbl_stats[[#This Row],[Flag_Success]]=1,I174+1,0))","v":0}]
[null,"2024-01-03",null,null,null,null,null,{"$f":"IF(tbl_stats[[#This Row],[Beginning]]=\"\",0,IF(tbl_stats[[#This Row],[Flag_Play]]=1,IF(tbl_stats[[#This Row],[Flag_Success]]=1,H175+1,0),H175))","v":0},{"$f":"IF(tbl_stats[[#This Row],[Beginning]]=1,0,IF(tbl_stats[[#This Row],[Flag_Success]]=1,I175+1,0))","v":0}]
[null,"2024-01-04",null,null,null,null,null,{"$f":"IF(tbl_stats[[#This Row],[Beginning]]=\"\",0,IF(tbl_stats[[#This Row],[Flag_Play]]=1,IF(tbl_stats[[#This Row],[Flag_Success]]=1,H176+1,0),H176))","v":0},{"$f":"IF(tbl_stats[[#This Row],[Beginning]]=1,0,IF(tbl_stats[[#This Row],[Flag_Success]]=1,I176+1,0))","v":0}]
[null,"2024-01-05",null,null,null,null,null,{"$f":"IF(tbl_stats[[#This Row],[Beginning]]=\"\",0,IF(tbl_stats[[#This Row],[Flag_Play]]=1,IF(tbl_stats[[#This Row],[Flag_Success]]=1,H177+1,0),H177))","v":0},{"$f":"IF(tbl_stats[[#This Row],[Beginning]]=1,0,IF(tbl_stats[[#This Row],[Flag_Success]]=1,I177+1,0))","v":0}]
[null,"2024-01-06",null,null,null,null,null,{"$f":"IF(tbl_stats[[#This Row],[Beginning]]=\"\",0,IF(tbl_stats[[#This Row],[Flag_Play]]=1,IF(tbl_stats[[#This Row],[Flag_Success]]=1,H178+1,0),H178))","v":0},{"$f":"IF(tbl_stats[[#This Row],[Beginning]]=1,0,IF(tbl_stats[[#This Row],[Flag_Success]]=1,I178+1,0))","v":0}]
[null,"2024-01-07",null,null,null,null,null,{"$f":"IF(tbl_stats[[#This Row],[Beginning]]=\"\",0,IF(tbl_stats[[#This Row],[Flag_Play]]=1,IF(tbl_stats[[#This Row],[Flag_Success]]=1,H179+1,0),H179))","v":0},{"$f":"IF(tbl_stats[[#This Row],[Beginning]]=1,0,IF(tbl_stats[[#This Row],[Flag_Success]]=1,I179+1,0))","v":0}]
[null,"2024-01-08",null,null,null,null,null,{"$f":"IF(tbl_stats[[#This Row],[Beginning]]=\"\",0,IF(tbl_stats[[#This Row],[Flag_Play]]=1,IF(tbl_stats[[#This Row],[Flag_Success]]=1,H180+1,0),H180))","v":0},{"$f":"IF(tbl_stats[[#This Row],[Beginning]]=1,0,IF(tbl_stats[[#This Row],[Flag_Success]]=1,I180+1,0))","v":0}]
[null,"2024-01-09",null,null,null,null,null,{"$f":"IF(tbl_stats[[#This Row],[Beginning]]=\"\",0,IF(tbl_stats[[#This Row],[Flag_Play]]=1,IF(tbl_stats[[#This Row],[Flag_Success]]=1,H181+1,0),H181))","v":0},{"$f":"IF(tbl_stats[[#This Row],[Beginning]]=1,0,IF(tbl_stats[[#This Row],[Flag_Success]]=1,I181+1,0))","v":0}]
[null,"2024-01-10",null,null,null,null,null,{"$f":"IF(tbl_stats[[#This Row],[Beginning]]=\"\",0,IF(tbl_stats[[#This Row],[Flag_Play]]=1,IF(tbl_stats[[#This Row],[Flag_Success]]=1,H182+1,0),H182))","v":0},{"$f":"IF(tbl_stats[[#This Row],[Beginning]]=1,0,IF(tbl_stats[[#This Row],[Flag_Success]]=1,I182+1,0))","v":0}]
[null,"2024-01-11",null,null,null,null,null,{"$f":"IF(tbl_stats[[#This Row],[Beginning]]=\"\",0,IF(tbl_stats[[#This Row],[Flag_Play]]=1,IF(tbl_stats[[#This Row],[Flag_Success]]=1,H183+1,0),H183))","v":0},{"$f":"IF(tbl_stats[[#This Row],[Beginning]]=1,0,IF(tbl_stats[[#This Row],[Flag_Success]]=1,I183+1,0))","v":0}]
[null,"2024-01-12",null,null,null,null,null,{"$f":"IF(tbl_stats[[#This Row],[Beginning]]=\"\",0,IF(tbl_stats[[#This Row],[Flag_Play]]=1,IF(tbl_stats[[#This Row],[Flag_Success]]=1,H184+1,0),H184))","v":0},{"$f":"IF(tbl_stats[[#This Row],[Beginning]]=1,0,IF(tbl_stats[[#This Row],[Flag_Success]]=1,I184+1,0))","v":0}]
[null,"2024-01-13",null,null,null,null,null,{"$f":"IF(tbl_stats[[#This Row],[Beginning]]=\"\",0,IF(tbl_stats[[#This Row],[Flag_Play]]=1,IF(tbl_stats[[#This Row],[Flag_Success]]=1,H185+1,0),H185))","v":0},{"$f":"IF(tbl_stats[[#This Row],[Beginning]]=1,0,IF(tbl_stats[[#This Row],[Flag_Success]]=1,I185+1,0))","v":0}]
[null,"2024-01-14",null,null,null,null,null,{"$f":"IF(tbl_stats[[#This Row],[Beginning]]=\"\",0,IF(tbl_stats[[#This Row],[Flag_Play]]=1,IF(tbl_stats[[#This Row],[Flag_Success]]=1,H186+1,0),H186))","v":0},{"$f":"IF(tbl_stats[[#This Row],[Beginning]]=1,0,IF(tbl_stats[[#This Row],[Flag_Success]]=1,I186+1,0))","v":0}]
[null,"2024-01-15",null,null,null,null,null,{"$f":"IF(tbl_stats[[#This Row],[Beginning]]=\"\",0,IF(tbl_stats[[#This Row],[Flag_Play]]=1,IF(tbl_stats[[#This Row],[Flag_Success]]=1,H187+1,0),H187))","v":0},{"$f":"IF(tbl_stats[[#This Row],[Beginning]]=1,0,IF(tbl_stats[[#This Row],[Flag_Success]]=1,I187+1,0))","v":0}]
[null,"2024-01-16",null,null,null,null,null,{"$f":"IF(tbl_stats[[#This Row],[Beginning]]=\"\",0,IF(tbl_stats[[#This Row],[Flag_Play]]=1,IF(tbl_stats[[#This Row],[Flag_Success]]=1,H188+1,0),H188))","v":0},{"$f":"IF(tbl_stats[[#This Row],[Beginning]]=1,0,IF(tbl_stats[[#This Row],[Flag_Success]]=1,I188+1,0))","v":0}]
[null,"2024-01-17",0,"horse",1,1,0,{"$f":"IF(tbl_stats[[#This Row],[Beginning]]=\"\",0,IF(tbl_stats[[#This Row],[Flag_Play]]=1,IF(tbl_stats[[#This Row],[Flag_Success]]=1,H189+1,0),H189))","v":1},{"$f":"IF(tbl_stats[[#This Row],[Beginning]]=1,0,IF(tbl_stats[[#This Row],[Flag_Success]]=1,I189+1,0))","v":1},6]
[null,"2024-01-18",null,"smirk",null,null,null,{"$f":"IF(tbl_stats[[#This Row],[Beginning]]=\"\",0,IF(tbl_stats[[#This Row],[Flag_Play]]=1,IF(tbl_stats[[#This Row],[Flag_Success]]=1,H190+1,0),H190))","v":0},{"$f":"IF(tbl_stats[[#This Row],[Beginning]]=1,0,IF(tbl_stats[[#This Row],[Flag_Success]]=1,I190+1,0))","v":0}]
[null,"2024-01-19",null,null,null,null,null,{"$f":"IF(tbl_stats[[#This Row],[Beginning]]=\"\",0,IF(tbl_stats[[#This Row],[Flag_Play]]=1,IF(tbl_stats[[#This Row],[Flag_Success]]=1,H191+1,0),H191))","v":0},{"$f":"IF(tbl_stats[[#This Row],[Beginning]]=1,0,IF(tbl_stats[[#This Row],[Flag_Success]]=1,I191+1,0))","v":0}]
[null,"2024-01-20",null,null,null,null,null,{"$f":"IF(tbl_stats[[#This Row],[Beginning]]=\"\",0,IF(tbl_stats[[#This Row],[Flag_Play]]=1,IF(tbl_stats[[#This Row],[Flag_Success]]=1,H192+1,0),H192))","v":0},{"$f":"IF(tbl_stats[[#This Row],[Beginning]]=1,0,IF(tbl_stats[[#This Row],[Flag_Success]]=1,I192+1,0))","v":0}]
[null,"2024-01-21",null,null,null,null,null,{"$f":"IF(tbl_stats[[#This Row],[Beginning]]=\"\",0,IF(tbl_stats[[#This Row],[Flag_Play]]=1,IF(tbl_stats[[#This Row],[Flag_Success]]=1,H193+1,0),H193))","v":0},{"$f":"IF(tbl_stats[[#This Row],[Beginning]]=1,0,IF(tbl_stats[[#This Row],[Flag_Success]]=1,I193+1,0))","v":0}]
[null,"2024-01-22",null,null,null,null,null,{"$f":"IF(tbl_stats[[#This Row],[Beginning]]=\"\",0,IF(tbl_stats[[#This Row],[Flag_Play]]=1,IF(tbl_stats[[#This Row],[Flag_Success]]=1,H194+1,0),H194))","v":0},{"$f":"IF(tbl_stats[[#This Row],[Beginning]]=1,0,IF(tbl_stats[[#This Row],[Flag_Success]]=1,I194+1,0))","v":0}]
[null,"2024-01-23",null,null,null,null,null,{"$f":"IF(tbl_stats[[#This Row],[Beginning]]=\"\",0,IF(tbl_stats[[#This Row],[Flag_Play]]=1,IF(tbl_stats[[#This Row],[Flag_Success]]=1,H195+1,0),H195))","v":0},{"$f":"IF(tbl_stats[[#This Row],[Beginning]]=1,0,IF(tbl_stats[[#This Row],[Flag_Success]]=1,I195+1,0))","v":0}]
[null,"2024-01-24",null,null,null,null,null,{"$f":"IF(tbl_stats[[#This Row],[Beginning]]=\"\",0,IF(tbl_stats[[#This Row],[Flag_Play]]=1,IF(tbl_stats[[#This Row],[Flag_Success]]=1,H196+1,0),H196))","v":0},{"$f":"IF(tbl_stats[[#This Row],[Beginning]]=1,0,IF(tbl_stats[[#This Row],[Flag_Success]]=1,I196+1,0))","v":0}]
[null,"2024-01-25",0,"bleed",1,1,0,{"$f":"IF(tbl_stats[[#This Row],[Beginning]]=\"\",0,IF(tbl_stats[[#This Row],[Flag_Play]]=1,IF(tbl_stats[[#This Row],[Flag_Success]]=1,H197+1,0),H197))","v":1},{"$f":"IF(tbl_stats[[#This Row],[Beginning]]=1,0,IF(tbl_stats[[#This Row],[Flag_Success]]=1,I197+1,0))","v":1},5]
[null,"2024-01-26",null,null,null,null,null,{"$f":"IF(tbl_stats[[#This Row],[Beginning]]=\"\",0,IF(tbl_stats[[#This Row],[Flag_Play]]=1,IF(tbl_stats[[#This Row],[Flag_Success]]=1,H198+1,0),H198))","v":0},{"$f":"IF(tbl_stats[[#This Row],[Beginning]]=1,0,IF(tbl_stats[[#This Row],[Flag_Success]]=1,I198+1,0))","v":0}]
[null,"2024-01-27",null,null,null,null,null,{"$f":"IF(tbl_stats[[#This Row],[Beginning]]=\"\",0,IF(tbl_stats[[#This Row],[Flag_Play]]=1,IF(tbl_stats[[#This Row],[Flag_Success]]=1,H199+1,0),H199))","v":0},{"$f":"IF(tbl_stats[[#This Row],[Beginning]]=1,0,IF(tbl_stats[[#This Row],[Flag_Success]]=1,I199+1,0))","v":0}]
[null,"2024-01-28",null,null,null,null,null,{"$f":"IF(tbl_stats[[#This Row],[Beginning]]=\"\",0,IF(tbl_stats[[#This Row],[Flag_Play]]=1,IF(tbl_stats[[#This Row],[Flag_Success]]=1,H200+1,0),H200))","v":0},{"$f":"IF(tbl_stats[[#This Row],[Beginning]]=1,0,IF(tbl_stats[[#This Row],[Flag_Success]]=1,I200+1,0))","v":0}]
[null,"2024-01-29",0,"slang",1,1,0,{"$f":"IF(tbl_stats[[#This Row],[Beginning]]=\"\",0,IF(tbl_stats[[#This Row],[Flag_Play]]=1,IF(tbl_stats[[#This Row],[Flag_Success]]=1,H201+1,0),H201))","v":1},{"$f":"IF(tbl_stats[[#This Row],[Beginning]]=1,0,IF(tbl_stats[[#This Row],[Flag_Success]]=1,I201+1,0))","v":1},4]
[null,"2024-01-30",null,null,null,null,null,{"$f":"IF(tbl_stats[[#This Row],[Beginning]]=\"\",0,IF(tbl_stats[[#This Row],[Flag_Play]]=1,IF(tbl_stats[[#This Row],[Flag_Success]]=1,H202+1,0),H202))","v":0},{"$f":"IF(tbl_stats[[#This Row],[Beginning]]=1,0,IF(tbl_stats[[#This Row],[Flag_Success]]=1,I202+1,0))","v":0}]
[null,"2024-01-31",null,"triad",null,null,null,{"$f":"IF(tbl_stats[[#This Row],[Beginning]]=\"\",0,IF(tbl_stats[[#This Row],[Flag_Play]]=1,IF(tbl_stats[[#This Row],[Flag_Success]]=1,H203+1,0),H203))","v":0},{"$f":"IF(tbl_stats[[#This Row],[Beginning]]=1,0,IF(tbl_stats[[#This Row],[Flag_Success]]=1,I203+1,0))","v":0}]
[null,"2024-02-01",null,null,null,null,null,{"$f":"IF(tbl_stats[[#This Row],[Beginning]]=\"\",0,IF(tbl_stats[[#This Row],[Flag_Play]]=1,IF(tbl_stats[[#This Row],[Flag_Success]]=1,H204+1,0),H204))","v":0},{"$f":"IF(tbl_stats[[#This Row],[Beginning]]=1,0,IF(tbl_stats[[#This Row],[Flag_Success]]=1,I204+1,0))","v":0}]
[null,"2024-02-02",null,null,null,null,null,{"$f":"IF(tbl_stats[[#This Row],[Beginning]]=\"\",0,IF(tbl_stats[[#This Row],[Flag_Play]]=1,IF(tbl_stats[[#This Row],[Flag_Success]]=1,H205+1,0),H205))","v":0},{"$f":"IF(tbl_stats[[#This Row],[Beginning]]=1,0,IF(tbl_stats[[#This Row],[Flag_Success]]=1,I205+1,0))","v":0}]
[null,"2024-02-03",null,null,null,null,null,{"$f":"IF(tbl_stats[[#This Row],[Beginning]]=\"\",0,IF(tbl_stats[[#This Row],[Flag_Play]]=1,IF(tbl_stats[[#This Row],[Flag_Success]]=1,H206+1,0),H206))","v":0},{"$f":"IF(tbl_stats[[#This Row],[Beginning]]=1,0,IF(tbl_stats[[#This Row],[Flag_Success]]=1,I206+1,0))","v":0}]
[null,"2024-02-04",null,null,null,null,null,{"$f":"IF(tbl_stats[[#This Row],[Beginning]]=\"\",0,IF(tbl_stats[[#This Row],[Flag_Play]]=1,IF(tbl_stats[[#This Row],[Flag_Success]]=1,H207+1,0),H207))","v":0},{"$f":"IF(tbl_stats[[#This Row],[Beginning]]=1,0,IF(tbl_stats[[#This Row],[Flag_Success]]=1,I207+1,0))","v":0}]
[null,"2024-02-05",null,null,null,null,null,{"$f":"IF(tbl_stats[[#This Row],[Beginning]]=\"\",0,IF(tbl_stats[[#This Row],[Flag_Play]]=1,IF(tbl_stats[[#This Row],[Flag_Success]]=1,H208+1,0),H208))","v":0},{"$f":"IF(tbl_stats[[#This Row],[Beginning]]=1,0,IF(tbl_stats[[#This Row],[Flag_Success]]=1,I208+1,0))","v":0}]
[null,"2024-02-06",null,null,null,null,null,{"$f":"IF(tbl_stats[[#This Row],[Beginning]]=\"\",0,IF(tbl_stats[[#This Row],[Flag_Play]]=1,IF(tbl_stats[[#This Row],[Flag_Success]]=1,H209+1,0),H209))","v":0},{"$f":"IF(tbl_stats[[#This Row],[Beginning]]=1,0,IF(tbl_stats[[#This Row],[Flag_Success]]=1,I209+1,0))","v":0}]
[null,"2024-02-07",null,null,null,null,null,{"$f":"IF(tbl_stats[[#This Row],[Beginning]]=\"\",0,IF(tbl_stats[[#This Row],[Flag_Play]]=1,IF(tbl_stats[[#This Row],[Flag_Success]]=1,H210+1,0),H210))","v":0},{"$f":"IF(tbl_stats[[#This Row],[Beginning]]=1,0,IF(tbl_stats[[#This Row],[Flag_Success]]=1,I210+1,0))","v":0}]
[null,"2024-02-08",null,null,null,null,null,{"$f":"IF(tbl_stats[[#This Row],[Beginning]]=\"\",0,IF(tbl_stats[[#This Row],[Flag_Play]]=1,IF(tbl_stats[[#This Row],[Flag_Success]]=1,H211+1,0),H211))","v":0},{"$f":"IF(tbl_stats[[#This Row],[Beginning]]=1,0,IF(tbl_stats[[#This Row],[Flag_Success]]=1,I211+1,0))","v":0}]
[null,"2024-02-09",null,null,null,null,null,{"$f":"IF(tbl_stats[[#This Row],[Beginning]]=\"\",0,IF(tbl_stats[[#This Row],[Flag_Play]]=1,IF(tbl_stats[[#This Row],[Flag_Success]]=1,H212+1,0),H212))","v":0},{"$f":"IF(tbl_stats[[#This Row],[Beginning]]=1,0,IF(tbl_stats[[#This Row],[Flag_Success]]=1,I212+1,0))","v":0}]
[null,"2024-02-10",null,null,null,null,null,{"$f":"IF(tbl_stats[[#This Row],[Beginning]]=\"\",0,IF(tbl_stats[[#This Row],[Flag_Play]]=1,IF(tbl_stats[[#This Row],[Flag_Success]]=1,H213+1,0),H213))","v":0},{"$f":"IF(tbl_stats[[#This Row],[Beginning]]=1,0,IF(tbl_stats[[#This Row],[Flag_Success]]=1,I213+1,0))","v":0}]
[null,"2024-02-11",null,null,null,null,null,{"$f":"IF(tbl_stats[[#This Row],[Beginning]]=\"\",0,IF(tbl_stats[[#This Row],[Flag_Play]]=1,IF(tbl_stats[[#This Row],[Flag_Success]]=1,H214+1,0),H214))","v":0},{"$f":"IF(tbl_stats[[#This Row],[Beginning]]=1,0,IF(tbl_stats[[#This Row],[Flag_Success]]=1,I214+1,0))","v":0}]
[null,"2024-02-12",null,null,null,null,null,{"$f":"IF(tbl_stats[[#This Row],[Beginning]]=\"\",0,IF(tbl_stats[[#This Row],[Flag_Play]]=1,IF(tbl_stats[[#This Row],[Flag_Success]]=1,H215+1,0),H215))","v":0},{"$f":"IF(tbl_stats[[#This Row],[Beginning]]=1,0,IF(tbl_stats[[#This Row],[Flag_Success]]=1,I215+1,0))","v":0}]
[null,"2024-02-13",null,null,null,null,null,{"$f":"IF(tbl_stats[[#This Row],[Beginning]]=\"\",0,IF(tbl_stats[[#This Row],[Flag_Play]]=1,IF(tbl_stats[[#This Row],[Flag_Success]]=1,H216+1,0),H216))","v":0},{"$f":"IF(tbl_stats[[#This Row],[Beginning]]=1,0,IF(tbl_stats[[#This Row],[Flag_Success]]=1,I216+1,0))","v":0}]
[null,"2024-02-14",null,null,null,null,null,{"$f":"IF(tbl_stats[[#This Row],[Beginning]]=\"\",0,IF(tbl_stats[[#This Row],[Flag_Play]]=1,IF(tbl_stats[[#This Row],[Flag_Success]]=1,H217+1,0),H217))","v":0},{"$f":"IF(tbl_stats[[#This Row],[Beginning]]=1,0,IF(tbl_stats[[#This Row],[Flag_Success]]=1,I217+1,0))","v":0}]
[null,"2024-02-15",null,null,null,null,null,{"$f":"IF(tbl_stats[[#This Row],[Beginning]]=\"\",0,IF(tbl_stats[[#This Row],[Flag_Play]]=1,IF(tbl_stats[[#This Row],[Flag_Success]]=1,H218+1,0),H218))","v":0},{"$f":"IF(tbl_stats[[#This Row],[Beginning]]=1,0,IF(tbl_stats[[#This Row],[Flag_Success]]=1,I218+1,0))","v":0}]
[null,"2024-02-16",null,null,null,null,null,{"$f":"IF(tbl_stats[[#This Row],[Beginning]]=\"\",0,IF(tbl_stats[[#This Row],[Flag_Play]]=1,IF(tbl_stats[[#This Row],[Flag_Success]]=1,H219+1,0),H219))","v":0},{"$f":"IF(tbl_stats[[#This Row],[Beginning]]=1,0,IF(tbl_stats[[#This Row],[Flag_Success]]=1,I219+1,0))","v":0}]
[null,"2024-02-17",null,null,null,null,null,{"$f":"IF(tbl_stats[[#This Row],[Beginning]]=\"\",0,IF(tbl_stats[[#This Row],[Flag_Play]]=1,IF(tbl_stats[[#This Row],[Flag_Success]]=1,H220+1,0),H220))","v":0},{"$f":"IF(tbl_stats[[#This Row],[Beginning]]=1,0,IF(tbl_stats[[#This Row],[Flag_Success]]=1,I220+1,0))","v":0}]
[null,"2024-02-18",null,null,null,null,null,{"$f":"IF(tbl_stats[[#This Row],[Beginning]]=\"\",0,IF(tbl_stats[[#This Row],[Flag_Play]]=1,IF(tbl_stats[[#This Row],[Flag_Success]]=1,H221+1,0),H221))","v":0},{"$f":"IF(tbl_stats[[#This Row],[Beginning]]=1,0,IF(tbl_stats[[#This Row],[Flag_Success]]=1,I221+1,0))","v":0}]
[null,"2024-02-19",null,null,null,null,null,{"$f":"IF(tbl_stats[[#This Row],[Beginning]]=\"\",0,IF(tbl_stats[[#This Row],[Flag_Play]]=1,IF(tbl_stats[[#This Row],[Flag_Success]]=1,H222+1,0),H222))","v":0},{"$f":"IF(tbl_stats[[#This Row],[Beginning]]=1,0,IF(tbl_stats[[#This Row],[Flag_Success]]=1,I222+1,0))","v":0}]
[null,"2024-02-20",null,null,null,null,null,{"$f":"IF(tbl_stats[[#This Row],[Beginning]]=\"\",0,IF(tbl_stats[[#This Row],[Flag_Play]]=1,IF(tbl_stats[[#This Row],[Flag_Success]]=1,H223+1,0),H223))","v":0},{"$f":"IF(tbl_stats[[#This Row],[Beginning]]=1,0,IF(tbl_stats[[#This Row],[Flag_Success]]=1,I223+1,0))","v":0}]
[null,"2024-02-21",null,null,null,null,null,{"$f":"IF(tbl_stats[[#This Row],[Beginning]]=\"\",0,IF(tbl_stats[[#This Row],[Flag_Play]]=1,IF(tbl_stats[[#This Row],[Flag_Success]]=1,H224+1,0),H224))","v":0},{"$f":"IF(tbl_stats[[#This Row],[Beginning]]=1,0,IF(tbl_stats[[#This Row],[Flag_Success]]=1,I224+1,0))","v":0}]
[null,"2024-02-22",null,null,null,null,null,{"$f":"IF(tbl_stats[[#This Row],[Beginning]]=\"\",0,IF(tbl_stats[[#This Row],[Flag_Play]]=1,IF(tbl_stats[[#This Row],[Flag_Success]]=1,H225+1,0),H225))","v":0},{"$f":"IF(tbl_stats[[#This Row],[Beginning]]=1,0,IF(tbl_stats[[#This Row],[Flag_Success]]=1,I225+1,0))","v":0}]
[null,"2024-02-23",null,null,null,null,null,{"$f":"IF(tbl_stats[[#This Row],[Beginning]]=\"\",0,IF(tbl_stats[[#This Row],[Flag_Play]]=1,IF(tbl_stats[[#This Row],[Flag_Success]]=1,H226+1,0),H226))","v":0},{"$f":"IF(tbl_stats[[#This Row],[Beginning]]=1,0,IF(tbl_stats[[#This Row],[Flag_Success]]=1,I226+1,0))","v":0}]
[null,"2024-02-24",null,null,null,null,null,{"$f":"IF(tbl_stats[[#This Row],[Beginning]]=\"\",0,IF(tbl_stats[[#This Row],[Flag_Play]]=1,IF(tbl_stats[[#This Row],[Flag_Success]]=1,H227+1,0),H227))","v":0},{"$f":"IF(tbl_stats[[#This Row],[Beginning]]=1,0,IF(tbl_stats[[#This Row],[Flag_Success]]=1,I227+1,0))","v":0}]
[null,"2024-02-25",null,null,null,null,null,{"$f":"IF(tbl_stats[[#This Row],[Beginning]]=\"\",0,IF(tbl_stats[[#This Row],[Flag_Play]]=1,IF(tbl_stats[[#This Row],[Flag_Success]]=1,H228+1,0),H228))","v":0},{"$f":"IF(tbl_stats[[#This Row],[Beginning]]=1,0,IF(tbl_stats[[#This Row],[Flag_Success]]=1,I228+1,0))","v":0}]
[null,"2024-02-26",null,null,null,null,null,{"$f":"IF(tbl_stats[[#This Row],[Beginning]]=\"\",0,IF(tbl_stats[[#This Row],[Flag_Play]]=1,IF(tbl_stats[[#This Row],[Flag_Success]]=1,H229+1,0),H229))","v":0},{"$f":"IF(tbl_stats[[#This Row],[Beginning]]=1,0,IF(tbl_stats[[#This Row],[Flag_Success]]=1,I229+1,0))","v":0}]
[null,"2024-02-27",null,null,null,null,null,{"$f":"IF(tbl_stats[[#This Row],[Beginning]]=\"\",0,IF(tbl_stats[[#This Row],[Flag_Play]]=1,IF(tbl_stats[[#This Row],[Flag_Success]]=1,H230+1,0),H230))","v":0},{"$f":"IF(tbl_stats[[#This Row],[Beginning]]=1,0,IF(tbl_stats[[#This Row],[Flag_Success]]=1,I230+1,0))","v":0}]
[null,"2024-02-28",null,null,null,null,null,{"$f":"IF(tbl_stats[[#This Row],[Beginning]]=\"\",0,IF(tbl_stats[[#This Row],[Flag_Play]]=1,IF(tbl_stats[[#This Row],[Flag_Success]]=1,H231+1,0),H231))","v":0},{"$f":"IF(tbl_stats[[#This Row],[Beginning]]=1,0,IF(tbl_stats[[#This Row],[Flag_Success]]=1,I231+1,0))","v":0}]
[null,"2024-02-29",null,null,null,null,null,{"$f":"IF(tbl_stats[[#This Row],[Beginning]]=\"\",0,IF(tbl_stats[[#This Row],[Flag_Play]]=1,IF(tbl_stats[[#This Row],[Flag_Success]]=1,H232+1,0),H232))","v":0},{"$f":"IF(tbl_stats[[#This Row],[Beginning]]=1,0,IF(tbl_stats[[#This Row],[Flag_Success]]=1,I232+1,0))","v":0}]
[null,"2024-03-01",null,null,null,null,null,{"$f":"IF(tbl_stats[[#This Row],[Beginning]]=\"\",0,IF(tbl_stats[[#This Row],[Flag_Play]]=1,IF(tbl_stats[[#This Row],[Flag_Success]]=1,H233+1,0),H233))","v":0},{"$f":"IF(tbl_stats[[#This Row],[Beginning]]=1,0,IF(tbl_stats[[#This Row],[Flag_Success]]=1,I233+1,0))","v":0}]
[null,"2024-03-02",null,null,null,null,null,{"$f":"IF(tbl_stats[[#This Row],[Beginning]]=\"\",0,IF(tbl_stats[[#This Row],[Flag_Play]]=1,IF(tbl_stats[[#This Row],[Flag_Success]]=1,H234+1,0),H234))","v":0},{"$f":"IF(tbl_stats[[#This Row],[Beginning]]=1,0,IF(tbl_stats[[#This Row],[Flag_Success]]=1,I234+1,0))","v":0}]
[null,"2024-03-03",null,null,null,null,null,{"$f":"IF(tbl_stats[[#This Row],[Beginning]]=\"\",0,IF(tbl_stats[[#This Row],[Flag_Play]]=1,IF(tbl_stats[[#This Row],[Flag_Success]]=1,H235+1,0),H235))","v":0},{"$f":"IF(tbl_stats[[#This Row],[Beginning]]=1,0,IF(tbl_stats[[#This Row],[Flag_Success]]=1,I235+1,0))","v":0}]
[null,"2024-03-04",null,null,null,null,null,{"$f":"IF(tbl_stats[[#This Row],[Beginning]]=\"\",0,IF(tbl_stats[[#This Row],[Flag_Play]]=1,IF(tbl_stats[[#This Row],[Flag_Success]]=1,H236+1,0),H236))","v":0},{"$f":"IF(tbl_stats[[#This Row],[Beginning]]=1,0,IF(tbl_stats[[#This Row],[Flag_Success]]=1,I236+1,0))","v":0}]
[null,"2024-03-05",null,null,null,null,null,{"$f":"IF(tbl_stats[[#This Row],[Beginning]]=\"\",0,IF(tbl_stats[[#This Row],[Flag_Play]]=1,IF(tbl_stats[[#This Row],[Flag_Success]]=1,H237+1,0),H237))","v":0},{"$f":"IF(tbl_stats[[#This Row],[Beginning]]=1,0,IF(tbl_stats[[#This Row],[Flag_Success]]=1,I237+1,0))","v":0}]
[null,"2024-03-06",null,null,null,null,null,{"$f":"IF(tbl_stats[[#This Row],[Beginning]]=\"\",0,IF(tbl_stats[[#This Row],[Flag_Play]]=1,IF(tbl_stats[[#This Row],[Flag_Success]]=1,H238+1,0),H238))","v":0},{"$f":"IF(tbl_stats[[#This Row],[Beginning]]=1,0,IF(tbl_stats[[#This Row],[Flag_Success]]=1,I238+1,0))","v":0}]
[null,"2024-03-07",null,null,null,null,null,{"$f":"IF(tbl_stats[[#This Row],[Beginning]]=\"\",0,IF(tbl_stats[[#This Row],[Flag_Play]]=1,IF(tbl_stats[[#This Row],[Flag_Success]]=1,H239+1,0),H239))","v":0},{"$f":"IF(tbl_stats[[#This Row],[Beginning]]=1,0,IF(tbl_stats[[#This Row],[Flag_Success]]=1,I239+1,0))","v":0}]
[null,"2024-03-08",null,null,null,null,null,{"$f":"IF(tbl_stats[[#This Row],[Beginning]]=\"\",0,IF(tbl_stats[[#This Row],[Flag_Play]]=1,IF(tbl_stats[[#This Row],[Flag_Success]]=1,H240+1,0),H240))","v":0},{"$f":"IF(tbl_stats[[#This Row],[Beginning]]=1,0,IF(tbl_stats[[#This Row],[Flag_Success]]=1,I240+1,0))","v":0}]
[null,"2024-03-09",null,null,null,null,null,{"$f":"IF(tbl_stats[[#This Row],[Beginning]]=\"\",0,IF(tbl_stats[[#This Row],[Flag_Play]]=1,IF(tbl_stats[[#This Row],[Flag_Success]]=1,H241+1,0),H241))","v":0},{"$f":"IF(tbl_stats[[#This Row],[Beginning]]=1,0,IF(tbl_stats[[#This Row],[Flag_Success]]=1,I241+1,0))","v":0}]
[null,"2024-03-10",null,null,null,null,null,{"$f":"IF(tbl_stats[[#This Row],[Beginning]]=\"\",0,IF(tbl_stats[[#This Row],[Flag_Play]]=1,IF(tbl_stats[[#This Row],[Flag_Success]]=1,H242+1,0),H242))","v":0},{"$f":"IF(tbl_stats[[#This Row],[Beginning]]=1,0,IF(tbl_stats[[#This Row],[Flag_Success]]=1,I242+1,0))","v":0}]
[null,"2024-03-11",null,null,null,null,null,{"$f":"IF(tbl_stats[[#This Row],[Beginning]]=\"\",0,IF(tbl_stats[[#This Row],[Flag_Play]]=1,IF(tbl_stats[[#This Row],[Flag_Success]]=1,H243+1,0),H243))","v":0},{"$f":"IF(tbl_stats[[#This Row],[Beginning]]=1,0,IF(tbl_stats[[#This Row],[Flag_Success]]=1,I243+1,0))","v":0}]
[null,"2024-03-12",null,null,null,null,null,{"$f":"IF(tbl_stats[[#This Row],[Beginning]]=\"\",0,IF(tbl_stats[[#This Row],[Flag_Play]]=1,IF(tbl_stats[[#This Row],[Flag_Success]]=1,H244+1,0),H244))","v":0},{"$f":"IF(tbl_stats[[#This Row],[Beginning]]=1,0,IF(tbl_stats[[#This Row],[Flag_Success]]=1,I244+1,0))","v":0}]
[null,"2024-03-13",null,null,null,null,null,{"$f":"IF(tbl_stats[[#This Row],[Beginning]]=\"\",0,IF(tbl_stats[[#This Row],[Flag_Play]]=1,IF(tbl_stats[[#This Row],[Flag_Success]]=1,H245+1,0),H245))","v":0},{"$f":"IF(tbl_stats[[#This Row],[Beginning]]=1,0,IF(tbl_stats[[#This Row],[Flag_Success]]=1,I245+1,0))","v":0}]
[null,"2024-03-14",null,null,null,null,null,{"$f":"IF(tbl_stats[[#This Row],[Beginning]]=\"\",0,IF(tbl_stats[[#This Row],[Flag_Play]]=1,IF(tbl_stats[[#This Row],[Flag_Success]]=1,H246+1,0),H246))","v":0},{"$f":"IF(tbl_stats[[#This Row],[Beginning]]=1,0,IF(tbl_stats[[#This Row],[Flag_Success]]=1,I246+1,0))","v":0}]
[null,"2024-03-15",null,null,null,null,null,{"$f":"IF(tbl_stats[[#This Row],[Beginning]]=\"\",0,IF(tbl_stats[[#This Row],[Flag_Play]]=1,IF(tbl_stats[[#This Row],[Flag_Success]]=1,H247+1,0),H247))","v":0},{"$f":"IF(tbl_stats[[#This Row],[Beginning]]=1,0,IF(tbl_stats[[#This Row],[Flag_Success]]=1,I247+1,0))","v":0}]
[null,"2024-03-16",null,null,null,null,null,{"$f":"IF(tbl_stats[[#This Row],[Beginning]]=\"\",0,IF(tbl_stats[[#This Row],[Flag_Play]]=1,IF(tbl_stats[[#This Row],[Flag_Success]]=1,H248+1,0),H248))","v":0},{"$f":"IF(tbl_stats[[#This Row],[Beginning]]=1,0,IF(tbl_stats[[#This Row],[Flag_Success]]=1,I248+1,0))","v":0}]
[null,"2024-03-17",null,null,null,null,null,{"$f":"IF(tbl_stats[[#This Row],[Beginning]]=\"\",0,IF(tbl_stats[[#This Row],[Flag_Play]]=1,IF(tbl_stats[[#This Row],[Flag_Success]]=1,H249+1,0),H249))","v":0},{"$f":"IF(tbl_stats[[#This Row],[Beginning]]=1,0,IF(tbl_stats[[#This Row],[Flag_Success]]=1,I249+1,0))","v":0}]
[null,"2024-03-18",null,null,null,null,null,{"$f":"IF(tbl_stats[[#This Row],[Beginning]]=\"\",0,IF(tbl_stats[[#This Row],[Flag_Play]]=1,IF(tbl_stats[[#This Row],[Flag_Success]]=1,H250+1,0),H250))","v":0},{"$f":"IF(tbl_stats[[#This Row],[Beginning]]=1,0,IF(tbl_stats[[#This Row],[Flag_Success]]=1,I250+1,0))","v":0}]
[null,"2024-03-19",null,null,null,null,null,{"$f":"IF(tbl_stats[[#This Row],[Beginning]]=\"\",0,IF(tbl_stats[[#This Row],[Flag_Play]]=1,IF(tbl_stats[[#This Row],[Flag_Success]]=1,H251+1,0),H251))","v":0},{"$f":"IF(tbl_stats[[#This Row],[Beginning]]=1,0,IF(tbl_stats[[#This Row],[Flag_Success]]=1,I251+1,0))","v":0}]
[null,"2024-03-20",null,null,null,null,null,{"$f":"IF(tbl_stats[[#This Row],[Beginning]]=\"\",0,IF(tbl_stats[[#This Row],[Flag_Play]]=1,IF(tbl_stats[[#This Row],[Flag_Success]]=1,H252+1,0),H252))","v":0},{"$f":"IF(tbl_stats[[#This Row],[Beginning]]=1,0,IF(tbl_stats[[#This Row],[Flag_Success]]=1,I252+1,0))","v":0}]
[null,"2024-03-21",null,null,null,null,null,{"$f":"IF(tbl_stats[[#This Row],[Beginning]]=\"\",0,IF(tbl_stats[[#This Row],[Flag_Play]]=1,IF(tbl_stats[[#This Row],[Flag_Success]]=1,H253+1,0),H253))","v":0},{"$f":"IF(tbl_stats[[#This Row],[Beginning]]=1,0,IF(tbl_stats[[#This Row],[Flag_Success]]=1,I253+1,0))","v":0}]
[null,"2024-03-22",null,null,null,null,null,{"$f":"IF(tbl_stats[[#This Row],[Beginning]]=\"\",0,IF(tbl_stats[[#This Row],[Flag_Play]]=1,IF(tbl_stats[[#This Row],[Flag_Success]]=1,H254+1,0),H254))","v":0},{"$f":"IF(tbl_stats[[#This Row],[Beginning]]=1,0,IF(tbl_stats[[#This Row],[Flag_Success]]=1,I254+1,0))","v":0}]
[null,"2024-03-23",null,null,null,null,null,{"$f":"IF(tbl_stats[[#This Row],[Beginning]]=\"\",0,IF(tbl_stats[[#This Row],[Flag_Play]]=1,IF(tbl_stats[[#This Row],[Flag_Success]]=1,H255+1,0),H255))","v":0},{"$f":"IF(tbl_stats[[#This Row],[Beginning]]=1,0,IF(tbl_stats[[#This Row],[Flag_Success]]=1,I255+1,0))","v":0}]
[null,"2024-03-24",null,null,null,null,null,{"$f":"IF(tbl_stats[[#This Row],[Beginning]]=\"\",0,IF(tbl_stats[[#This Row],[Flag_Play]]=1,IF(tbl_stats[[#This Row],[Flag_Success]]=1,H256+1,0),H256))","v":0},{"$f":"IF(tbl_stats[[#This Row],[Beginning]]=1,0,IF(tbl_stats[[#This Row],[Flag_Success]]=1,I256+1,0))","v":0}]
[null,"2024-03-25",null,"local",null,null,null,{"$f":"IF(tbl_stats[[#This Row],[Beginning]]=\"\",0,IF(tbl_stats[[#This Row],[Flag_Play]]=1,IF(tbl_stats[[#This Row],[Flag_Success]]=1,H257+1,0),H257))","v":0},{"$f":"IF(tbl_stats[[#This Row],[Beginning]]=1,0,IF(tbl_stats[[#This Row],[Flag_Success]]=1,I257+1,0))","v":0}]

{"sheet":"Param","index":2,"n_rows":2313,"n_cols":16,"rows_kept":2313,"cut":false,"hidden":true,"merged":[]}
[]
[null,"Color",null,"Date",null,"Next Word",null,"Today_word",null,"DB_word",null,"Flag_Played_Today",null,"Today_Word_Display_Stat",null,"Language"]
[null,null,null,{"$f":"TODAY()","v":"2024-03-25"},null,null,null,{"$f":"_xlfn.IFNA(INDEX(tbl_stats[Daily_word],MATCH($D$3,tbl_stats[Date],0)),\"\")","v":"local"},null,"aback",null,{"$f":"_xlfn.IFNA(INDEX(tbl_stats[Flag_Play],MATCH($D$3,tbl_stats[Date],0)),0)","v":0},null,{"$f":"IF(Flag_Played_Today=1,today_word,\"?\")","v":"?"},null,"FR"]
[null,null,null,null,null,{"$f":"_xlfn.IFNA(MATCH(next_word,tbl_db[DB_word],0),\"Attention ce mot n'existe pas\")","v":"Attention ce mot n'existe pas"},null,null,null,"abase"]
[null,null,null,null,null,null,null,null,null,"abate"]
[null,null,null,null,null,null,null,null,null,"abbey"]
[null,null,null,null,null,null,null,null,null,"abbot"]
[null,null,null,null,null,null,null,null,null,"abhor"]
[null,null,null,null,null,null,null,null,null,"abide"]
[null,null,null,null,null,null,null,null,null,"abled"]
[null,null,null,null,null,null,null,null,null,"abode"]
[null,null,null,null,null,null,null,null,null,"abort"]
[null,null,null,null,null,null,null,null,null,"about"]
[null,null,null,null,null,null,null,null,null,"above"]
[null,null,null,null,null,null,null,null,null,"abuse"]
[null,null,null,null,null,null,null,null,null,"abyss"]
[null,null,null,null,null,null,null,null,null,"acorn"]
[null,null,null,null,null,null,null,null,null,"acrid"]
[null,null,null,null,null,null,null,null,null,"actor"]
[null,null,null,null,null,null,null,null,null,"acute"]
[null,null,null,null,null,null,null,null,null,"adage"]
[null,null,null,null,null,null,null,null,null,"adapt"]
[null,null,null,null,null,null,null,null,null,"adept"]
[null,null,null,null,null,null,null,null,null,"admin"]
[null,null,null,null,null,null,null,null,null,"admit"]
[null,null,null,null,null,null,null,null,null,"adobe"]
[null,null,null,null,null,null,null,null,null,"adopt"]
[null,null,null,null,null,null,null,null,null,"adore"]
[null,null,null,null,null,null,null,null,null,"adorn"]
[null,null,null,null,null,null,null,null,null,"adult"]
[null,null,null,null,null,null,null,null,null,"affix"]
[null,null,null,null,null,null,null,null,null,"afire"]
[null,null,null,null,null,null,null,null,null,"afoot"]
[null,null,null,null,null,null,null,null,null,"afoul"]
[null,null,null,null,null,null,null,null,null,"after"]
[null,null,null,null,null,null,null,null,null,"again"]
[null,null,null,null,null,null,null,null,null,"agape"]
[null,null,null,null,null,null,null,null,null,"agate"]
[null,null,null,null,null,null,null,null,null,"agent"]
[null,null,null,null,null,null,null,null,null,"agile"]
[null,null,null,null,null,null,null,null,null,"aging"]
[null,null,null,null,null,null,null,null,null,"aglow"]
[null,null,null,null,null,null,null,null,null,"agony"]
[null,null,null,null,null,null,null,null,null,"agree"]
[null,null,null,null,null,null,null,null,null,"ahead"]
[null,null,null,null,null,null,null,null,null,"aider"]
[null,null,null,null,null,null,null,null,null,"aisle"]
[null,null,null,null,null,null,null,null,null,"alarm"]
[null,null,null,null,null,null,null,null,null,"album"]
[null,null,null,null,null,null,null,null,null,"alert"]
[null,null,null,null,null,null,null,null,null,"algae"]
[null,null,null,null,null,null,null,null,null,"alibi"]
[null,null,null,null,null,null,null,null,null,"alien"]
[null,null,null,null,null,null,null,null,null,"align"]
[null,null,null,null,null,null,null,null,null,"alike"]
[null,null,null,null,null,null,null,null,null,"alive"]
[null,null,null,null,null,null,null,null,null,"allay"]
[null,null,null,null,null,null,null,null,null,"alley"]
[null,null,null,null,null,null,null,null,null,"allot"]
[null,null,null,null,null,null,null,null,null,"allow"]
[null,null,null,null,null,null,null,null,null,"alloy"]
[null,null,null,null,null,null,null,null,null,"aloft"]
[null,null,null,null,null,null,null,null,null,"alone"]
[null,null,null,null,null,null,null,null,null,"along"]
[null,null,null,null,null,null,null,null,null,"aloof"]
[null,null,null,null,null,null,null,null,null,"aloud"]
[null,null,null,null,null,null,null,null,null,"alpha"]
[null,null,null,null,null,null,null,null,null,"altar"]
[null,null,null,null,null,null,null,null,null,"alter"]
[null,null,null,null,null,null,null,null,null,"amass"]
[null,null,null,null,null,null,null,null,null,"amaze"]
[null,null,null,null,null,null,null,null,null,"amber"]
[null,null,null,null,null,null,null,null,null,"amble"]
[null,null,null,null,null,null,null,null,null,"amend"]
[null,null,null,null,null,null,null,null,null,"amiss"]
[null,null,null,null,null,null,null,null,null,"amity"]
[null,null,null,null,null,null,null,null,null,"among"]
[null,null,null,null,null,null,null,null,null,"ample"]
[null,null,null,null,null,null,null,null,null,"amply"]
[null,null,null,null,null,null,null,null,null,"amuse"]
[null,null,null,null,null,null,null,null,null,"angel"]
[null,null,null,null,null,null,null,null,null,"anger"]
[null,null,null,null,null,null,null,null,null,"angle"]
[null,null,null,null,null,null,null,null,null,"angry"]
[null,null,null,null,null,null,null,null,null,"angst"]
[null,null,null,null,null,null,null,null,null,"anime"]
[null,null,null,null,null,null,null,null,null,"ankle"]
[null,null,null,null,null,null,null,null,null,"annex"]
[null,null,null,null,null,null,null,null,null,"annoy"]
[null,null,null,null,null,null,null,null,null,"annul"]
[null,null,null,null,null,null,null,null,null,"anode"]
[null,null,null,null,null,null,null,null,null,"antic"]
[null,null,null,null,null,null,null,null,null,"anvil"]
[null,null,null,null,null,null,null,null,null,"aorta"]
[null,null,null,null,null,null,null,null,null,"apart"]
[null,null,null,null,null,null,null,null,null,"aphid"]
[null,null,null,null,null,null,null,null,null,"aping"]
[null,null,null,null,null,null,null,null,null,"apnea"]
[null,null,null,null,null,null,null,null,null,"apple"]
[null,null,null,null,null,null,null,null,null,"apply"]
[null,null,null,null,null,null,null,null,null,"apron"]
[null,null,null,null,null,null,null,null,null,"aptly"]
[null,null,null,null,null,null,null,null,null,"arbor"]
[null,null,null,null,null,null,null,null,null,"ardor"]
[null,null,null,null,null,null,null,null,null,"arena"]
[null,null,null,null,null,null,null,null,null,"argue"]
[null,null,null,null,null,null,null,null,null,"arise"]
[null,null,null,null,null,null,null,null,null,"armor"]
[null,null,null,null,null,null,null,null,null,"aroma"]
[null,null,null,null,null,null,null,null,null,"arose"]
[null,null,null,null,null,null,null,null,null,"array"]
[null,null,null,null,null,null,null,null,null,"arrow"]
[null,null,null,null,null,null,null,null,null,"arson"]
[null,null,null,null,null,null,null,null,null,"artsy"]
[null,null,null,null,null,null,null,null,null,"ascot"]
[null,null,null,null,null,null,null,null,null,"ashen"]
[null,null,null,null,null,null,null,null,null,"aside"]
[null,null,null,null,null,null,null,null,null,"askew"]
[null,null,null,null,null,null,null,null,null,"assay"]
[null,null,null,null,null,null,null,null,null,"asset"]
[null,null,null,null,null,null,null,null,null,"atoll"]
[null,null,null,null,null,null,null,null,null,"atone"]
[null,null,null,null,null,null,null,null,null,"attic"]
[null,null,null,null,null,null,null,null,null,"audio"]
[null,null,null,null,null,null,null,null,null,"audit"]
[null,null,null,null,null,null,null,null,null,"augur"]
[null,null,null,null,null,null,null,null,null,"aunty"]
[null,null,null,null,null,null,null,null,null,"avail"]
[null,null,null,null,null,null,null,null,null,"avert"]
[null,null,null,null,null,null,null,null,null,"avian"]
[null,null,null,null,null,null,null,null,null,"avoid"]
[null,null,null,null,null,null,null,null,null,"await"]
[null,null,null,null,null,null,null,null,null,"awake"]
[null,null,null,null,null,null,null,null,null,"award"]
[null,null,null,null,null,null,null,null,null,"aware"]
[null,null,null,null,null,null,null,null,null,"awash"]
[null,null,null,null,null,null,null,null,null,"awful"]
[null,null,null,null,null,null,null,null,null,"awoke"]
[null,null,null,null,null,null,null,null,null,"axial"]
[null,null,null,null,null,null,null,null,null,"axiom"]
[null,null,null,null,null,null,null,null,null,"axion"]
[null,null,null,null,null,null,null,null,null,"azure"]
[null,null,null,null,null,null,null,null,null,"bacon"]
[null,null,null,null,null,null,null,null,null,"badge"]
[null,null,null,null,null,null,null,null,null,"badly"]
[null,null,null,null,null,null,null,null,null,"bagel"]
[null,null,null,null,null,null,null,null,null,"baggy"]
[null,null,null,null,null,null,null,null,null,"baker"]
[null,null,null,null,null,null,null,null,null,"baler"]
[null,null,null,null,null,null,null,null,null,"balmy"]
[null,null,null,null,null,null,null,null,null,"banal"]
[null,null,null,null,null,null,null,null,null,"banjo"]
[null,null,null,null,null,null,null,null,null,"barge"]
[null,null,null,null,null,null,null,null,null,"baron"]
[null,null,null,null,null,null,null,null,null,"basal"]
[null,null,null,null,null,null,null,null,null,"basic"]
[null,null,null,null,null,null,null,null,null,"basil"]
[null,null,null,null,null,null,null,null,null,"basin"]
[null,null,null,null,null,null,null,null,null,"basis"]
[null,null,null,null,null,null,null,null,null,"baste"]
[null,null,null,null,null,null,null,null,null,"batch"]
[null,null,null,null,null,null,null,null,null,"bathe"]
[null,null,null,null,null,null,null,null,null,"baton"]
[null,null,null,null,null,null,null,null,null,"batty"]
[null,null,null,null,null,null,null,null,null,"bawdy"]
[null,null,null,null,null,null,null,null,null,"bayou"]
[null,null,null,null,null,null,null,null,null,"beach"]
[null,null,null,null,null,null,null,null,null,"beady"]
[null,null,null,null,null,null,null,null,null,"beard"]
[null,null,null,null,null,null,null,null,null,"beast"]
[null,null,null,null,null,null,null,null,null,"beech"]
[null,null,null,null,null,null,null,null,null,"beefy"]
[null,null,null,null,null,null,null,null,null,"befit"]
[null,null,null,null,null,null,null,null,null,"began"]
[null,null,null,null,null,null,null,null,null,"begat"]
[null,null,null,null,null,null,null,null,null,"beget"]
[null,null,null,null,null,null,null,null,null,"begin"]
[null,null,null,null,null,null,null,null,null,"begun"]
[null,null,null,null,null,null,null,null,null,"being"]
[null,null,null,null,null,null,null,null,null,"belch"]
[null,null,null,null,null,null,null,null,null,"belie"]
[null,null,null,null,null,null,null,null,null,"belle"]
[null,null,null,null,null,null,null,null,null,"belly"]
[null,null,null,null,null,null,null,null,null,"below"]
[null,null,null,null,null,null,null,null,null,"bench"]
[null,null,null,null,null,null,null,null,null,"beret"]
[null,null,null,null,null,null,null,null,null,"berry"]
[null,null,null,null,null,null,null,null,null,"berth"]
[null,null,null,null,null,null,null,null,null,"beset"]
[null,null,null,null,null,null,null,null,null,"betel"]
[null,null,null,null,null,null,null,null,null,"bevel"]
[null,null,null,null,null,null,null,null,null,"bezel"]
[null,null,null,null,null,null,null,null,null,"bible"]
[null,null,null,null,null,null,null,null,null,"bicep"]
[null,null,null,null,null,null,null,null,null,"biddy"]
[null,null,null,null,null,null,null,null,null,"bigot"]
[null,null,null,null,null,null,null,null,null,"bilge"]
[null,null,null,null,null,null,null,null,null,"billy"]
[null,null,null,null,null,null,null,null,null,"binge"]
[null,null,null,null,null,null,null,null,null,"bingo"]
[null,null,null,null,null,null,null,null,null,"biome"]
[null,null,null,null,null,null,null,null,null,"birch"]
[null,null,null,null,null,null,null,null,null,"birth"]
[null,null,null,null,null,null,null,null,null,"bison"]
[null,null,null,null,null,null,null,null,null,"bitty"]
[null,null,null,null,null,null,null,null,null,"black"]
[null,null,null,null,null,null,null,null,null,"blade"]
[null,null,null,null,null,null,null,null,null,"blame"]
[null,null,null,null,null,null,null,null,null,"bland"]
[null,null,null,null,null,null,null,null,null,"blank"]
[null,null,null,null,null,null,null,null,null,"blare"]
[null,null,null,null,null,null,null,null,null,"blast"]
[null,null,null,null,null,null,null,null,null,"blaze"]
[null,null,null,null,null,null,null,null,null,"bleak"]
[null,null,null,null,null,null,null,null,null,"bleat"]
[null,null,null,null,null,null,null,null,null,"bleed"]
[null,null,null,null,null,null,null,null,null,"bleep"]
[null,null,null,null,null,null,null,null,null,"blend"]
[null,null,null,null,null,null,null,null,null,"bless"]
[null,null,null,null,null,null,null,null,null,"blimp"]
[null,null,null,null,null,null,null,null,null,"blind"]
[null,null,null,null,null,null,null,null,null,"blink"]
[null,null,null,null,null,null,null,null,null,"bliss"]
[null,null,null,null,null,null,null,null,null,"blitz"]
[null,null,null,null,null,null,null,null,null,"bloat"]
[null,null,null,null,null,null,null,null,null,"block"]
[null,null,null,null,null,null,null,null,null,"bloke"]
[null,null,null,null,null,null,null,null,null,"blond"]
[null,null,null,null,null,null,null,null,null,"blood"]
[null,null,null,null,null,null,null,null,null,"bloom"]
[null,null,null,null,null,null,null,null,null,"blown"]
[null,null,null,null,null,null,null,null,null,"bluer"]
[null,null,null,null,null,null,null,null,null,"bluff"]
[null,null,null,null,null,null,null,null,null,"blunt"]
[null,null,null,null,null,null,null,null,null,"blurb"]
[null,null,null,null,null,null,null,null,null,"blurt"]
[null,null,null,null,null,null,null,null,null,"blush"]
[null,null,null,null,null,null,null,null,null,"board"]
[null,null,null,null,null,null,null,null,null,"boast"]
[null,null,null,null,null,null,null,null,null,"bobby"]
[null,null,null,null,null,null,null,null,null,"boney"]
[null,null,null,null,null,null,null,null,null,"bongo"]
[null,null,null,null,null,null,null,null,null,"bonus"]
[null,null,null,null,null,null,null,null,null,"booby"]
[null,null,null,null,null,null,null,null,null,"boost"]
[null,null,null,null,null,null,null,null,null,"booth"]
[null,null,null,null,null,null,null,null,null,"booty"]
[null,null,null,null,null,null,null,null,null,"booze"]
[null,null,null,null,null,null,null,null,null,"boozy"]
[null,null,null,null,null,null,null,null,null,"borax"]
[null,null,null,null,null,null,null,null,null,"borne"]
[null,null,null,null,null,null,null,null,null,"bosom"]
[null,null,null,null,null,null,null,null,null,"bossy"]
[null,null,null,null,null,null,null,null,null,"botch"]
[null,null,null,null,null,null,null,null,null,"bough"]
[null,null,null,null,null,null,null,null,null,"boule"]
[null,null,null,null,null,null,null,null,null,"bound"]
[null,null,null,null,null,null,null,null,null,"bowel"]
[null,null,null,null,null,null,null,null,null,"boxer"]
[null,null,null,null,null,null,null,null,null,"brace"]
[null,null,null,null,null,null,null,null,null,"braid"]
[null,null,null,null,null,null,null,null,null,"brain"]
[null,null,null,null,null,null,null,null,null,"brake"]
[null,null,null,null,null,null,null,null,null,"brand"]
[null,null,null,null,null,null,null,null,null,"brash"]
[null,null,null,null,null,null,null,null,null,"brass"]
[null,null,null,null,null,null,null,null,null,"brave"]
[null,null,null,null,null,null,null,null,null,"bravo"]
[null,null,null,null,null,null,null,null,null,"brawl"]
[null,null,null,null,null,null,null,null,null,"brawn"]
[null,null,null,null,null,null,null,null,null,"bread"]
[null,null,null,null,null,null,null,null,null,"break"]
[null,null,null,null,null,null,null,null,null,"breed"]
[null,null,null,null,null,null,null,null,null,"briar"]
[null,null,null,null,null,null,null,null,null,"bribe"]
[null,null,null,null,null,null,null,null,null,"brick"]
[null,null,null,null,null,null,null,null,null,"bride"]
[null,null,null,null,null,null,null,null,null,"brief"]
[null,null,null,null,null,null,null,null,null,"brine"]
[null,null,null,null,null,null,null,null,null,"bring"]
[null,null,null,null,null,null,null,null,null,"brink"]
[null,null,null,null,null,null,null,null,null,"briny"]
[null,null,null,null,null,null,null,null,null,"brisk"]
[null,null,null,null,null,null,null,null,null,"broad"]
[null,null,null,null,null,null,null,null,null,"broil"]
[null,null,null,null,null,null,null,null,null,"broke"]
[null,null,null,null,null,null,null,null,null,"brood"]
[null,null,null,null,null,null,null,null,null,"brook"]
[null,null,null,null,null,null,null,null,null,"broom"]
[null,null,null,null,null,null,null,null,null,"broth"]
[null,null,null,null,null,null,null,null,null,"brown"]
[null,null,null,null,null,null,null,null,null,"brunt"]
[null,null,null,null,null,null,null,null,null,"brush"]
[null,null,null,null,null,null,null,null,null,"brute"]
[null,null,null,null,null,null,null,null,null,"buddy"]
[null,null,null,null,null,null,null,null,null,"budge"]
[null,null,null,null,null,null,null,null,null,"buggy"]
[null,null,null,null,null,null,null,null,null,"bugle"]
[null,null,null,null,null,null,null,null,null,"build"]
[null,null,null,null,null,null,null,null,null,"built"]
[null,null,null,null,null,null,null,null,null,"bulge"]
[null,null,null,null,null,null,null,null,null,"bulky"]
[null,null,null,null,null,null,null,null,null,"bully"]
[null,null,null,null,null,null,null,null,null,"bunch"]
[null,null,null,null,null,null,null,null,null,"bunny"]
[null,null,null,null,null,null,null,null,null,"burly"]
[null,null,null,null,null,null,null,null,null,"burnt"]
[null,null,null,null,null,null,null,null,null,"burst"]
[null,null,null,null,null,null,null,null,null,"bused"]
[null,null,null,null,null,null,null,null,null,"bushy"]
[null,null,null,null,null,null,null,null,null,"butch"]
[null,null,null,null,null,null,null,null,null,"butte"]
[null,null,null,null,null,null,null,null,null,"buxom"]
[null,null,null,null,null,null,null,null,null,"buyer"]
[null,null,null,null,null,null,null,null,null,"bylaw"]
[null,null,null,null,null,null,null,null,null,"cabal"]
[null,null,null,null,null,null,null,null,null,"cabby"]
[null,null,null,null,null,null,null,null,null,"cabin"]
[null,null,null,null,null,null,null,null,null,"cable"]
[null,null,null,null,null,null,null,null,null,"cacao"]
[null,null,null,null,null,null,null,null,null,"cache"]
[null,null,null,null,null,null,null,null,null,"cacti"]
[null,null,null,null,null,null,null,null,null,"caddy"]
[null,null,null,null,null,null,null,null,null,"cadet"]
[null,null,null,null,null,null,null,null,null,"cagey"]
[null,null,null,null,null,null,null,null,null,"cairn"]
[null,null,null,null,null,null,null,null,null,"camel"]
[null,null,null,null,null,null,null,null,null,"cameo"]
[null,null,null,null,null,null,null,null,null,"canal"]
[null,null,null,null,null,null,null,null,null,"candy"]
[null,null,null,null,null,null,null,null,null,"canny"]
[null,null,null,null,null,null,null,null,null,"canoe"]
[null,null,null,null,null,null,null,null,null,"canon"]
[null,null,null,null,null,null,null,null,null,"caper"]
[null,null,null,null,null,null,null,null,null,"caput"]
[null,null,null,null,null,null,null,null,null,"carat"]
[null,null,null,null,null,null,null,null,null,"cargo"]
[null,null,null,null,null,null,null,null,null,"carol"]
[null,null,null,null,null,null,null,null,null,"carry"]
[null,null,null,null,null,null,null,null,null,"carve"]
[null,null,null,null,null,null,null,null,null,"caste"]
[null,null,null,null,null,null,null,null,null,"catch"]
[null,null,null,null,null,null,null,null,null,"cater"]
[null,null,null,null,null,null,null,null,null,"catty"]
[null,null,null,null,null,null,null,null,null,"caulk"]
[null,null,null,null,null,null,null,null,null,"cause"]
[null,null,null,null,null,null,null,null,null,"cavil"]
[null,null,null,null,null,null,null,null,null,"cease"]
[null,null,null,null,null,null,null,null,null,"cedar"]
[null,null,null,null,null,null,null,null,null,"cello"]
[null,null,null,null,null,null,null,null,null,"chafe"]
[null,null,null,null,null,null,null,null,null,"chaff"]
[null,null,null,null,null,null,null,null,null,"chain"]
[null,null,null,null,null,null,null,null,null,"chair"]
[null,null,null,null,null,null,null,null,null,"chalk"]
[null,null,null,null,null,null,null,null,null,"champ"]
[null,null,null,null,null,null,null,null,null,"chant"]
[null,null,null,null,null,null,null,null,null,"chaos"]
[null,null,null,null,null,null,null,null,null,"chard"]
[null,null,null,null,null,null,null,null,null,"charm"]
[null,null,null,null,null,null,null,null,null,"chart"]
[null,null,null,null,null,null,null,null,null,"chase"]
[null,null,null,null,null,null,null,null,null,"chasm"]
[null,null,null,null,null,null,null,null,null,"cheap"]
[null,null,null,null,null,null,null,null,null,"cheat"]
[null,null,null,null,null,null,null,null,null,"check"]
[null,null,null,null,null,null,null,null,null,"cheek"]
[null,null,null,null,null,null,null,null,null,"cheer"]
[null,null,null,null,null,null,null,null,null,"chess"]
[null,null,null,null,null,null,null,null,null,"chest"]
[null,null,null,null,null,null,null,null,null,"chick"]
[null,null,null,null,null,null,null,null,null,"chide"]
[null,null,null,null,null,null,null,null,null,"chief"]
[null,null,null,null,null,null,null,null,null,"child"]
[null,null,null,null,null,null,null,null,null,"chili"]
[null,null,null,null,null,null,null,null,null,"chill"]
[null,null,null,null,null,null,null,null,null,"chime"]
[null,null,null,null,null,null,null,null,null,"china"]
[null,null,null,null,null,null,null,null,null,"chirp"]
[null,null,null,null,null,null,null,null,null,"chock"]
[null,null,null,null,null,null,null,null,null,"choir"]
[null,null,null,null,null,null,null,null,null,"choke"]
[null,null,null,null,null,null,null,null,null,"chord"]
[null,null,null,null,null,null,null,null,null,"chore"]
[null,null,null,null,null,null,null,null,null,"chose"]
[null,null,null,null,null,null,null,null,null,"chuck"]
[null,null,null,null,null,null,null,null,null,"chump"]
[null,null,null,null,null,null,null,null,null,"chunk"]
[null,null,null,null,null,null,null,null,null,"churn"]
[null,null,null,null,null,null,null,null,null,"chute"]
[null,null,null,null,null,null,null,null,null,"cider"]
[null,null,null,null,null,null,null,null,null,"cigar"]
[null,null,null,null,null,null,null,null,null,"cinch"]
[null,null,null,null,null,null,null,null,null,"circa"]
[null,null,null,null,null,null,null,null,null,"civic"]
[null,null,null,null,null,null,null,null,null,"civil"]
[null,null,null,null,null,null,null,null,null,"clack"]
[null,null,null,null,null,null,null,null,null,"claim"]
[null,null,null,null,null,null,null,null,null,"clamp"]
[null,null,null,null,null,null,null,null,null,"clang"]
[null,null,null,null,null,null,null,null,null,"clank"]
[null,null,null,null,null,null,null,null,null,"clash"]
[null,null,null,null,null,null,null,null,null,"clasp"]
[null,null,null,null,null,null,null,null,null,"class"]
[null,null,null,null,null,null,null,null,null,"clean"]
[null,null,null,null,null,null,null,null,null,"clear"]
[null,null,null,null,null,null,null,null,null,"cleat"]
[null,null,null,null,null,null,null,null,null,"cleft"]
[null,null,null,null,null,null,null,null,null,"clerk"]
[null,null,null,null,null,null,null,null,null,"click"]
[null,null,null,null,null,null,null,null,null,"cliff"]
[null,null,null,null,null,null,null,null,null,"climb"]
[null,null,null,null,null,null,null,null,null,"cling"]
[null,null,null,null,null,null,null,null,null,"clink"]
[null,null,null,null,null,null,null,null,null,"cloak"]
[null,null,null,null,null,null,null,null,null,"clock"]
[null,null,null,null,null,null,null,null,null,"clone"]
[null,null,null,null,null,null,null,null,null,"close"]
[null,null,null,null,null,null,null,null,null,"cloth"]
[null,null,null,null,null,null,null,null,null,"cloud"]
[null,null,null,null,null,null,null,null,null,"clout"]
[null,null,null,null,null,null,null,null,null,"clove"]
[null,null,null,null,null,null,null,null,null,"clown"]
[null,null,null,null,null,null,null,null,null,"cluck"]
[null,null,null,null,null,null,null,null,null,"clued"]
[null,null,null,null,null,null,null,null,null,"clump"]
[null,null,null,null,null,null,null,null,null,"clung"]
[null,null,null,null,null,null,null,null,null,"coach"]
[null,null,null,null,null,null,null,null,null,"coast"]
[null,null,null,null,null,null,null,null,null,"cobra"]
[null,null,null,null,null,null,null,null,null,"cocoa"]
[null,null,null,null,null,null,null,null,null,"colon"]
[null,null,null,null,null,null,null,null,null,"color"]
[null,null,null,null,null,null,null,null,null,"comet"]
[null,null,null,null,null,null,null,null,null,"comfy"]
[null,null,null,null,null,null,null,null,null,"comic"]
[null,null,null,null,null,null,null,null,null,"comma"]
[null,null,null,null,null,null,null,null,null,"conch"]
[null,null,null,null,null,null,null,null,null,"condo"]
[null,null,null,null,null,null,null,null,null,"conic"]
[null,null,null,null,null,null,null,null,null,"copse"]
[null,null,null,null,null,null,null,null,null,"coral"]
[null,null,null,null,null,null,null,null,null,"corer"]
[null,null,null,null,null,null,null,null,null,"corny"]
[null,null,null,null,null,null,null,null,null,"couch"]
[null,null,null,null,null,null,null,null,null,"cough"]
[null,null,null,null,null,null,null,null,null,"could"]
[null,null,null,null,null,null,null,null,null,"count"]
[null,null,null,null,null,null,null,null,null,"coupe"]
[null,null,null,null,null,null,null,null,null,"court"]
[null,null,null,null,null,null,null,null,null,"coven"]
[null,null,null,null,null,null,null,null,null,"cover"]
[null,null,null,null,null,null,null,null,null,"covet"]
[null,null,null,null,null,null,null,null,null,"covey"]
[null,null,null,null,null,null,null,null,null,"cower"]
[null,null,null,null,null,null,null,null,null,"coyly"]
[null,null,null,null,null,null,null,null,null,"crack"]
[null,null,null,null,null,null,null,null,null,"craft"]
[null,null,null,null,null,null,null,null,null,"cramp"]
[null,null,null,null,null,null,null,null,null,"crane"]
[null,null,null,null,null,null,null,null,null,"crank"]
[null,null,null,null,null,null,null,null,null,"crash"]
[null,null,null,null,null,null,null,null,null,"crass"]
[null,null,null,null,null,null,null,null,null,"crate"]
[null,null,null,null,null,null,null,null,null,"crave"]
[null,null,null,null,null,null,null,null,null,"crawl"]
[null,null,null,null,null,null,null,null,null,"craze"]
[null,null,null,null,null,null,null,null,null,"crazy"]
[null,null,null,null,null,null,null,null,null,"creak"]
[null,null,null,null,null,null,null,null,null,"cream"]
[null,null,null,null,null,null,null,null,null,"credo"]
[null,null,null,null,null,null,null,null,null,"creed"]
[null,null,null,null,null,null,null,null,null,"creek"]
[null,null,null,null,null,null,null,null,null,"creep"]
[null,null,null,null,null,null,null,null,null,"creme"]
[null,null,null,null,null,null,null,null,null,"crepe"]
[null,null,null,null,null,null,null,null,null,"crept"]
[null,null,null,null,null,null,null,null,null,"cress"]
[null,null,null,null,null,null,null,null,null,"crest"]
[null,null,null,null,null,null,null,null,null,"crick"]
[null,null,null,null,null,null,null,null,null,"cried"]
[null,null,null,null,null,null,null,null,null,"crier"]
[null,null,null,null,null,null,null,null,null,"crime"]
[null,null,null,null,null,null,null,null,null,"crimp"]
[null,null,null,null,null,null,null,null,null,"crisp"]
[null,null,null,null,null,null,null,null,null,"croak"]
[null,null,null,null,null,null,null,null,null,"crock"]
[null,null,null,null,null,null,null,null,null,"crone"]
[null,null,null,null,null,null,null,null,null,"crony"]
[null,null,null,null,null,null,null,null,null,"crook"]
[null,null,null,null,null,null,null,null,null,"cross"]
[null,null,null,null,null,null,null,null,null,"croup"]
[null,null,null,null,null,null,null,null,null,"crowd"]
[null,null,null,null,null,null,null,null,null,"crown"]
[null,null,null,null,null,null,null,null,null,"crude"]
[null,null,null,null,null,null,null,null,null,"cruel"]
[null,null,null,null,null,null,null,null,null,"crumb"]
[null,null,null,null,null,null,null,null,null,"crump"]
[null,null,null,null,null,null,null,null,null,"crush"]
[null,null,null,null,null,null,null,null,null,"crust"]
[null,null,null,null,null,null,null,null,null,"crypt"]
[null,null,null,null,null,null,null,null,null,"cubic"]
[null,null,null,null,null,null,null,null,null,"cumin"]
[null,null,null,null,null,null,null,null,null,"curio"]
[null,null,null,null,null,null,null,null,null,"curly"]
[null,null,null,null,null,null,null,null,null,"curry"]
[null,null,null,null,null,null,null,null,null,"curse"]
[null,null,null,null,null,null,null,null,null,"curve"]
[null,null,null,null,null,null,null,null,null,"curvy"]
[null,null,null,null,null,null,null,null,null,"cutie"]
[null,null,null,null,null,null,null,null,null,"cyber"]
[null,null,null,null,null,null,null,null,null,"cycle"]
[null,null,null,null,null,null,null,null,null,"cynic"]
[null,null,null,null,null,null,null,null,null,"daddy"]
[null,null,null,null,null,null,null,null,null,"daily"]
[null,null,null,null,null,null,null,null,null,"dairy"]
[null,null,null,null,null,null,null,null,null,"daisy"]
[null,null,null,null,null,null,null,null,null,"dally"]
[null,null,null,null,null,null,null,null,null,"dance"]
[null,null,null,null,null,null,null,null,null,"dandy"]
[null,null,null,null,null,null,null,null,null,"datum"]
[null,null,null,null,null,null,null,null,null,"daunt"]
[null,null,null,null,null,null,null,null,null,"dealt"]
[null,null,null,null,null,null,null,null,null,"death"]
[null,null,null,null,null,null,null,null,null,"debar"]
[null,null,null,null,null,null,null,null,null,"debit"]
[null,null,null,null,null,null,null,null,null,"debug"]
[null,null,null,null,null,null,null,null,null,"debut"]
[null,null,null,null,null,null,null,null,null,"decal"]
[null,null,null,null,null,null,null,null,null,"decay"]
[null,null,null,null,null,null,null,null,null,"decor"]
[null,null,null,null,null,null,null,null,null,"decoy"]
[null,null,null,null,null,null,null,null,null,"decry"]
[null,null,null,null,null,null,null,null,null,"defer"]
[null,null,null,null,null,null,null,null,null,"deign"]
[null,null,null,null,null,null,null,null,null,"deity"]
[null,null,null,null,null,null,null,null,null,"delay"]
[null,null,null,null,null,null,null,null,null,"delta"]
[null,null,null,null,null,null,null,null,null,"delve"]
[null,null,null,null,null,null,null,null,null,"demon"]
[null,null,null,null,null,null,null,null,null,"demur"]
[null,null,null,null,null,null,null,null,null,"denim"]
[null,null,null,null,null,null,null,null,null,"dense"]
[null,null,null,null,null,null,null,null,null,"depot"]
[null,null,null,null,null,null,null,null,null,"depth"]
[null,null,null,null,null,null,null,null,null,"derby"]
[null,null,null,null,null,null,null,null,null,"deter"]
[null,null,null,null,null,null,null,null,null,"detox"]
[null,null,null,null,null,null,null,null,null,"deuce"]
[null,null,null,null,null,null,null,null,null,"devil"]
[null,null,null,null,null,null,null,null,null,"diary"]
[null,null,null,null,null,null,null,null,null,"dicey"]
[null,null,null,null,null,null,null,null,null,"digit"]
[null,null,null,null,null,null,null,null,null,"dilly"]
[null,null,null,null,null,null,null,null,null,"dimly"]
[null,null,null,null,null,null,null,null,null,"diner"]
[null,null,null,null,null,null,null,null,null,"dingo"]
[null,null,null,null,null,null,null,null,null,"dingy"]
[null,null,null,null,null,null,null,null,null,"diode"]
[null,null,null,null,null,null,null,null,null,"dirge"]
[null,null,null,null,null,null,null,null,null,"dirty"]
[null,null,null,null,null,null,null,null,null,"disco"]
[null,null,null,null,null,null,null,null,null,"ditch"]
[null,null,null,null,null,null,null,null,null,"ditto"]
[null,null,null,null,null,null,null,null,null,"ditty"]
[null,null,null,null,null,null,null,null,null,"diver"]
[null,null,null,null,null,null,null,null,null,"dizzy"]
[null,null,null,null,null,null,null,null,null,"dodge"]
[null,null,null,null,null,null,null,null,null,"dodgy"]
[null,null,null,null,null,null,null,null,null,"dogma"]
[null,null,null,null,null,null,null,null,null,"doing"]
[null,null,null,null,null,null,null,null,null,"dolly"]
[null,null,null,null,null,null,null,null,null,"donor"]
[null,null,null,null,null,null,null,null,null,"donut"]
[null,null,null,null,null,null,null,null,null,"dopey"]
[null,null,null,null,null,null,null,null,null,"doubt"]
[null,null,null,null,null,null,null,null,null,"dough"]
[null,null,null,null,null,null,null,null,null,"dowdy"]
[null,null,null,null,null,null,null,null,null,"dowel"]
[null,null,null,null,null,null,null,null,null,"downy"]
[null,null,null,null,null,null,null,null,null,"dowry"]
[null,null,null,null,null,null,null,null,null,"dozen"]
[null,null,null,null,null,null,null,null,null,"draft"]
[null,null,null,null,null,null,null,null,null,"drain"]
[null,null,null,null,null,null,null,null,null,"drake"]
[null,null,null,null,null,null,null,null,null,"drama"]
[null,null,null,null,null,null,null,null,null,"drank"]
[null,null,null,null,null,null,null,null,null,"drape"]
[null,null,null,null,null,null,null,null,null,"drawl"]
[null,null,null,null,null,null,null,null,null,"drawn"]
[null,null,null,null,null,null,null,null,null,"dread"]
[null,null,null,null,null,null,null,null,null,"dream"]
[null,null,null,null,null,null,null,null,null,"dress"]
[null,null,null,null,null,null,null,null,null,"dried"]
[null,null,null,null,null,null,null,null,null,"drier"]
[null,null,null,null,null,null,null,null,null,"drift"]
[null,null,null,null,null,null,null,null,null,"drill"]
[null,null,null,null,null,null,null,null,null,"drink"]
[null,null,null,null,null,null,null,null,null,"drive"]
[null,null,null,null,null,null,null,null,null,"droit"]
[null,null,null,null,null,null,null,null,null,"droll"]
[null,null,null,null,null,null,null,null,null,"drone"]
[null,null,null,null,null,null,null,null,null,"drool"]
[null,null,null,null,null,null,null,null,null,"droop"]
[null,null,null,null,null,null,null,null,null,"dross"]
[null,null,null,null,null,null,null,null,null,"drove"]
[null,null,null,null,null,null,null,null,null,"drown"]
[null,null,null,null,null,null,null,null,null,"druid"]
[null,null,null,null,null,null,null,null,null,"drunk"]
[null,null,null,null,null,null,null,null,null,"dryer"]
[null,null,null,null,null,null,null,null,null,"dryly"]
[null,null,null,null,null,null,null,null,null,"duchy"]
[null,null,null,null,null,null,null,null,null,"dully"]
[null,null,null,null,null,null,null,null,null,"dummy"]
[null,null,null,null,null,null,null,null,null,"dumpy"]
[null,null,null,null,null,null,null,null,null,"dunce"]
[null,null,null,null,null,null,null,null,null,"dusky"]
[null,null,null,null,null,null,null,null,null,"dusty"]
[null,null,null,null,null,null,null,null,null,"dutch"]
[null,null,null,null,null,null,null,null,null,"duvet"]
[null,null,null,null,null,null,null,null,null,"dwarf"]
[null,null,null,null,null,null,null,null,null,"dwell"]
[null,null,null,null,null,null,null,null,null,"dwelt"]
[null,null,null,null,null,null,null,null,null,"dying"]
[null,null,null,null,null,null,null,null,null,"eager"]
[null,null,null,null,null,null,null,null,null,"eagle"]
[null,null,null,null,null,null,null,null,null,"early"]
[null,null,null,null,null,null,null,null,null,"earth"]
[null,null,null,null,null,null,null,null,null,"easel"]
[null,null,null,null,null,null,null,null,null,"eaten"]
[null,null,null,null,null,null,null,null,null,"eater"]
[null,null,null,null,null,null,null,null,null,"ebony"]
[null,null,null,null,null,null,null,null,null,"eclat"]
[null,null,null,null,null,null,null,null,null,"edict"]
[null,null,null,null,null,null,null,null,null,"edify"]
[null,null,null,null,null,null,null,null,null,"eerie"]
[null,null,null,null,null,null,null,null,null,"egret"]
[null,null,null,null,null,null,null,null,null,"eight"]
[null,null,null,null,null,null,null,null,null,"eject"]
[null,null,null,null,null,null,null,null,null,"eking"]
[null,null,null,null,null,null,null,null,null,"elate"]
[null,null,null,null,null,null,null,null,null,"elbow"]
[null,null,null,null,null,null,null,null,null,"elder"]
[null,null,null,null,null,null,null,null,null,"elect"]
[null,null,null,null,null,null,null,null,null,"elegy"]
[null,null,null,null,null,null,null,null,null,"elfin"]
[null,null,null,null,null,null,null,null,null,"elide"]
[null,null,null,null,null,null,null,null,null,"elite"]
[null,null,null,null,null,null,null,null,null,"elope"]
[null,null,null,null,null,null,null,null,null,"elude"]
[null,null,null,null,null,null,null,null,null,"email"]
[null,null,null,null,null,null,null,null,null,"embed"]
[null,null,null,null,null,null,null,null,null,"ember"]
[null,null,null,null,null,null,null,null,null,"emcee"]
[null,null,null,null,null,null,null,null,null,"empty"]
[null,null,null,null,null,null,null,null,null,"enact"]
[null,null,null,null,null,null,null,null,null,"endow"]
[null,null,null,null,null,null,null,null,null,"enema"]
[null,null,null,null,null,null,null,null,null,"enemy"]
[null,null,null,null,null,null,null,null,null,"enjoy"]
[null,null,null,null,null,null,null,null,null,"ennui"]
[null,null,null,null,null,null,null,null,null,"ensue"]
[null,null,null,null,null,null,null,null,null,"enter"]
[null,null,null,null,null,null,null,null,null,"entry"]
[null,null,null,null,null,null,null,null,null,"envoy"]
[null,null,null,null,null,null,null,null,null,"epoch"]
[null,null,null,null,null,null,null,null,null,"epoxy"]
[null,null,null,null,null,null,null,null,null,"equal"]
[null,null,null,null,null,null,null,null,null,"equip"]
[null,null,null,null,null,null,null,null,null,"erase"]
[null,null,null,null,null,null,null,null,null,"erect"]
[null,null,null,null,null,null,null,null,null,"erode"]
[null,null,null,null,null,null,null,null,null,"error"]
[null,null,null,null,null,null,null,null,null,"erupt"]
[null,null,null,null,null,null,null,null,null,"essay"]
[null,null,null,null,null,null,null,null,null,"ester"]
[null,null,null,null,null,null,null,null,null,"ether"]
[null,null,null,null,null,null,null,null,null,"ethic"]
[null,null,null,null,null,null,null,null,null,"ethos"]
[null,null,null,null,null,null,null,null,null,"etude"]
[null,null,null,null,null,null,null,null,null,"evade"]
[null,null,null,null,null,null,null,null,null,"event"]
[null,null,null,null,null,null,null,null,null,"every"]
[null,null,null,null,null,null,null,null,null,"evict"]
[null,null,null,null,null,null,null,null,null,"evoke"]
[null,null,null,null,null,null,null,null,null,"exact"]
[null,null,null,null,null,null,null,null,null,"exalt"]
[null,null,null,null,null,null,null,null,null,"excel"]
[null,null,null,null,null,null,null,null,null,"exert"]
[null,null,null,null,null,null,null,null,null,"exile"]
[null,null,null,null,null,null,null,null,null,"exist"]
[null,null,null,null,null,null,null,null,null,"expel"]
[null,null,null,null,null,null,null,null,null,"extol"]
[null,null,null,null,null,null,null,null,null,"extra"]
[null,null,null,null,null,null,null,null,null,"exult"]
[null,null,null,null,null,null,null,null,null,"eying"]
[null,null,null,null,null,null,null,null,null,"fable"]
[null,null,null,null,null,null,null,null,null,"facet"]
[null,null,null,null,null,null,null,null,null,"faint"]
[null,null,null,null,null,null,null,null,null,"fairy"]
[null,null,null,null,null,null,null,null,null,"faith"]
[null,null,null,null,null,null,null,null,null,"false"]
[null,null,null,null,null,null,null,null,null,"fancy"]
[null,null,null,null,null,null,null,null,null,"fanny"]
[null,null,null,null,null,null,null,null,null,"farce"]
[null,null,null,null,null,null,null,null,null,"fatal"]
[null,null,null,null,null,null,null,null,null,"fatty"]
[null,null,null,null,null,null,null,null,null,"fault"]
[null,null,null,null,null,null,null,null,null,"fauna"]
[null,null,null,null,null,null,null,null,null,"favor"]
[null,null,null,null,null,null,null,null,null,"feast"]
[null,null,null,null,null,null,null,null,null,"fecal"]
[null,null,null,null,null,null,null,null,null,"feign"]
[null,null,null,null,null,null,null,null,null,"fella"]
[null,null,null,null,null,null,null,null,null,"felon"]
[null,null,null,null,null,null,null,null,null,"femme"]
[null,null,null,null,null,null,null,null,null,"femur"]
[null,null,null,null,null,null,null,null,null,"fence"]
[null,null,null,null,null,null,null,null,null,"feral"]
[null,null,null,null,null,null,null,null,null,"ferry"]
[null,null,null,null,null,null,null,null,null,"fetal"]
[null,null,null,null,null,null,null,null,null,"fetch"]
[null,null,null,null,null,null,null,null,null,"fetid"]
[null,null,null,null,null,null,null,null,null,"fetus"]
[null,null,null,null,null,null,null,null,null,"fever"]
[null,null,null,null,null,null,null,null,null,"fewer"]
[null,null,null,null,null,null,null,null,null,"fiber"]
[null,null,null,null,null,null,null,null,null,"ficus"]
[null,null,null,null,null,null,null,null,null,"field"]
[null,null,null,null,null,null,null,null,null,"fiend"]
[null,null,null,null,null,null,null,null,null,"fiery"]
[null,null,null,null,null,null,null,null,null,"fifth"]
[null,null,null,null,null,null,null,null,null,"fifty"]
[null,null,null,null,null,null,null,null,null,"fight"]
[null,null,null,null,null,null,null,null,null,"filer"]
[null,null,null,null,null,null,null,null,null,"filet"]
[null,null,null,null,null,null,null,null,null,"filly"]
[null,null,null,null,null,null,null,null,null,"filmy"]
[null,null,null,null,null,null,null,null,null,"filth"]
[null,null,null,null,null,null,null,null,null,"final"]
[null,null,null,null,null,null,null,null,null,"finch"]
[null,null,null,null,null,null,null,null,null,"finer"]
[null,null,null,null,null,null,null,null,null,"first"]
[null,null,null,null,null,null,null,null,null,"fishy"]
[null,null,null,null,null,null,null,null,null,"fixer"]
[null,null,null,null,null,null,null,null,null,"fizzy"]
[null,null,null,null,null,null,null,null,null,"fjord"]
[null,null,null,null,null,null,null,null,null,"flack"]
[null,null,null,null,null,null,null,null,null,"flail"]
[null,null,null,null,null,null,null,null,null,"flair"]
[null,null,null,null,null,null,null,null,null,"flake"]
[null,null,null,null,null,null,null,null,null,"flaky"]
[null,null,null,null,null,null,null,null,null,"flame"]
[null,null,null,null,null,null,null,null,null,"flank"]
[null,null,null,null,null,null,null,null,null,"flare"]
[null,null,null,null,null,null,null,null,null,"flash"]
[null,null,null,null,null,null,null,null,null,"flask"]
[null,null,null,null,null,null,null,null,null,"fleck"]
[null,null,null,null,null,null,null,null,null,"fleet"]
[null,null,null,null,null,null,null,null,null,"flesh"]
[null,null,null,null,null,null,null,null,null,"flick"]
[null,null,null,null,null,null,null,null,null,"flier"]
[null,null,null,null,null,null,null,null,null,"fling"]
[null,null,null,null,null,null,null,null,null,"flint"]
[null,null,null,null,null,null,null,null,null,"flirt"]
[null,null,null,null,null,null,null,null,null,"float"]
[null,null,null,null,null,null,null,null,null,"flock"]
[null,null,null,null,null,null,null,null,null,"flood"]
[null,null,null,null,null,null,null,null,null,"floor"]
[null,null,null,null,null,null,null,null,null,"flora"]
[null,null,null,null,null,null,null,null,null,"floss"]
[null,null,null,null,null,null,null,null,null,"flour"]
[null,null,null,null,null,null,null,null,null,"flout"]
[null,null,null,null,null,null,null,null,null,"flown"]
[null,null,null,null,null,null,null,null,null,"fluff"]
[null,null,null,null,null,null,null,null,null,"fluid"]
[null,null,null,null,null,null,null,null,null,"fluke"]
[null,null,null,null,null,null,null,null,null,"flume"]
[null,null,null,null,null,null,null,null,null,"flung"]
[null,null,null,null,null,null,null,null,null,"flunk"]
[null,null,null,null,null,null,null,null,null,"flush"]
[null,null,null,null,null,null,null,null,null,"flute"]
[null,null,null,null,null,null,null,null,null,"flyer"]
[null,null,null,null,null,null,null,null,null,"foamy"]
[null,null,null,null,null,null,null,null,null,"focal"]
[null,null,null,null,null,null,null,null,null,"focus"]
[null,null,null,null,null,null,null,null,null,"foggy"]
[null,null,null,null,null,null,null,null,null,"foist"]
[null,null,null,null,null,null,null,null,null,"folio"]
[null,null,null,null,null,null,null,null,null,"folly"]
[null,null,null,null,null,null,null,null,null,"foray"]
[null,null,null,null,null,null,null,null,null,"force"]
[null,null,null,null,null,null,null,null,null,"forge"]
[null,null,null,null,null,null,null,null,null,"forgo"]
[null,null,null,null,null,null,null,null,null,"forte"]
[null,null,null,null,null,null,null,null,null,"forth"]
[null,null,null,null,null,null,null,null,null,"forty"]
[null,null,null,null,null,null,null,null,null,"forum"]
[null,null,null,null,null,null,null,null,null,"found"]
[null,null,null,null,null,null,null,null,null,"foyer"]
[null,null,null,null,null,null,null,null,null,"frail"]
[null,null,null,null,null,null,null,null,null,"frame"]
[null,null,null,null,null,null,null,null,null,"frank"]
[null,null,null,null,null,null,null,null,null,"fraud"]
[null,null,null,null,null,null,null,null,null,"freak"]
[null,null,null,null,null,null,null,null,null,"freed"]
[null,null,null,null,null,null,null,null,null,"freer"]
[null,null,null,null,null,null,null,null,null,"fresh"]
[null,null,null,null,null,null,null,null,null,"friar"]
[null,null,null,null,null,null,null,null,null,"fried"]
[null,null,null,null,null,null,null,null,null,"frill"]
[null,null,null,null,null,null,null,null,null,"frisk"]
[null,null,null,null,null,null,null,null,null,"fritz"]
[null,null,null,null,null,null,null,null,null,"frock"]
[null,null,null,null,null,null,null,null,null,"frond"]
[null,null,null,null,null,null,null,null,null,"front"]
[null,null,null,null,null,null,null,null,null,"frost"]
[null,null,null,null,null,null,null,null,null,"froth"]
[null,null,null,null,null,null,null,null,null,"frown"]
[null,null,null,null,null,null,null,null,null,"froze"]
[null,null,null,null,null,null,null,null,null,"fruit"]
[null,null,null,null,null,null,null,null,null,"fudge"]
[null,null,null,null,null,null,null,null,null,"fugue"]
[null,null,null,null,null,null,null,null,null,"fully"]
[null,null,null,null,null,null,null,null,null,"fungi"]
[null,null,null,null,null,null,null,null,null,"funky"]
[null,null,null,null,null,null,null,null,null,"funny"]
[null,null,null,null,null,null,null,null,null,"furor"]
[null,null,null,null,null,null,null,null,null,"furry"]
[null,null,null,null,null,null,null,null,null,"fussy"]
[null,null,null,null,null,null,null,null,null,"fuzzy"]
[null,null,null,null,null,null,null,null,null,"gaffe"]
[null,null,null,null,null,null,null,null,null,"gaily"]
[null,null,null,null,null,null,null,null,null,"gamer"]
[null,null,null,null,null,null,null,null,null,"gamma"]
[null,null,null,null,null,null,null,null,null,"gamut"]
[null,null,null,null,null,null,null,null,null,"gassy"]
[null,null,null,null,null,null,null,null,null,"gaudy"]
[null,null,null,null,null,null,null,null,null,"gauge"]
[null,null,null,null,null,null,null,null,null,"gaunt"]
[null,null,null,null,null,null,null,null,null,"gauze"]
[null,null,null,null,null,null,null,null,null,"gavel"]
[null,null,null,null,null,null,null,null,null,"gawky"]
[null,null,null,null,null,null,null,null,null,"gayer"]
[null,null,null,null,null,null,null,null,null,"gayly"]
[null,null,null,null,null,null,null,null,null,"gazer"]
[null,null,null,null,null,null,null,null,null,"gecko"]
[null,null,null,null,null,null,null,null,null,"geeky"]
[null,null,null,null,null,null,null,null,null,"geese"]
[null,null,null,null,null,null,null,null,null,"genie"]
[null,null,null,null,null,null,null,null,null,"genre"]
[null,null,null,null,null,null,null,null,null,"ghost"]
[null,null,null,null,null,null,null,null,null,"ghoul"]
[null,null,null,null,null,null,null,null,null,"giant"]
[null,null,null,null,null,null,null,null,null,"giddy"]
[null,null,null,null,null,null,null,null,null,"gipsy"]
[null,null,null,null,null,null,null,null,null,"girly"]
[null,null,null,null,null,null,null,null,null,"girth"]
[null,null,null,null,null,null,null,null,null,"given"]
[null,null,null,null,null,null,null,null,null,"giver"]
[null,null,null,null,null,null,null,null,null,"glade"]
[null,null,null,null,null,null,null,null,null,"gland"]
[null,null,null,null,null,null,null,null,null,"glare"]
[null,null,null,null,null,null,null,null,null,"glass"]
[null,null,null,null,null,null,null,null,null,"glaze"]
[null,null,null,null,null,null,null,null,null,"gleam"]
[null,null,null,null,null,null,null,null,null,"glean"]
[null,null,null,null,null,null,null,null,null,"glide"]
[null,null,null,null,null,null,null,null,null,"glint"]
[null,null,null,null,null,null,null,null,null,"gloat"]
[null,null,null,null,null,null,null,null,null,"globe"]
[null,null,null,null,null,null,null,null,null,"gloom"]
[null,null,null,null,null,null,null,null,null,"glory"]
[null,null,null,null,null,null,null,null,null,"gloss"]
[null,null,null,null,null,null,null,null,null,"glove"]
[null,null,null,null,null,null,null,null,null,"glyph"]
[null,null,null,null,null,null,null,null,null,"gnash"]
[null,null,null,null,null,null,null,null,null,"gnome"]
[null,null,null,null,null,null,null,null,null,"godly"]
[null,null,null,null,null,null,null,null,null,"going"]
[null,null,null,null,null,null,null,null,null,"golem"]
[null,null,null,null,null,null,null,null,null,"golly"]
[null,null,null,null,null,null,null,null,null,"gonad"]
[null,null,null,null,null,null,null,null,null,"goner"]
[null,null,null,null,null,null,null,null,null,"goody"]
[null,null,null,null,null,null,null,null,null,"gooey"]
[null,null,null,null,null,null,null,null,null,"goofy"]
[null,null,null,null,null,null,null,null,null,"goose"]
[null,null,null,null,null,null,null,null,null,"gorge"]
[null,null,null,null,null,null,null,null,null,"gouge"]
[null,null,null,null,null,null,null,null,null,"gourd"]
[null,null,null,null,null,null,null,null,null,"grace"]
[null,null,null,null,null,null,null,null,null,"grade"]
[null,null,null,null,null,null,null,null,null,"graft"]
[null,null,null,null,null,null,null,null,null,"grail"]
[null,null,null,null,null,null,null,null,null,"grain"]
[null,null,null,null,null,null,null,null,null,"grand"]
[null,null,null,null,null,null,null,null,null,"grant"]
[null,null,null,null,null,null,null,null,null,"grape"]
[null,null,null,null,null,null,null,null,null,"graph"]
[null,null,null,null,null,null,null,null,null,"grasp"]
[null,null,null,null,null,null,null,null,null,"grass"]
[null,null,null,null,null,null,null,null,null,"grate"]
[null,null,null,null,null,null,null,null,null,"grave"]
[null,null,null,null,null,null,null,null,null,"gravy"]
[null,null,null,null,null,null,null,null,null,"graze"]
[null,null,null,null,null,null,null,null,null,"great"]
[null,null,null,null,null,null,null,null,null,"greed"]
[null,null,null,null,null,null,null,null,null,"green"]
[null,null,null,null,null,null,null,null,null,"greet"]
[null,null,null,null,null,null,null,null,null,"grief"]
[null,null,null,null,null,null,null,null,null,"grill"]
[null,null,null,null,null,null,null,null,null,"grime"]
[null,null,null,null,null,null,null,null,null,"grimy"]
[null,null,null,null,null,null,null,null,null,"grind"]
[null,null,null,null,null,null,null,null,null,"gripe"]
[null,null,null,null,null,null,null,null,null,"groan"]
[null,null,null,null,null,null,null,null,null,"groin"]
[null,null,null,null,null,null,null,null,null,"groom"]
[null,null,null,null,null,null,null,null,null,"grope"]
[null,null,null,null,null,null,null,null,null,"gross"]
[null,null,null,null,null,null,null,null,null,"group"]
[null,null,null,null,null,null,null,null,null,"grout"]
[null,null,null,null,null,null,null,null,null,"grove"]
[null,null,null,null,null,null,null,null,null,"growl"]
[null,null,null,null,null,null,null,null,null,"grown"]
[null,null,null,null,null,null,null,null,null,"gruel"]
[null,null,null,null,null,null,null,null,null,"gruff"]
[null,null,null,null,null,null,null,null,null,"grunt"]
[null,null,null,null,null,null,null,null,null,"guard"]
[null,null,null,null,null,null,null,null,null,"guava"]
[null,null,null,null,null,null,null,null,null,"guess"]
[null,null,null,null,null,null,null,null,null,"guest"]
[null,null,null,null,null,null,null,null,null,"guide"]
[null,null,null,null,null,null,null,null,null,"guild"]
[null,null,null,null,null,null,null,null,null,"guile"]
[null,null,null,null,null,null,null,null,null,"guilt"]
[null,null,null,null,null,null,null,null,null,"guise"]
[null,null,null,null,null,null,null,null,null,"gulch"]
[null,null,null,null,null,null,null,null,null,"gully"]
[null,null,null,null,null,null,null,null,null,"gumbo"]
[null,null,null,null,null,null,null,null,null,"gummy"]
[null,null,null,null,null,null,null,null,null,"guppy"]
[null,null,null,null,null,null,null,null,null,"gusto"]
[null,null,null,null,null,null,null,null,null,"gusty"]
[null,null,null,null,null,null,null,null,null,"gypsy"]
[null,null,null,null,null,null,null,null,null,"habit"]
[null,null,null,null,null,null,null,null,null,"hairy"]
[null,null,null,null,null,null,null,null,null,"halve"]
[null,null,null,null,null,null,null,null,null,"handy"]
[null,null,null,null,null,null,null,null,null,"happy"]
[null,null,null,null,null,null,null,null,null,"hardy"]
[null,null,null,null,null,null,null,null,null,"harem"]
[null,null,null,null,null,null,null,null,null,"harpy"]
[null,null,null,null,null,null,null,null,null,"harry"]
[null,null,null,null,null,null,null,null,null,"harsh"]
[null,null,null,null,null,null,null,null,null,"haste"]
[null,null,null,null,null,null,null,null,null,"hasty"]
[null,null,null,null,null,null,null,null,null,"hatch"]
[null,null,null,null,null,null,null,null,null,"hater"]
[null,null,null,null,null,null,null,null,null,"haunt"]
[null,null,null,null,null,null,null,null,null,"haute"]
[null,null,null,null,null,null,null,null,null,"haven"]
[null,null,null,null,null,null,null,null,null,"havoc"]
[null,null,null,null,null,null,null,null,null,"hazel"]
[null,null,null,null,null,null,null,null,null,"heady"]
[null,null,null,null,null,null,null,null,null,"heard"]
[null,null,null,null,null,null,null,null,null,"heart"]
[null,null,null,null,null,null,null,null,null,"heath"]
[null,null,null,null,null,null,null,null,null,"heave"]
[null,null,null,null,null,null,null,null,null,"heavy"]
[null,null,null,null,null,null,null,null,null,"hedge"]
[null,null,null,null,null,null,null,null,null,"hefty"]
[null,null,null,null,null,null,null,null,null,"heist"]
[null,null,null,null,null,null,null,null,null,"helix"]
[null,null,null,null,null,null,null,null,null,"hello"]
[null,null,null,null,null,null,null,null,null,"hence"]
[null,null,null,null,null,null,null,null,null,"heron"]
[null,null,null,null,null,null,null,null,null,"hilly"]
[null,null,null,null,null,null,null,null,null,"hinge"]
[null,null,null,null,null,null,null,null,null,"hippo"]
[null,null,null,null,null,null,null,null,null,"hippy"]
[null,null,null,null,null,null,null,null,null,"hitch"]
[null,null,null,null,null,null,null,null,null,"hoard"]
[null,null,null,null,null,null,null,null,null,"hobby"]
[null,null,null,null,null,null,null,null,null,"hoist"]
[null,null,null,null,null,null,null,null,null,"holly"]
[null,null,null,null,null,null,null,null,null,"homer"]
[null,null,null,null,null,null,null,null,null,"honey"]
[null,null,null,null,null,null,null,null,null,"honor"]
[null,null,null,null,null,null,null,null,null,"horde"]
[null,null,null,null,null,null,null,null,null,"horny"]
[null,null,null,null,null,null,null,null,null,"horse"]
[null,null,null,null,null,null,null,null,null,"hotel"]
[null,null,null,null,null,null,null,null,null,"hotly"]
[null,null,null,null,null,null,null,null,null,"hound"]
[null,null,null,null,null,null,null,null,null,"house"]
[null,null,null,null,null,null,null,null,null,"hovel"]
[null,null,null,null,null,null,null,null,null,"hover"]
[null,null,null,null,null,null,null,null,null,"howdy"]
[null,null,null,null,null,null,null,null,null,"human"]
[null,null,null,null,null,null,null,null,null,"humid"]
[null,null,null,null,null,null,null,null,null,"humor"]
[null,null,null,null,null,null,null,null,null,"humph"]
[null,null,null,null,null,null,null,null,null,"humus"]
[null,null,null,null,null,null,null,null,null,"hunch"]
[null,null,null,null,null,null,null,null,null,"hunky"]
[null,null,null,null,null,null,null,null,null,"hurry"]
[null,null,null,null,null,null,null,null,null,"husky"]
[null,null,null,null,null,null,null,null,null,"hussy"]
[null,null,null,null,null,null,null,null,null,"hutch"]
[null,null,null,null,null,null,null,null,null,"hydro"]
[null,null,null,null,null,null,null,null,null,"hyena"]
[null,null,null,null,null,null,null,null,null,"hymen"]
[null,null,null,null,null,null,null,null,null,"hyper"]
[null,null,null,null,null,null,null,null,null,"icily"]
[null,null,null,null,null,null,null,null,null,"icing"]
[null,null,null,null,null,null,null,null,null,"ideal"]
[null,null,null,null,null,null,null,null,null,"idiom"]
[null,null,null,null,null,null,null,null,null,"idiot"]
[null,null,null,null,null,null,null,null,null,"idler"]
[null,null,null,null,null,null,null,null,null,"idyll"]
[null,null,null,null,null,null,null,null,null,"igloo"]
[null,null,null,null,null,null,null,null,null,"iliac"]
[null,null,null,null,null,null,null,null,null,"image"]
[null,null,null,null,null,null,null,null,null,"imbue"]
[null,null,null,null,null,null,null,null,null,"impel"]
[null,null,null,null,null,null,null,null,null,"imply"]
[null,null,null,null,null,null,null,null,null,"inane"]
[null,null,null,null,null,null,null,null,null,"inbox"]
[null,null,null,null,null,null,null,null,null,"incur"]
[null,null,null,null,null,null,null,null,null,"index"]
[null,null,null,null,null,null,null,null,null,"inept"]
[null,null,null,null,null,null,null,null,null,"inert"]
[null,null,null,null,null,null,null,null,null,"infer"]
[null,null,null,null,null,null,null,null,null,"ingot"]
[null,null,null,null,null,null,null,null,null,"inlay"]
[null,null,null,null,null,null,null,null,null,"inlet"]
[null,null,null,null,null,null,null,null,null,"inner"]
[null,null,null,null,null,null,null,null,null,"input"]
[null,null,null,null,null,null,null,null,null,"inter"]
[null,null,null,null,null,null,null,null,null,"intro"]
[null,null,null,null,null,null,null,null,null,"ionic"]
[null,null,null,null,null,null,null,null,null,"irate"]
[null,null,null,null,null,null,null,null,null,"irony"]
[null,null,null,null,null,null,null,null,null,"islet"]
[null,null,null,null,null,null,null,null,null,"issue"]
[null,null,null,null,null,null,null,null,null,"italy"]
[null,null,null,null,null,null,null,null,null,"itchy"]
[null,null,null,null,null,null,null,null,null,"ivory"]
[null,null,null,null,null,null,null,null,null,"jaunt"]
[null,null,null,null,null,null,null,null,null,"jazzy"]
[null,null,null,null,null,null,null,null,null,"jelly"]
[null,null,null,null,null,null,null,null,null,"jerky"]
[null,null,null,null,null,null,null,null,null,"jetty"]
[null,null,null,null,null,null,null,null,null,"jewel"]
[null,null,null,null,null,null,null,null,null,"jiffy"]
[null,null,null,null,null,null,null,null,null,"joint"]
[null,null,null,null,null,null,null,null,null,"joist"]
[null,null,null,null,null,null,null,null,null,"joker"]
[null,null,null,null,null,null,null,null,null,"jolly"]
[null,null,null,null,null,null,null,null,null,"joust"]
[null,null,null,null,null,null,null,null,null,"judge"]
[null,null,null,null,null,null,null,null,null,"juice"]
[null,null,null,null,null,null,null,null,null,"juicy"]
[null,null,null,null,null,null,null,null,null,"jumbo"]
[null,null,null,null,null,null,null,null,null,"jumpy"]
[null,null,null,null,null,null,null,null,null,"junta"]
[null,null,null,null,null,null,null,null,null,"junto"]
[null,null,null,null,null,null,null,null,null,"juror"]
[null,null,null,null,null,null,null,null,null,"kappa"]
[null,null,null,null,null,null,null,null,null,"karma"]
[null,null,null,null,null,null,null,null,null,"kayak"]
[null,null,null,null,null,null,null,null,null,"kebab"]
[null,null,null,null,null,null,null,null,null,"khaki"]
[null,null,null,null,null,null,null,null,null,"kinky"]
[null,null,null,null,null,null,null,null,null,"kiosk"]
[null,null,null,null,null,null,null,null,null,"kitty"]
[null,null,null,null,null,null,null,null,null,"knack"]
[null,null,null,null,null,null,null,null,null,"knave"]
[null,null,null,null,null,null,null,null,null,"knead"]
[null,null,null,null,null,null,null,null,null,"kneed"]
[null,null,null,null,null,null,null,null,null,"kneel"]
[null,null,null,null,null,null,null,null,null,"knelt"]
[null,null,null,null,null,null,null,null,null,"knife"]
[null,null,null,null,null,null,null,null,null,"knock"]
[null,null,null,null,null,null,null,null,null,"knoll"]
[null,null,null,null,null,null,null,null,null,"known"]
[null,null,null,null,null,null,null,null,null,"koala"]
[null,null,null,null,null,null,null,null,null,"krill"]
[null,null,null,null,null,null,null,null,null,"label"]
[null,null,null,null,null,null,null,null,null,"labor"]
[null,null,null,null,null,null,null,null,null,"laden"]
[null,null,null,null,null,null,null,null,null,"ladle"]
[null,null,null,null,null,null,null,null,null,"lager"]
[null,null,null,null,null,null,null,null,null,"lance"]
[null,null,null,null,null,null,null,null,null,"lanky"]
[null,null,null,null,null,null,null,null,null,"lapel"]
[null,null,null,null,null,null,null,null,null,"lapse"]
[null,null,null,null,null,null,null,null,null,"large"]
[null,null,null,null,null,null,null,null,null,"larva"]
[null,null,null,null,null,null,null,null,null,"lasso"]
[null,null,null,null,null,null,null,null,null,"latch"]
[null,null,null,null,null,null,null,null,null,"later"]
[null,null,null,null,null,null,null,null,null,"lathe"]
[null,null,null,null,null,null,null,null,null,"latte"]
[null,null,null,null,null,null,null,null,null,"laugh"]
[null,null,null,null,null,null,null,null,null,"layer"]
[null,null,null,null,null,null,null,null,null,"leach"]
[null,null,null,null,null,null,null,null,null,"leafy"]
[null,null,null,null,null,null,null,null,null,"leaky"]
[null,null,null,null,null,null,null,null,null,"leant"]
[null,null,null,null,null,null,null,null,null,"leapt"]
[null,null,null,null,null,null,null,null,null,"learn"]
[null,null,null,null,null,null,null,null,null,"lease"]
[null,null,null,null,null,null,null,null,null,"leash"]
[null,null,null,null,null,null,null,null,null,"least"]
[null,null,null,null,null,null,null,null,null,"leave"]
[null,null,null,null,null,null,null,null,null,"ledge"]
[null,null,null,null,null,null,null,null,null,"leech"]
[null,null,null,null,null,null,null,null,null,"leery"]
[null,null,null,null,null,null,null,null,null,"lefty"]
[null,null,null,null,null,null,null,null,null,"legal"]
[null,null,null,null,null,null,null,null,null,"leggy"]
[null,null,null,null,null,null,null,null,null,"lemon"]
[null,null,null,null,null,null,null,null,null,"lemur"]
[null,null,null,null,null,null,null,null,null,"leper"]
[null,null,null,null,null,null,null,null,null,"level"]
[null,null,null,null,null,null,null,null,null,"lever"]
[null,null,null,null,null,null,null,null,null,"libel"]
[null,null,null,null,null,null,null,null,null,"liege"]
[null,null,null,null,null,null,null,null,null,"light"]
[null,null,null,null,null,null,null,null,null,"liken"]
[null,null,null,null,null,null,null,null,null,"lilac"]
[null,null,null,null,null,null,null,null,null,"limbo"]
[null,null,null,null,null,null,null,null,null,"limit"]
[null,null,null,null,null,null,null,null,null,"linen"]
[null,null,null,null,null,null,null,null,null,"liner"]
[null,null,null,null,null,null,null,null,null,"lingo"]
[null,null,null,null,null,null,null,null,null,"lipid"]
[null,null,null,null,null,null,null,null,null,"lithe"]
[null,null,null,null,null,null,null,null,null,"liver"]
[null,null,null,null,null,null,null,null,null,"livid"]
[null,null,null,null,null,null,null,null,null,"llama"]
[null,null,null,null,null,null,null,null,null,"loamy"]
[null,null,null,null,null,null,null,null,null,"loath"]
[null,null,null,null,null,null,null,null,null,"lobby"]
[null,null,null,null,null,null,null,null,null,"local"]
[null,null,null,null,null,null,null,null,null,"locus"]
[null,null,null,null,null,null,null,null,null,"lodge"]
[null,null,null,null,null,null,null,null,null,"lofty"]
[null,null,null,null,null,null,null,null,null,"logic"]
[null,null,null,null,null,null,null,null,null,"login"]
[null,null,null,null,null,null,null,null,null,"loopy"]
[null,null,null,null,null,null,null,null,null,"loose"]
[null,null,null,null,null,null,null,null,null,"lorry"]
[null,null,null,null,null,null,null,null,null,"loser"]
[null,null,null,null,null,null,null,null,null,"louse"]
[null,null,null,null,null,null,null,null,null,"lousy"]
[null,null,null,null,null,null,null,null,null,"lover"]
[null,null,null,null,null,null,null,null,null,"lower"]
[null,null,null,null,null,null,null,null,null,"lowly"]
[null,null,null,null,null,null,null,null,null,"loyal"]
[null,null,null,null,null,null,null,null,null,"lucid"]
[null,null,null,null,null,null,null,null,null,"lucky"]
[null,null,null,null,null,null,null,null,null,"lumen"]
[null,null,null,null,null,null,null,null,null,"lumpy"]
[null,null,null,null,null,null,null,null,null,"lunar"]
[null,null,null,null,null,null,null,null,null,"lunch"]
[null,null,null,null,null,null,null,null,null,"lunge"]
[null,null,null,null,null,null,null,null,null,"lupus"]
[null,null,null,null,null,null,null,null,null,"lurch"]
[null,null,null,null,null,null,null,null,null,"lurid"]
[null,null,null,null,null,null,null,null,null,"lusty"]
[null,null,null,null,null,null,null,null,null,"lying"]
[null,null,null,null,null,null,null,null,null,"lymph"]
[null,null,null,null,null,null,null,null,null,"lyric"]
[null,null,null,null,null,null,null,null,null,"macaw"]
[null,null,null,null,null,null,null,null,null,"macho"]
[null,null,null,null,null,null,null,null,null,"macro"]
[null,null,null,null,null,null,null,null,null,"madam"]
[null,null,null,null,null,null,null,null,null,"madly"]
[null,null,null,null,null,null,null,null,null,"mafia"]
[null,null,null,null,null,null,null,null,null,"magic"]
[null,null,null,null,null,null,null,null,null,"magma"]
[null,null,null,null,null,null,null,null,null,"maize"]
[null,null,null,null,null,null,null,null,null,"major"]
[null,null,null,null,null,null,null,null,null,"maker"]
[null,null,null,null,null,null,null,null,null,"mambo"]
[null,null,null,null,null,null,null,null,null,"mamma"]
[null,null,null,null,null,null,null,null,null,"mammy"]
[null,null,null,null,null,null,null,null,null,"manga"]
[null,null,null,null,null,null,null,null,null,"mange"]
[null,null,null,null,null,null,null,null,null,"mango"]
[null,null,null,null,null,null,null,null,null,"mangy"]
[null,null,null,null,null,null,null,null,null,"mania"]
[null,null,null,null,null,null,null,null,null,"manic"]
[null,null,null,null,null,null,null,null,null,"manly"]
[null,null,null,null,null,null,null,null,null,"manor"]
[null,null,null,null,null,null,null,null,null,"maple"]
[null,null,null,null,null,null,null,null,null,"march"]
[null,null,null,null,null,null,null,null,null,"marry"]
[null,null,null,null,null,null,null,null,null,"marsh"]
[null,null,null,null,null,null,null,null,null,"mason"]
[null,null,null,null,null,null,null,null,null,"masse"]
[null,null,null,null,null,null,null,null,null,"match"]
[null,null,null,null,null,null,null,null,null,"matey"]
[null,null,null,null,null,null,null,null,null,"mauve"]
[null,null,null,null,null,null,null,null,null,"maxim"]
[null,null,null,null,null,null,null,null,null,"maybe"]
[null,null,null,null,null,null,null,null,null,"mayor"]
[null,null,null,null,null,null,null,null,null,"mealy"]
[null,null,null,null,null,null,null,null,null,"meant"]
[null,null,null,null,null,null,null,null,null,"meaty"]
[null,null,null,null,null,null,null,null,null,"mecca"]
[null,null,null,null,null,null,null,null,null,"medal"]
[null,null,null,null,null,null,null,null,null,"media"]
[null,null,null,null,null,null,null,null,null,"medic"]
[null,null,null,null,null,null,null,null,null,"melee"]
[null,null,null,null,null,null,null,null,null,"melon"]
[null,null,null,null,null,null,null,null,null,"mercy"]
[null,null,null,null,null,null,null,null,null,"merge"]
[null,null,null,null,null,null,null,null,null,"merit"]
[null,null,null,null,null,null,null,null,null,"merry"]
[null,null,null,null,null,null,null,null,null,"metal"]
[null,null,null,null,null,null,null,null,null,"meter"]
[null,null,null,null,null,null,null,null,null,"metro"]
[null,null,null,null,null,null,null,null,null,"micro"]
[null,null,null,null,null,null,null,null,null,"midge"]
[null,null,null,null,null,null,null,null,null,"midst"]
[null,null,null,null,null,null,null,null,null,"might"]
[null,null,null,null,null,null,null,null,null,"milan"]
[null,null,null,null,null,null,null,null,null,"milky"]
[null,null,null,null,null,null,null,null,null,"mimic"]
[null,null,null,null,null,null,null,null,null,"mince"]
[null,null,null,null,null,null,null,null,null,"miner"]
[null,null,null,null,null,null,null,null,null,"minim"]
[null,null,null,null,null,null,null,null,null,"minor"]
[null,null,null,null,null,null,null,null,null,"minty"]
[null,null,null,null,null,null,null,null,null,"minus"]
[null,null,null,null,null,null,null,null,null,"mirth"]
[null,null,null,null,null,null,null,null,null,"miser"]
[null,null,null,null,null,null,null,null,null,"missy"]
[null,null,null,null,null,null,null,null,null,"mocha"]
[null,null,null,null,null,null,null,null,null,"modal"]
[null,null,null,null,null,null,null,null,null,"model"]
[null,null,null,null,null,null,null,null,null,"modem"]
[null,null,null,null,null,null,null,null,null,"mogul"]
[null,null,null,null,null,null,null,null,null,"moist"]
[null,null,null,null,null,null,null,null,null,"molar"]
[null,null,null,null,null,null,null,null,null,"moldy"]
[null,null,null,null,null,null,null,null,null,"money"]
[null,null,null,null,null,null,null,null,null,"month"]
[null,null,null,null,null,null,null,null,null,"moody"]
[null,null,null,null,null,null,null,null,null,"moose"]
[null,null,null,null,null,null,null,null,null,"moral"]
[null,null,null,null,null,null,null,null,null,"moron"]
[null,null,null,null,null,null,null,null,null,"morph"]
[null,null,null,null,null,null,null,null,null,"mossy"]
[null,null,null,null,null,null,null,null,null,"motel"]
[null,null,null,null,null,null,null,null,null,"motif"]
[null,null,null,null,null,null,null,null,null,"motor"]
[null,null,null,null,null,null,null,null,null,"motto"]
[null,null,null,null,null,null,null,null,null,"moult"]
[null,null,null,null,null,null,null,null,null,"mound"]
[null,null,null,null,null,null,null,null,null,"mount"]
[null,null,null,null,null,null,null,null,null,"mourn"]
[null,null,null,null,null,null,null,null,null,"mouse"]
[null,null,null,null,null,null,null,null,null,"mouth"]
[null,null,null,null,null,null,null,null,null,"mover"]
[null,null,null,null,null,null,null,null,null,"movie"]
[null,null,null,null,null,null,null,null,null,"mower"]
[null,null,null,null,null,null,null,null,null,"mucky"]
[null,null,null,null,null,null,null,null,null,"mucus"]
[null,null,null,null,null,null,null,null,null,"muddy"]
[null,null,null,null,null,null,null,null,null,"mulch"]
[null,null,null,null,null,null,null,null,null,"mummy"]
[null,null,null,null,null,null,null,null,null,"munch"]
[null,null,null,null,null,null,null,null,null,"mural"]
[null,null,null,null,null,null,null,null,null,"murky"]
[null,null,null,null,null,null,null,null,null,"mushy"]
[null,null,null,null,null,null,null,null,null,"music"]
[null,null,null,null,null,null,null,null,null,"musky"]
[null,null,null,null,null,null,null,null,null,"musty"]
[null,null,null,null,null,null,null,null,null,"myrrh"]
[null,null,null,null,null,null,null,null,null,"nadir"]
[null,null,null,null,null,null,null,null,null,"naive"]
[null,null,null,null,null,null,null,null,null,"nanny"]
[null,null,null,null,null,null,null,null,null,"nasal"]
[null,null,null,null,null,null,null,null,null,"nasty"]
[null,null,null,null,null,null,null,null,null,"natal"]
[null,null,null,null,null,null,null,null,null,"naval"]
[null,null,null,null,null,null,null,null,null,"navel"]
[null,null,null,null,null,null,null,null,null,"needy"]
[null,null,null,null,null,null,null,null,null,"neigh"]
[null,null,null,null,null,null,null,null,null,"nerdy"]
[null,null,null,null,null,null,null,null,null,"nerve"]
[null,null,null,null,null,null,null,null,null,"never"]
[null,null,null,null,null,null,null,null,null,"newer"]
[null,null,null,null,null,null,null,null,null,"newly"]
[null,null,null,null,null,null,null,null,null,"nicer"]
[null,null,null,null,null,null,null,null,null,"niche"]
[null,null,null,null,null,null,null,null,null,"niece"]
[null,null,null,null,null,null,null,null,null,"night"]
[null,null,null,null,null,null,null,null,null,"ninja"]
[null,null,null,null,null,null,null,null,null,"ninny"]
[null,null,null,null,null,null,null,null,null,"ninth"]
[null,null,null,null,null,null,null,null,null,"noble"]
[null,null,null,null,null,null,null,null,null,"nobly"]
[null,null,null,null,null,null,null,null,null,"noise"]
[null,null,null,null,null,null,null,null,null,"noisy"]
[null,null,null,null,null,null,null,null,null,"nomad"]
[null,null,null,null,null,null,null,null,null,"noose"]
[null,null,null,null,null,null,null,null,null,"north"]
[null,null,null,null,null,null,null,null,null,"nosey"]
[null,null,null,null,null,null,null,null,null,"notch"]
[null,null,null,null,null,null,null,null,null,"novel"]
[null,null,null,null,null,null,null,null,null,"nudge"]
[null,null,null,null,null,null,null,null,null,"nurse"]
[null,null,null,null,null,null,null,null,null,"nutty"]
[null,null,null,null,null,null,null,null,null,"nylon"]
[null,null,null,null,null,null,null,null,null,"nymph"]
[null,null,null,null,null,null,null,null,null,"oaken"]
[null,null,null,null,null,null,null,null,null,"obese"]
[null,null,null,null,null,null,null,null,null,"occur"]
[null,null,null,null,null,null,null,null,null,"ocean"]
[null,null,null,null,null,null,null,null,null,"octal"]
[null,null,null,null,null,null,null,null,null,"octet"]
[null,null,null,null,null,null,null,null,null,"odder"]
[null,null,null,null,null,null,null,null,null,"oddly"]
[null,null,null,null,null,null,null,null,null,"offal"]
[null,null,null,null,null,null,null,null,null,"offer"]
[null,null,null,null,null,null,null,null,null,"often"]
[null,null,null,null,null,null,null,null,null,"olden"]
[null,null,null,null,null,null,null,null,null,"older"]
[null,null,null,null,null,null,null,null,null,"olive"]
[null,null,null,null,null,null,null,null,null,"ombre"]
[null,null,null,null,null,null,null,null,null,"omega"]
[null,null,null,null,null,null,null,null,null,"onion"]
[null,null,null,null,null,null,null,null,null,"onset"]
[null,null,null,null,null,null,null,null,null,"opera"]
[null,null,null,null,null,null,null,null,null,"opine"]
[null,null,null,null,null,null,null,null,null,"opium"]
[null,null,null,null,null,null,null,null,null,"optic"]
[null,null,null,null,null,null,null,null,null,"orbit"]
[null,null,null,null,null,null,null,null,null,"order"]
[null,null,null,null,null,null,null,null,null,"organ"]
[null,null,null,null,null,null,null,null,null,"other"]
[null,null,null,null,null,null,null,null,null,"otter"]
[null,null,null,null,null,null,null,null,null,"ought"]
[null,null,null,null,null,null,null,null,null,"ounce"]
[null,null,null,null,null,null,null,null,null,"outdo"]
[null,null,null,null,null,null,null,null,null,"outer"]
[null,null,null,null,null,null,null,null,null,"outgo"]
[null,null,null,null,null,null,null,null,null,"ovary"]
[null,null,null,null,null,null,null,null,null,"ovate"]
[null,null,null,null,null,null,null,null,null,"overt"]
[null,null,null,null,null,null,null,null,null,"ovine"]
[null,null,null,null,null,null,null,null,null,"ovoid"]
[null,null,null,null,null,null,null,null,null,"owing"]
[null,null,null,null,null,null,null,null,null,"owner"]
[null,null,null,null,null,null,null,null,null,"oxide"]
[null,null,null,null,null,null,null,null,null,"ozone"]
[null,null,null,null,null,null,null,null,null,"paddy"]
[null,null,null,null,null,null,null,null,null,"pagan"]
[null,null,null,null,null,null,null,null,null,"paint"]
[null,null,null,null,null,null,null,null,null,"paler"]
[null,null,null,null,null,null,null,null,null,"palsy"]
[null,null,null,null,null,null,null,null,null,"panel"]
[null,null,null,null,null,null,null,null,null,"panic"]
[null,null,null,null,null,null,null,null,null,"pansy"]
[null,null,null,null,null,null,null,null,null,"papal"]
[null,null,null,null,null,null,null,null,null,"paper"]
[null,null,null,null,null,null,null,null,null,"parer"]
[null,null,null,null,null,null,null,null,null,"parka"]
[null,null,null,null,null,null,null,null,null,"parry"]
[null,null,null,null,null,null,null,null,null,"parse"]
[null,null,null,null,null,null,null,null,null,"party"]
[null,null,null,null,null,null,null,null,null,"pasta"]
[null,null,null,null,null,null,null,null,null,"paste"]
[null,null,null,null,null,null,null,null,null,"pasty"]
[null,null,null,null,null,null,null,null,null,"patch"]
[null,null,null,null,null,null,null,null,null,"patio"]
[null,null,null,null,null,null,null,null,null,"patsy"]
[null,null,null,null,null,null,null,null,null,"patty"]
[null,null,null,null,null,null,null,null,null,"pause"]
[null,null,null,null,null,null,null,null,null,"payee"]
[null,null,null,null,null,null,null,null,null,"payer"]
[null,null,null,null,null,null,null,null,null,"peace"]
[null,null,null,null,null,null,null,null,null,"peach"]
[null,null,null,null,null,null,null,null,null,"pearl"]
[null,null,null,null,null,null,null,null,null,"pecan"]
[null,null,null,null,null,null,null,null,null,"pedal"]
[null,null,null,null,null,null,null,null,null,"penal"]
[null,null,null,null,null,null,null,null,null,"pence"]
[null,null,null,null,null,null,null,null,null,"penne"]
[null,null,null,null,null,null,null,null,null,"penny"]
[null,null,null,null,null,null,null,null,null,"perch"]
[null,null,null,null,null,null,null,null,null,"peril"]
[null,null,null,null,null,null,null,null,null,"perky"]
[null,null,null,null,null,null,null,null,null,"pesky"]
[null,null,null,null,null,null,null,null,null,"pesto"]
[null,null,null,null,null,null,null,null,null,"petal"]
[null,null,null,null,null,null,null,null,null,"petty"]
[null,null,null,null,null,null,null,null,null,"phase"]
[null,null,null,null,null,null,null,null,null,"phone"]
[null,null,null,null,null,null,null,null,null,"phony"]
[null,null,null,null,null,null,null,null,null,"photo"]
[null,null,null,null,null,null,null,null,null,"piano"]
[null,null,null,null,null,null,null,null,null,"picky"]
[null,null,null,null,null,null,null,null,null,"piece"]
[null,null,null,null,null,null,null,null,null,"piety"]
[null,null,null,null,null,null,null,null,null,"piggy"]
[null,null,null,null,null,null,null,null,null,"pilot"]
[null,null,null,null,null,null,null,null,null,"pinch"]
[null,null,null,null,null,null,null,null,null,"piney"]
[null,null,null,null,null,null,null,null,null,"pinky"]
[null,null,null,null,null,null,null,null,null,"pinto"]
[null,null,null,null,null,null,null,null,null,"piper"]
[null,null,null,null,null,null,null,null,null,"pique"]
[null,null,null,null,null,null,null,null,null,"pitch"]
[null,null,null,null,null,null,null,null,null,"pithy"]
[null,null,null,null,null,null,null,null,null,"pivot"]
[null,null,null,null,null,null,null,null,null,"pixel"]
[null,null,null,null,null,null,null,null,null,"pixie"]
[null,null,null,null,null,null,null,null,null,"pizza"]
[null,null,null,null,null,null,null,null,null,"place"]
[null,null,null,null,null,null,null,null,null,"plaid"]
[null,null,null,null,null,null,null,null,null,"plain"]
[null,null,null,null,null,null,null,null,null,"plait"]
[null,null,null,null,null,null,null,null,null,"plane"]
[null,null,null,null,null,null,null,null,null,"plank"]
[null,null,null,null,null,null,null,null,null,"plant"]
[null,null,null,null,null,null,null,null,null,"plate"]
[null,null,null,null,null,null,null,null,null,"plaza"]
[null,null,null,null,null,null,null,null,null,"plead"]
[null,null,null,null,null,null,null,null,null,"pleat"]
[null,null,null,null,null,null,null,null,null,"plied"]
[null,null,null,null,null,null,null,null,null,"plier"]
[null,null,null,null,null,null,null,null,null,"pluck"]
[null,null,null,null,null,null,null,null,null,"plumb"]
[null,null,null,null,null,null,null,null,null,"plume"]
[null,null,null,null,null,null,null,null,null,"plump"]
[null,null,null,null,null,null,null,null,null,"plunk"]
[null,null,null,null,null,null,null,null,null,"plush"]
[null,null,null,null,null,null,null,null,null,"poesy"]
[null,null,null,null,null,null,null,null,null,"point"]
[null,null,null,null,null,null,null,null,null,"poise"]
[null,null,null,null,null,null,null,null,null,"poker"]
[null,null,null,null,null,null,null,null,null,"polar"]
[null,null,null,null,null,null,null,null,null,"polka"]
[null,null,null,null,null,null,null,null,null,"polyp"]
[null,null,null,null,null,null,null,null,null,"pooch"]
[null,null,null,null,null,null,null,null,null,"poppy"]
[null,null,null,null,null,null,null,null,null,"porch"]
[null,null,null,null,null,null,null,null,null,"poser"]
[null,null,null,null,null,null,null,null,null,"posit"]
[null,null,null,null,null,null,null,null,null,"posse"]
[null,null,null,null,null,null,null,null,null,"pouch"]
[null,null,null,null,null,null,null,null,null,"pound"]
[null,null,null,null,null,null,null,null,null,"pouty"]
[null,null,null,null,null,null,null,null,null,"power"]
[null,null,null,null,null,null,null,null,null,"prank"]
[null,null,null,null,null,null,null,null,null,"prawn"]
[null,null,null,null,null,null,null,null,null,"preen"]
[null,null,null,null,null,null,null,null,null,"press"]
[null,null,null,null,null,null,null,null,null,"price"]
[null,null,null,null,null,null,null,null,null,"prick"]
[null,null,null,null,null,null,null,null,null,"pride"]
[null,null,null,null,null,null,null,null,null,"pried"]
[null,null,null,null,null,null,null,null,null,"prime"]
[null,null,null,null,null,null,null,null,null,"primo"]
[null,null,null,null,null,null,null,null,null,"print"]
[null,null,null,null,null,null,null,null,null,"prior"]
[null,null,null,null,null,null,null,null,null,"prism"]
[null,null,null,null,null,null,null,null,null,"privy"]
[null,null,null,null,null,null,null,null,null,"prize"]
[null,null,null,null,null,null,null,null,null,"probe"]
[null,null,null,null,null,null,null,null,null,"prone"]
[null,null,null,null,null,null,null,null,null,"prong"]
[null,null,null,null,null,null,null,null,null,"proof"]
[null,null,null,null,null,null,null,null,null,"prose"]
[null,null,null,null,null,null,null,null,null,"proud"]
[null,null,null,null,null,null,null,null,null,"prove"]
[null,null,null,null,null,null,null,null,null,"prowl"]
[null,null,null,null,null,null,null,null,null,"proxy"]
[null,null,null,null,null,null,null,null,null,"prude"]
[null,null,null,null,null,null,null,null,null,"prune"]
[null,null,null,null,null,null,null,null,null,"psalm"]
[null,null,null,null,null,null,null,null,null,"pubic"]
[null,null,null,null,null,null,null,null,null,"pudgy"]
[null,null,null,null,null,null,null,null,null,"puffy"]
[null,null,null,null,null,null,null,null,null,"pulpy"]
[null,null,null,null,null,null,null,null,null,"pulse"]
[null,null,null,null,null,null,null,null,null,"punch"]
[null,null,null,null,null,null,null,null,null,"pupil"]
[null,null,null,null,null,null,null,null,null,"puppy"]
[null,null,null,null,null,null,null,null,null,"puree"]
[null,null,null,null,null,null,null,null,null,"purer"]
[null,null,null,null,null,null,null,null,null,"purge"]
[null,null,null,null,null,null,null,null,null,"purse"]
[null,null,null,null,null,null,null,null,null,"pushy"]
[null,null,null,null,null,null,null,null,null,"putty"]
[null,null,null,null,null,null,null,null,null,"pygmy"]
[null,null,null,null,null,null,null,null,null,"quack"]
[null,null,null,null,null,null,null,null,null,"quail"]
[null,null,null,null,null,null,null,null,null,"quake"]
[null,null,null,null,null,null,null,null,null,"qualm"]
[null,null,null,null,null,null,null,null,null,"quark"]
[null,null,null,null,null,null,null,null,null,"quart"]
[null,null,null,null,null,null,null,null,null,"quash"]
[null,null,null,null,null,null,null,null,null,"quasi"]
[null,null,null,null,null,null,null,null,null,"queen"]
[null,null,null,null,null,null,null,null,null,"queer"]
[null,null,null,null,null,null,null,null,null,"quell"]
[null,null,null,null,null,null,null,null,null,"query"]
[null,null,null,null,null,null,null,null,null,"quest"]
[null,null,null,null,null,null,null,null,null,"queue"]
[null,null,null,null,null,null,null,null,null,"quick"]
[null,null,null,null,null,null,null,null,null,"quiet"]
[null,null,null,null,null,null,null,null,null,"quill"]
[null,null,null,null,null,null,null,null,null,"quilt"]
[null,null,null,null,null,null,null,null,null,"quirk"]
[null,null,null,null,null,null,null,null,null,"quite"]
[null,null,null,null,null,null,null,null,null,"quota"]
[null,null,null,null,null,null,null,null,null,"quote"]
[null,null,null,null,null,null,null,null,null,"quoth"]
[null,null,null,null,null,null,null,null,null,"rabbi"]
[null,null,null,null,null,null,null,null,null,"rabid"]
[null,null,null,null,null,null,null,null,null,"racer"]
[null,null,null,null,null,null,null,null,null,"radar"]
[null,null,null,null,null,null,null,null,null,"radii"]
[null,null,null,null,null,null,null,null,null,"radio"]
[null,null,null,null,null,null,null,null,null,"rainy"]
[null,null,null,null,null,null,null,null,null,"raise"]
[null,null,null,null,null,null,null,null,null,"rajah"]
[null,null,null,null,null,null,null,null,null,"rally"]
[null,null,null,null,null,null,null,null,null,"ralph"]
[null,null,null,null,null,null,null,null,null,"ramen"]
[null,null,null,null,null,null,null,null,null,"ranch"]
[null,null,null,null,null,null,null,null,null,"randy"]
[null,null,null,null,null,null,null,null,null,"range"]
[null,null,null,null,null,null,null,null,null,"rapid"]
[null,null,null,null,null,null,null,null,null,"rarer"]
[null,null,null,null,null,null,null,null,null,"raspy"]
[null,null,null,null,null,null,null,null,null,"ratio"]
[null,null,null,null,null,null,null,null,null,"ratty"]
[null,null,null,null,null,null,null,null,null,"raven"]
[null,null,null,null,null,null,null,null,null,"rayon"]
[null,null,null,null,null,null,null,null,null,"razor"]
[null,null,null,null,null,null,null,null,null,"reach"]
[null,null,null,null,null,null,null,null,null,"react"]
[null,null,null,null,null,null,null,null,null,"ready"]
[null,null,null,null,null,null,null,null,null,"realm"]
[null,null,null,null,null,null,null,null,null,"rearm"]
[null,null,null,null,null,null,null,null,null,"rebar"]
[null,null,null,null,null,null,null,null,null,"rebel"]
[null,null,null,null,null,null,null,null,null,"rebus"]
[null,null,null,null,null,null,null,null,null,"rebut"]
[null,null,null,null,null,null,null,null,null,"recap"]
[null,null,null,null,null,null,null,null,null,"recur"]
[null,null,null,null,null,null,null,null,null,"recut"]
[null,null,null,null,null,null,null,null,null,"reedy"]
[null,null,null,null,null,null,null,null,null,"refer"]
[null,null,null,null,null,null,null,null,null,"refit"]
[null,null,null,null,null,null,null,null,null,"regal"]
[null,null,null,null,null,null,null,null,null,"rehab"]
[null,null,null,null,null,null,null,null,null,"reign"]
[null,null,null,null,null,null,null,null,null,"relax"]
[null,null,null,null,null,null,null,null,null,"relay"]
[null,null,null,null,null,null,null,null,null,"relic"]
[null,null,null,null,null,null,null,null,null,"remit"]
[null,null,null,null,null,null,null,null,null,"renal"]
[null,null,null,null,null,null,null,null,null,"renew"]
[null,null,null,null,null,null,null,null,null,"repay"]
[null,null,null,null,null,null,null,null,null,"repel"]
[null,null,null,null,null,null,null,null,null,"reply"]
[null,null,null,null,null,null,null,null,null,"rerun"]
[null,null,null,null,null,null,null,null,null,"reset"]
[null,null,null,null,null,null,null,null,null,"resin"]
[null,null,null,null,null,null,null,null,null,"retch"]
[null,null,null,null,null,null,null,null,null,"retro"]
[null,null,null,null,null,null,null,null,null,"retry"]
[null,null,null,null,null,null,null,null,null,"reuse"]
[null,null,null,null,null,null,null,null,null,"revel"]
[null,null,null,null,null,null,null,null,null,"revue"]
[null,null,null,null,null,null,null,null,null,"rhino"]
[null,null,null,null,null,null,null,null,null,"rhyme"]
[null,null,null,null,null,null,null,null,null,"rider"]
[null,null,null,null,null,null,null,null,null,"ridge"]
[null,null,null,null,null,null,null,null,null,"rifle"]
[null,null,null,null,null,null,null,null,null,"right"]
[null,null,null,null,null,null,null,null,null,"rigid"]
[null,null,null,null,null,null,null,null,null,"rigor"]
[null,null,null,null,null,null,null,null,null,"rinse"]
[null,null,null,null,null,null,null,null,null,"ripen"]
[null,null,null,null,null,null,null,null,null,"riper"]
[null,null,null,null,null,null,null,null,null,"risen"]
[null,null,null,null,null,null,null,null,null,"riser"]
[null,null,null,null,null,null,null,null,null,"risky"]
[null,null,null,null,null,null,null,null,null,"rival"]
[null,null,null,null,null,null,null,null,null,"river"]
[null,null,null,null,null,null,null,null,null,"rivet"]
[null,null,null,null,null,null,null,null,null,"roach"]
[null,null,null,null,null,null,null,null,null,"roast"]
[null,null,null,null,null,null,null,null,null,"robin"]
[null,null,null,null,null,null,null,null,null,"robot"]
[null,null,null,null,null,null,null,null,null,"rocky"]
[null,null,null,null,null,null,null,null,null,"rodeo"]
[null,null,null,null,null,null,null,null,null,"roger"]
[null,null,null,null,null,null,null,null,null,"rogue"]
[null,null,null,null,null,null,null,null,null,"roomy"]
[null,null,null,null,null,null,null,null,null,"roost"]
[null,null,null,null,null,null,null,null,null,"rotor"]
[null,null,null,null,null,null,null,null,null,"rouge"]
[null,null,null,null,null,null,null,null,null,"rough"]
[null,null,null,null,null,null,null,null,null,"round"]
[null,null,null,null,null,null,null,null,null,"rouse"]
[null,null,null,null,null,null,null,null,null,"route"]
[null,null,null,null,null,null,null,null,null,"rover"]
[null,null,null,null,null,null,null,null,null,"rowdy"]
[null,null,null,null,null,null,null,null,null,"rower"]
[null,null,null,null,null,null,null,null,null,"royal"]
[null,null,null,null,null,null,null,null,null,"ruddy"]
[null,null,null,null,null,null,null,null,null,"ruder"]
[null,null,null,null,null,null,null,null,null,"rugby"]
[null,null,null,null,null,null,null,null,null,"ruler"]
[null,null,null,null,null,null,null,null,null,"rumba"]
[null,null,null,null,null,null,null,null,null,"rumor"]
[null,null,null,null,null,null,null,null,null,"rupee"]
[null,null,null,null,null,null,null,null,null,"rural"]
[null,null,null,null,null,null,null,null,null,"rusty"]
[null,null,null,null,null,null,null,null,null,"sadly"]
[null,null,null,null,null,null,null,null,null,"safer"]
[null,null,null,null,null,null,null,null,null,"saint"]
[null,null,null,null,null,null,null,null,null,"salad"]
[null,null,null,null,null,null,null,null,null,"sally"]
[null,null,null,null,null,null,null,null,null,"salon"]
[null,null,null,null,null,null,null,null,null,"salsa"]
[null,null,null,null,null,null,null,null,null,"salty"]
[null,null,null,null,null,null,null,null,null,"salve"]
[null,null,null,null,null,null,null,null,null,"salvo"]
[null,null,null,null,null,null,null,null,null,"sandy"]
[null,null,null,null,null,null,null,null,null,"saner"]
[null,null,null,null,null,null,null,null,null,"sappy"]
[null,null,null,null,null,null,null,null,null,"sassy"]
[null,null,null,null,null,null,null,null,null,"satin"]
[null,null,null,null,null,null,null,null,null,"satyr"]
[null,null,null,null,null,null,null,null,null,"sauce"]
[null,null,null,null,null,null,null,null,null,"saucy"]
[null,null,null,null,null,null,null,null,null,"sauna"]
[null,null,null,null,null,null,null,null,null,"saute"]
[null,null,null,null,null,null,null,null,null,"savor"]
[null,null,null,null,null,null,null,null,null,"savoy"]
[null,null,null,null,null,null,null,null,null,"savvy"]
[null,null,null,null,null,null,null,null,null,"scald"]
[null,null,null,null,null,null,null,null,null,"scale"]
[null,null,null,null,null,null,null,null,null,"scalp"]
[null,null,null,null,null,null,null,null,null,"scaly"]
[null,null,null,null,null,null,null,null,null,"scamp"]
[null,null,null,null,null,null,null,null,null,"scant"]
[null,null,null,null,null,null,null,null,null,"scare"]
[null,null,null,null,null,null,null,null,null,"scarf"]
[null,null,null,null,null,null,null,null,null,"scary"]
[null,null,null,null,null,null,null,null,null,"scene"]
[null,null,null,null,null,null,null,null,null,"scent"]
[null,null,null,null,null,null,null,null,null,"scion"]
[null,null,null,null,null,null,null,null,null,"scoff"]
[null,null,null,null,null,null,null,null,null,"scold"]
[null,null,null,null,null,null,null,null,null,"scone"]
[null,null,null,null,null,null,null,null,null,"scoop"]
[null,null,null,null,null,null,null,null,null,"scope"]
[null,null,null,null,null,null,null,null,null,"score"]
[null,null,null,null,null,null,null,null,null,"scorn"]
[null,null,null,null,null,null,null,null,null,"scour"]
[null,null,null,null,null,null,null,null,null,"scout"]
[null,null,null,null,null,null,null,null,null,"scowl"]
[null,null,null,null,null,null,null,null,null,"scram"]
[null,null,null,null,null,null,null,null,null,"scrap"]
[null,null,null,null,null,null,null,null,null,"scree"]
[null,null,null,null,null,null,null,null,null,"screw"]
[null,null,null,null,null,null,null,null,null,"scrub"]
[null,null,null,null,null,null,null,null,null,"scrum"]
[null,null,null,null,null,null,null,null,null,"scuba"]
[null,null,null,null,null,null,null,null,null,"sedan"]
[null,null,null,null,null,null,null,null,null,"seedy"]
[null,null,null,null,null,null,null,null,null,"segue"]
[null,null,null,null,null,null,null,null,null,"seize"]
[null,null,null,null,null,null,null,null,null,"semen"]
[null,null,null,null,null,null,null,null,null,"sense"]
[null,null,null,null,null,null,null,null,null,"sepia"]
[null,null,null,null,null,null,null,null,null,"serif"]
[null,null,null,null,null,null,null,null,null,"serum"]
[null,null,null,null,null,null,null,null,null,"serve"]
[null,null,null,null,null,null,null,null,null,"setup"]
[null,null,null,null,null,null,null,null,null,"seven"]
[null,null,null,null,null,null,null,null,null,"sever"]
[null,null,null,null,null,null,null,null,null,"sewer"]
[null,null,null,null,null,null,null,null,null,"shack"]
[null,null,null,null,null,null,null,null,null,"shade"]
[null,null,null,null,null,null,null,null,null,"shady"]
[null,null,null,null,null,null,null,null,null,"shaft"]
[null,null,null,null,null,null,null,null,null,"shake"]
[null,null,null,null,null,null,null,null,null,"shaky"]
[null,null,null,null,null,null,null,null,null,"shale"]
[null,null,null,null,null,null,null,null,null,"shall"]
[null,null,null,null,null,null,null,null,null,"shalt"]
[null,null,null,null,null,null,null,null,null,"shame"]
[null,null,null,null,null,null,null,null,null,"shank"]
[null,null,null,null,null,null,null,null,null,"shape"]
[null,null,null,null,null,null,null,null,null,"shard"]
[null,null,null,null,null,null,null,null,null,"share"]
[null,null,null,null,null,null,null,null,null,"shark"]
[null,null,null,null,null,null,null,null,null,"sharp"]
[null,null,null,null,null,null,null,null,null,"shave"]
[null,null,null,null,null,null,null,null,null,"shawl"]
[null,null,null,null,null,null,null,null,null,"shear"]
[null,null,null,null,null,null,null,null,null,"sheen"]
[null,null,null,null,null,null,null,null,null,"sheep"]
[null,null,null,null,null,null,null,null,null,"sheer"]
[null,null,null,null,null,null,null,null,null,"sheet"]
[null,null,null,null,null,null,null,null,null,"sheik"]
[null,null,null,null,null,null,null,null,null,"shelf"]
[null,null,null,null,null,null,null,null,null,"shell"]
[null,null,null,null,null,null,null,null,null,"shied"]
[null,null,null,null,null,null,null,null,null,"shift"]
[null,null,null,null,null,null,null,null,null,"shine"]
[null,null,null,null,null,null,null,null,null,"shiny"]
[null,null,null,null,null,null,null,null,null,"shire"]
[null,null,null,null,null,null,null,null,null,"shirk"]
[null,null,null,null,null,null,null,null,null,"shirt"]
[null,null,null,null,null,null,null,null,null,"shoal"]
[null,null,null,null,null,null,null,null,null,"shock"]
[null,null,null,null,null,null,null,null,null,"shone"]
[null,null,null,null,null,null,null,null,null,"shook"]
[null,null,null,null,null,null,null,null,null,"shoot"]
[null,null,null,null,null,null,null,null,null,"shore"]
[null,null,null,null,null,null,null,null,null,"shorn"]
[null,null,null,null,null,null,null,null,null,"short"]
[null,null,null,null,null,null,null,null,null,"shout"]
[null,null,null,null,null,null,null,null,null,"shove"]
[null,null,null,null,null,null,null,null,null,"shown"]
[null,null,null,null,null,null,null,null,null,"showy"]
[null,null,null,null,null,null,null,null,null,"shrew"]
[null,null,null,null,null,null,null,null,null,"shrub"]
[null,null,null,null,null,null,null,null,null,"shrug"]
[null,null,null,null,null,null,null,null,null,"shuck"]
[null,null,null,null,null,null,null,null,null,"shunt"]
[null,null,null,null,null,null,null,null,null,"shush"]
[null,null,null,null,null,null,null,null,null,"shyly"]
[null,null,null,null,null,null,null,null,null,"siege"]
[null,null,null,null,null,null,null,null,null,"sieve"]
[null,null,null,null,null,null,null,null,null,"sight"]
[null,null,null,null,null,null,null,null,null,"sigma"]
[null,null,null,null,null,null,null,null,null,"silky"]
[null,null,null,null,null,null,null,null,null,"silly"]
[null,null,null,null,null,null,null,null,null,"since"]
[null,null,null,null,null,null,null,null,null,"sinew"]
[null,null,null,null,null,null,null,null,null,"singe"]
[null,null,null,null,null,null,null,null,null,"siren"]
[null,null,null,null,null,null,null,null,null,"sissy"]
[null,null,null,null,null,null,null,null,null,"sixth"]
[null,null,null,null,null,null,null,null,null,"sixty"]
[null,null,null,null,null,null,null,null,null,"skate"]
[null,null,null,null,null,null,null,null,null,"skier"]
[null,null,null,null,null,null,null,null,null,"skiff"]
[null,null,null,null,null,null,null,null,null,"skill"]
[null,null,null,null,null,null,null,null,null,"skimp"]
[null,null,null,null,null,null,null,null,null,"skirt"]
[null,null,null,null,null,null,null,null,null,"skulk"]
[null,null,null,null,null,null,null,null,null,"skull"]
[null,null,null,null,null,null,null,null,null,"skunk"]
[null,null,null,null,null,null,null,null,null,"slack"]
[null,null,null,null,null,null,null,null,null,"slain"]
[null,null,null,null,null,null,null,null,null,"slang"]
[null,null,null,null,null,null,null,null,null,"slant"]
[null,null,null,null,null,null,null,null,null,"slash"]
[null,null,null,null,null,null,null,null,null,"slate"]
[null,null,null,null,null,null,null,null,null,"sleek"]
[null,null,null,null,null,null,null,null,null,"sleep"]
[null,null,null,null,null,null,null,null,null,"sleet"]
[null,null,null,null,null,null,null,null,null,"slept"]
[null,null,null,null,null,null,null,null,null,"slice"]
[null,null,null,null,null,null,null,null,null,"slick"]
[null,null,null,null,null,null,null,null,null,"slide"]
[null,null,null,null,null,null,null,null,null,"slime"]
[null,null,null,null,null,null,null,null,null,"slimy"]
[null,null,null,null,null,null,null,null,null,"sling"]
[null,null,null,null,null,null,null,null,null,"slink"]
[null,null,null,null,null,null,null,null,null,"sloop"]
[null,null,null,null,null,null,null,null,null,"slope"]
[null,null,null,null,null,null,null,null,null,"slosh"]
[null,null,null,null,null,null,null,null,null,"sloth"]
[null,null,null,null,null,null,null,null,null,"slump"]
[null,null,null,null,null,null,null,null,null,"slung"]
[null,null,null,null,null,null,null,null,null,"slunk"]
[null,null,null,null,null,null,null,null,null,"slurp"]
[null,null,null,null,null,null,null,null,null,"slush"]
[null,null,null,null,null,null,null,null,null,"slyly"]
[null,null,null,null,null,null,null,null,null,"smack"]
[null,null,null,null,null,null,null,null,null,"small"]
[null,null,null,null,null,null,null,null,null,"smart"]
[null,null,null,null,null,null,null,null,null,"smash"]
[null,null,null,null,null,null,null,null,null,"smear"]
[null,null,null,null,null,null,null,null,null,"smell"]
[null,null,null,null,null,null,null,null,null,"smelt"]
[null,null,null,null,null,null,null,null,null,"smile"]
[null,null,null,null,null,null,null,null,null,"smirk"]
[null,null,null,null,null,null,null,null,null,"smite"]
[null,null,null,null,null,null,null,null,null,"smith"]
[null,null,null,null,null,null,null,null,null,"smock"]
[null,null,null,null,null,null,null,null,null,"smoke"]
[null,null,null,null,null,null,null,null,null,"smoky"]
[null,null,null,null,null,null,null,null,null,"smote"]
[null,null,null,null,null,null,null,null,null,"snack"]
[null,null,null,null,null,null,null,null,null,"snail"]
[null,null,null,null,null,null,null,null,null,"snake"]
[null,null,null,null,null,null,null,null,null,"snaky"]
[null,null,null,null,null,null,null,null,null,"snare"]
[null,null,null,null,null,null,null,null,null,"snarl"]
[null,null,null,null,null,null,null,null,null,"sneak"]
[null,null,null,null,null,null,null,null,null,"sneer"]
[null,null,null,null,null,null,null,null,null,"snide"]
[null,null,null,null,null,null,null,null,null,"sniff"]
[null,null,null,null,null,null,null,null,null,"snipe"]
[null,null,null,null,null,null,null,null,null,"snoop"]
[null,null,null,null,null,null,null,null,null,"snore"]
[null,null,null,null,null,null,null,null,null,"snort"]
[null,null,null,null,null,null,null,null,null,"snout"]
[null,null,null,null,null,null,null,null,null,"snowy"]
[null,null,null,null,null,null,null,null,null,"snuck"]
[null,null,null,null,null,null,null,null,null,"snuff"]
[null,null,null,null,null,null,null,null,null,"soapy"]
[null,null,null,null,null,null,null,null,null,"sober"]
[null,null,null,null,null,null,null,null,null,"soggy"]
[null,null,null,null,null,null,null,null,null,"solar"]
[null,null,null,null,null,null,null,null,null,"solid"]
[null,null,null,null,null,null,null,null,null,"solve"]
[null,null,null,null,null,null,null,null,null,"sonar"]
[null,null,null,null,null,null,null,null,null,"sonic"]
[null,null,null,null,null,null,null,null,null,"sooth"]
[null,null,null,null,null,null,null,null,null,"sooty"]
[null,null,null,null,null,null,null,null,null,"sorry"]
[null,null,null,null,null,null,null,null,null,"sound"]
[null,null,null,null,null,null,null,null,null,"south"]
[null,null,null,null,null,null,null,null,null,"sower"]
[null,null,null,null,null,null,null,null,null,"space"]
[null,null,null,null,null,null,null,null,null,"spade"]
[null,null,null,null,null,null,null,null,null,"spank"]
[null,null,null,null,null,null,null,null,null,"spare"]
[null,null,null,null,null,null,null,null,null,"spark"]
[null,null,null,null,null,null,null,null,null,"spasm"]
[null,null,null,null,null,null,null,null,null,"spawn"]
[null,null,null,null,null,null,null,null,null,"speak"]
[null,null,null,null,null,null,null,null,null,"spear"]
[null,null,null,null,null,null,null,null,null,"speck"]
[null,null,null,null,null,null,null,null,null,"speed"]
[null,null,null,null,null,null,null,null,null,"spell"]
[null,null,null,null,null,null,null,null,null,"spelt"]
[null,null,null,null,null,null,null,null,null,"spend"]
[null,null,null,null,null,null,null,null,null,"spent"]
[null,null,null,null,null,null,null,null,null,"sperm"]
[null,null,null,null,null,null,null,null,null,"spice"]
[null,null,null,null,null,null,null,null,null,"spicy"]
[null,null,null,null,null,null,null,null,null,"spied"]
[null,null,null,null,null,null,null,null,null,"spiel"]
[null,null,null,null,null,null,null,null,null,"spike"]
[null,null,null,null,null,null,null,null,null,"spiky"]
[null,null,null,null,null,null,null,null,null,"spill"]
[null,null,null,null,null,null,null,null,null,"spilt"]
[null,null,null,null,null,null,null,null,null,"spine"]
[null,null,null,null,null,null,null,null,null,"spiny"]
[null,null,null,null,null,null,null,null,null,"spire"]
[null,null,null,null,null,null,null,null,null,"spite"]
[null,null,null,null,null,null,null,null,null,"splat"]
[null,null,null,null,null,null,null,null,null,"split"]
[null,null,null,null,null,null,null,null,null,"spoil"]
[null,null,null,null,null,null,null,null,null,"spoke"]
[null,null,null,null,null,null,null,null,null,"spoof"]
[null,null,null,null,null,null,null,null,null,"spook"]
[null,null,null,null,null,null,null,null,null,"spool"]
[null,null,null,null,null,null,null,null,null,"spoon"]
[null,null,null,null,null,null,null,null,null,"spore"]
[null,null,null,null,null,null,null,null,null,"sport"]
[null,null,null,null,null,null,null,null,null,"spout"]
[null,null,null,null,null,null,null,null,null,"spray"]
[null,null,null,null,null,null,null,null,null,"spree"]
[null,null,null,null,null,null,null,null,null,"sprig"]
[null,null,null,null,null,null,null,null,null,"spunk"]
[null,null,null,null,null,null,null,null,null,"spurn"]
[null,null,null,null,null,null,null,null,null,"spurt"]
[null,null,null,null,null,null,null,null,null,"squad"]
[null,null,null,null,null,null,null,null,null,"squat"]
[null,null,null,null,null,null,null,null,null,"squib"]
[null,null,null,null,null,null,null,null,null,"stack"]
[null,null,null,null,null,null,null,null,null,"staff"]
[null,null,null,null,null,null,null,null,null,"stage"]
[null,null,null,null,null,null,null,null,null,"staid"]
[null,null,null,null,null,null,null,null,null,"stain"]
[null,null,null,null,null,null,null,null,null,"stair"]
[null,null,null,null,null,null,null,null,null,"stake"]
[null,null,null,null,null,null,null,null,null,"stale"]
[null,null,null,null,null,null,null,null,null,"stalk"]
[null,null,null,null,null,null,null,null,null,"stall"]
[null,null,null,null,null,null,null,null,null,"stamp"]
[null,null,null,null,null,null,null,null,null,"stand"]
[null,null,null,null,null,null,null,null,null,"stank"]
[null,null,null,null,null,null,null,null,null,"stare"]
[null,null,null,null,null,null,null,null,null,"stark"]
[null,null,null,null,null,null,null,null,null,"start"]
[null,null,null,null,null,null,null,null,null,"stash"]
[null,null,null,null,null,null,null,null,null,"state"]
[null,null,null,null,null,null,null,null,null,"stave"]
[null,null,null,null,null,null,null,null,null,"stead"]
[null,null,null,null,null,null,null,null,null,"steak"]
[null,null,null,null,null,null,null,null,null,"steal"]
[null,null,null,null,null,null,null,null,null,"steam"]
[null,null,null,null,null,null,null,null,null,"steed"]
[null,null,null,null,null,null,null,null,null,"steel"]
[null,null,null,null,null,null,null,null,null,"steep"]
[null,null,null,null,null,null,null,null,null,"steer"]
[null,null,null,null,null,null,null,null,null,"stein"]
[null,null,null,null,null,null,null,null,null,"stern"]
[null,null,null,null,null,null,null,null,null,"stick"]
[null,null,null,null,null,null,null,null,null,"stiff"]
[null,null,null,null,null,null,null,null,null,"still"]
[null,null,null,null,null,null,null,null,null,"stilt"]
[null,null,null,null,null,null,null,null,null,"sting"]
[null,null,null,null,null,null,null,null,null,"stink"]
[null,null,null,null,null,null,null,null,null,"stint"]
[null,null,null,null,null,null,null,null,null,"stock"]
[null,null,null,null,null,null,null,null,null,"stoic"]
[null,null,null,null,null,null,null,null,null,"stoke"]
[null,null,null,null,null,null,null,null,null,"stole"]
[null,null,null,null,null,null,null,null,null,"stomp"]
[null,null,null,null,null,null,null,null,null,"stone"]
[null,null,null,null,null,null,null,null,null,"stony"]
[null,null,null,null,null,null,null,null,null,"stood"]
[null,null,null,null,null,null,null,null,null,"stool"]
[null,null,null,null,null,null,null,null,null,"stoop"]
[null,null,null,null,null,null,null,null,null,"store"]
[null,null,null,null,null,null,null,null,null,"stork"]
[null,null,null,null,null,null,null,null,null,"storm"]
[null,null,null,null,null,null,null,null,null,"story"]
[null,null,null,null,null,null,null,null,null,"stout"]
[null,null,null,null,null,null,null,null,null,"stove"]
[null,null,null,null,null,null,null,null,null,"strap"]
[null,null,null,null,null,null,null,null,null,"straw"]
[null,null,null,null,null,null,null,null,null,"stray"]
[null,null,null,null,null,null,null,null,null,"strip"]
[null,null,null,null,null,null,null,null,null,"strut"]
[null,null,null,null,null,null,null,null,null,"stuck"]
[null,null,null,null,null,null,null,null,null,"study"]
[null,null,null,null,null,null,null,null,null,"stuff"]
[null,null,null,null,null,null,null,null,null,"stump"]
[null,null,null,null,null,null,null,null,null,"stung"]
[null,null,null,null,null,null,null,null,null,"stunk"]
[null,null,null,null,null,null,null,null,null,"stunt"]
[null,null,null,null,null,null,null,null,null,"style"]
[null,null,null,null,null,null,null,null,null,"suave"]
[null,null,null,null,null,null,null,null,null,"sugar"]
[null,null,null,null,null,null,null,null,null,"suing"]
[null,null,null,null,null,null,null,null,null,"suite"]
[null,null,null,null,null,null,null,null,null,"sulky"]
[null,null,null,null,null,null,null,null,null,"sully"]
[null,null,null,null,null,null,null,null,null,"sumac"]
[null,null,null,null,null,null,null,null,null,"sunny"]
[null,null,null,null,null,null,null,null,null,"super"]
[null,null,null,null,null,null,null,null,null,"surer"]
[null,null,null,null,null,null,null,null,null,"surge"]
[null,null,null,null,null,null,null,null,null,"surly"]
[null,null,null,null,null,null,null,null,null,"sushi"]
[null,null,null,null,null,null,null,null,null,"swami"]
[null,null,null,null,null,null,null,null,null,"swamp"]
[null,null,null,null,null,null,null,null,null,"swarm"]
[null,null,null,null,null,null,null,null,null,"swash"]
[null,null,null,null,null,null,null,null,null,"swath"]
[null,null,null,null,null,null,null,null,null,"swear"]
[null,null,null,null,null,null,null,null,null,"sweat"]
[null,null,null,null,null,null,null,null,null,"sweep"]
[null,null,null,null,null,null,null,null,null,"sweet"]
[null,null,null,null,null,null,null,null,null,"swell"]
[null,null,null,null,null,null,null,null,null,"swept"]
[null,null,null,null,null,null,null,null,null,"swift"]
[null,null,null,null,null,null,null,null,null,"swill"]
[null,null,null,null,null,null,null,null,null,"swine"]
[null,null,null,null,null,null,null,null,null,"swing"]
[null,null,null,null,null,null,null,null,null,"swirl"]
[null,null,null,null,null,null,null,null,null,"swish"]
[null,null,null,null,null,null,null,null,null,"swoon"]
[null,null,null,null,null,null,null,null,null,"swoop"]
[null,null,null,null,null,null,null,null,null,"sword"]
[null,null,null,null,null,null,null,null,null,"swore"]
[null,null,null,null,null,null,null,null,null,"sworn"]
[null,null,null,null,null,null,null,null,null,"swung"]
[null,null,null,null,null,null,null,null,null,"synod"]
[null,null,null,null,null,null,null,null,null,"syrup"]
[null,null,null,null,null,null,null,null,null,"tabby"]
[null,null,null,null,null,null,null,null,null,"table"]
[null,null,null,null,null,null,null,null,null,"taboo"]
[null,null,null,null,null,null,null,null,null,"tacit"]
[null,null,null,null,null,null,null,null,null,"tacky"]
[null,null,null,null,null,null,null,null,null,"taffy"]
[null,null,null,null,null,null,null,null,null,"taint"]
[null,null,null,null,null,null,null,null,null,"taken"]
[null,null,null,null,null,null,null,null,null,"taker"]
[null,null,null,null,null,null,null,null,null,"tally"]
[null,null,null,null,null,null,null,null,null,"talon"]
[null,null,null,null,null,null,null,null,null,"tamer"]
[null,null,null,null,null,null,null,null,null,"tango"]
[null,null,null,null,null,null,null,null,null,"tangy"]
[null,null,null,null,null,null,null,null,null,"taper"]
[null,null,null,null,null,null,null,null,null,"tapir"]
[null,null,null,null,null,null,null,null,null,"tardy"]
[null,null,null,null,null,null,null,null,null,"tarot"]
[null,null,null,null,null,null,null,null,null,"taste"]
[null,null,null,null,null,null,null,null,null,"tasty"]
[null,null,null,null,null,null,null,null,null,"tatty"]
[null,null,null,null,null,null,null,null,null,"taunt"]
[null,null,null,null,null,null,null,null,null,"tawny"]
[null,null,null,null,null,null,null,null,null,"teach"]
[null,null,null,null,null,null,null,null,null,"teary"]
[null,null,null,null,null,null,null,null,null,"tease"]
[null,null,null,null,null,null,null,null,null,"teddy"]
[null,null,null,null,null,null,null,null,null,"teeth"]
[null,null,null,null,null,null,null,null,null,"tempo"]
[null,null,null,null,null,null,null,null,null,"tenet"]
[null,null,null,null,null,null,null,null,null,"tenor"]
[null,null,null,null,null,null,null,null,null,"tense"]
[null,null,null,null,null,null,null,null,null,"tenth"]
[null,null,null,null,null,null,null,null,null,"tepee"]
[null,null,null,null,null,null,null,null,null,"tepid"]
[null,null,null,null,null,null,null,null,null,"terra"]
[null,null,null,null,null,null,null,null,null,"terse"]
[null,null,null,null,null,null,null,null,null,"testy"]
[null,null,null,null,null,null,null,null,null,"thank"]
[null,null,null,null,null,null,null,null,null,"theft"]
[null,null,null,null,null,null,null,null,null,"their"]
[null,null,null,null,null,null,null,null,null,"theme"]
[null,null,null,null,null,null,null,null,null,"there"]
[null,null,null,null,null,null,null,null,null,"these"]
[null,null,null,null,null,null,null,null,null,"theta"]
[null,null,null,null,null,null,null,null,null,"thick"]
[null,null,null,null,null,null,null,null,null,"thief"]
[null,null,null,null,null,null,null,null,null,"thigh"]
[null,null,null,null,null,null,null,null,null,"thing"]
[null,null,null,null,null,null,null,null,null,"think"]
[null,null,null,null,null,null,null,null,null,"third"]
[null,null,null,null,null,null,null,null,null,"thong"]
[null,null,null,null,null,null,null,null,null,"thorn"]
[null,null,null,null,null,null,null,null,null,"those"]
[null,null,null,null,null,null,null,null,null,"three"]
[null,null,null,null,null,null,null,null,null,"threw"]
[null,null,null,null,null,null,null,null,null,"throb"]
[null,null,null,null,null,null,null,null,null,"throw"]
[null,null,null,null,null,null,null,null,null,"thrum"]
[null,null,null,null,null,null,null,null,null,"thumb"]
[null,null,null,null,null,null,null,null,null,"thump"]
[null,null,null,null,null,null,null,null,null,"thyme"]
[null,null,null,null,null,null,null,null,null,"tiara"]
[null,null,null,null,null,null,null,null,null,"tibia"]
[null,null,null,null,null,null,null,null,null,"tidal"]
[null,null,null,null,null,null,null,null,null,"tiger"]
[null,null,null,null,null,null,null,null,null,"tight"]
[null,null,null,null,null,null,null,null,null,"tilde"]
[null,null,null,null,null,null,null,null,null,"timer"]
[null,null,null,null,null,null,null,null,null,"timid"]
[null,null,null,null,null,null,null,null,null,"tipsy"]
[null,null,null,null,null,null,null,null,null,"titan"]
[null,null,null,null,null,null,null,null,null,"tithe"]
[null,null,null,null,null,null,null,null,null,"title"]
[null,null,null,null,null,null,null,null,null,"toast"]
[null,null,null,null,null,null,null,null,null,"today"]
[null,null,null,null,null,null,null,null,null,"toddy"]
[null,null,null,null,null,null,null,null,null,"token"]
[null,null,null,null,null,null,null,null,null,"tonal"]
[null,null,null,null,null,null,null,null,null,"tonga"]
[null,null,null,null,null,null,null,null,null,"tonic"]
[null,null,null,null,null,null,null,null,null,"tooth"]
[null,null,null,null,null,null,null,null,null,"topaz"]
[null,null,null,null,null,null,null,null,null,"topic"]
[null,null,null,null,null,null,null,null,null,"torch"]
[null,null,null,null,null,null,null,null,null,"torso"]
[null,null,null,null,null,null,null,null,null,"torus"]
[null,null,null,null,null,null,null,null,null,"total"]
[null,null,null,null,null,null,null,null,null,"totem"]
[null,null,null,null,null,null,null,null,null,"touch"]
[null,null,null,null,null,null,null,null,null,"tough"]
[null,null,null,null,null,null,null,null,null,"towel"]
[null,null,null,null,null,null,null,null,null,"tower"]
[null,null,null,null,null,null,null,null,null,"toxic"]
[null,null,null,null,null,null,null,null,null,"toxin"]
[null,null,null,null,null,null,null,null,null,"trace"]
[null,null,null,null,null,null,null,null,null,"track"]
[null,null,null,null,null,null,null,null,null,"tract"]
[null,null,null,null,null,null,null,null,null,"trade"]
[null,null,null,null,null,null,null,null,null,"trail"]
[null,null,null,null,null,null,null,null,null,"train"]
[null,null,null,null,null,null,null,null,null,"trait"]
[null,null,null,null,null,null,null,null,null,"tramp"]
[null,null,null,null,null,null,null,null,null,"trash"]
[null,null,null,null,null,null,null,null,null,"trawl"]
[null,null,null,null,null,null,null,null,null,"tread"]
[null,null,null,null,null,null,null,null,null,"treat"]
[null,null,null,null,null,null,null,null,null,"trend"]
[null,null,null,null,null,null,null,null,null,"triad"]
[null,null,null,null,null,null,null,null,null,"trial"]
[null,null,null,null,null,null,null,null,null,"tribe"]
[null,null,null,null,null,null,null,null,null,"trice"]
[null,null,null,null,null,null,null,null,null,"trick"]
[null,null,null,null,null,null,null,null,null,"tried"]
[null,null,null,null,null,null,null,null,null,"tripe"]
[null,null,null,null,null,null,null,null,null,"trite"]
[null,null,null,null,null,null,null,null,null,"troll"]
[null,null,null,null,null,null,null,null,null,"troop"]
[null,null,null,null,null,null,null,null,null,"trope"]
[null,null,null,null,null,null,null,null,null,"trout"]
[null,null,null,null,null,null,null,null,null,"trove"]
[null,null,null,null,null,null,null,null,null,"truce"]
[null,null,null,null,null,null,null,null,null,"truck"]
[null,null,null,null,null,null,null,null,null,"truer"]
[null,null,null,null,null,null,null,null,null,"truly"]
[null,null,null,null,null,null,null,null,null,"trump"]
[null,null,null,null,null,null,null,null,null,"trunk"]
[null,null,null,null,null,null,null,null,null,"truss"]
[null,null,null,null,null,null,null,null,null,"trust"]
[null,null,null,null,null,null,null,null,null,"truth"]
[null,null,null,null,null,null,null,null,null,"tryst"]
[null,null,null,null,null,null,null,null,null,"tubal"]
[null,null,null,null,null,null,null,null,null,"tuber"]
[null,null,null,null,null,null,null,null,null,"tulip"]
[null,null,null,null,null,null,null,null,null,"tulle"]
[null,null,null,null,null,null,null,null,null,"tumor"]
[null,null,null,null,null,null,null,null,null,"tunic"]
[null,null,null,null,null,null,null,null,null,"turbo"]
[null,null,null,null,null,null,null,null,null,"tutor"]
[null,null,null,null,null,null,null,null,null,"twang"]
[null,null,null,null,null,null,null,null,null,"tweak"]
[null,null,null,null,null,null,null,null,null,"tweed"]
[null,null,null,null,null,null,null,null,null,"tweet"]
[null,null,null,null,null,null,null,null,null,"twice"]
[null,null,null,null,null,null,null,null,null,"twine"]
[null,null,null,null,null,null,null,null,null,"twirl"]
[null,null,null,null,null,null,null,null,null,"twist"]
[null,null,null,null,null,null,null,null,null,"twixt"]
[null,null,null,null,null,null,null,null,null,"tying"]
[null,null,null,null,null,null,null,null,null,"udder"]
[null,null,null,null,null,null,null,null,null,"ulcer"]
[null,null,null,null,null,null,null,null,null,"ultra"]
[null,null,null,null,null,null,null,null,null,"umbra"]
[null,null,null,null,null,null,null,null,null,"uncle"]
[null,null,null,null,null,null,null,null,null,"uncut"]
[null,null,null,null,null,null,null,null,null,"under"]
[null,null,null,null,null,null,null,null,null,"undid"]
[null,null,null,null,null,null,null,null,null,"undue"]
[null,null,null,null,null,null,null,null,null,"unfed"]
[null,null,null,null,null,null,null,null,null,"unfit"]
[null,null,null,null,null,null,null,null,null,"unify"]
[null,null,null,null,null,null,null,null,null,"union"]
[null,null,null,null,null,null,null,null,null,"unite"]
[null,null,null,null,null,null,null,null,null,"unity"]
[null,null,null,null,null,null,null,null,null,"unlit"]
[null,null,null,null,null,null,null,null,null,"unmet"]
[null,null,null,null,null,null,null,null,null,"unset"]
[null,null,null,null,null,null,null,null,null,"untie"]
[null,null,null,null,null,null,null,null,null,"until"]
[null,null,null,null,null,null,null,null,null,"unwed"]
[null,null,null,null,null,null,null,null,null,"unzip"]
[null,null,null,null,null,null,null,null,null,"upper"]
[null,null,null,null,null,null,null,null,null,"upset"]
[null,null,null,null,null,null,null,null,null,"urban"]
[null,null,null,null,null,null,null,null,null,"urine"]
[null,null,null,null,null,null,null,null,null,"usage"]
[null,null,null,null,null,null,null,null,null,"usher"]
[null,null,null,null,null,null,null,null,null,"using"]
[null,null,null,null,null,null,null,null,null,"usual"]
[null,null,null,null,null,null,null,null,null,"usurp"]
[null,null,null,null,null,null,null,null,null,"utile"]
[null,null,null,null,null,null,null,null,null,"utter"]
[null,null,null,null,null,null,null,null,null,"vague"]
[null,null,null,null,null,null,null,null,null,"valet"]
[null,null,null,null,null,null,null,null,null,"valid"]
[null,null,null,null,null,null,null,null,null,"valor"]
[null,null,null,null,null,null,null,null,null,"value"]
[null,null,null,null,null,null,null,null,null,"valve"]
[null,null,null,null,null,null,null,null,null,"vapid"]
[null,null,null,null,null,null,null,null,null,"vapor"]
[null,null,null,null,null,null,null,null,null,"vault"]
[null,null,null,null,null,null,null,null,null,"vaunt"]
[null,null,null,null,null,null,null,null,null,"vegan"]
[null,null,null,null,null,null,null,null,null,"venom"]
[null,null,null,null,null,null,null,null,null,"venue"]
[null,null,null,null,null,null,null,null,null,"verge"]
[null,null,null,null,null,null,null,null,null,"verse"]
[null,null,null,null,null,null,null,null,null,"verso"]
[null,null,null,null,null,null,null,null,null,"verve"]
[null,null,null,null,null,null,null,null,null,"vicar"]
[null,null,null,null,null,null,null,null,null,"video"]
[null,null,null,null,null,null,null,null,null,"vigil"]
[null,null,null,null,null,null,null,null,null,"vigor"]
[null,null,null,null,null,null,null,null,null,"villa"]
[null,null,null,null,null,null,null,null,null,"vinyl"]
[null,null,null,null,null,null,null,null,null,"viola"]
[null,null,null,null,null,null,null,null,null,"viper"]
[null,null,null,null,null,null,null,null,null,"viral"]
[null,null,null,null,null,null,null,null,null,"virus"]
[null,null,null,null,null,null,null,null,null,"visit"]
[null,null,null,null,null,null,null,null,null,"visor"]
[null,null,null,null,null,null,null,null,null,"vista"]
[null,null,null,null,null,null,null,null,null,"vital"]
[null,null,null,null,null,null,null,null,null,"vivid"]
[null,null,null,null,null,null,null,null,null,"vixen"]
[null,null,null,null,null,null,null,null,null,"vocal"]
[null,null,null,null,null,null,null,null,null,"vodka"]
[null,null,null,null,null,null,null,null,null,"vogue"]
[null,null,null,null,null,null,null,null,null,"voice"]
[null,null,null,null,null,null,null,null,null,"voila"]
[null,null,null,null,null,null,null,null,null,"vomit"]
[null,null,null,null,null,null,null,null,null,"voter"]
[null,null,null,null,null,null,null,null,null,"vouch"]
[null,null,null,null,null,null,null,null,null,"vowel"]
[null,null,null,null,null,null,null,null,null,"vying"]
[null,null,null,null,null,null,null,null,null,"wacky"]
[null,null,null,null,null,null,null,null,null,"wafer"]
[null,null,null,null,null,null,null,null,null,"wager"]
[null,null,null,null,null,null,null,null,null,"wagon"]
[null,null,null,null,null,null,null,null,null,"waist"]
[null,null,null,null,null,null,null,null,null,"waive"]
[null,null,null,null,null,null,null,null,null,"waltz"]
[null,null,null,null,null,null,null,null,null,"warty"]
[null,null,null,null,null,null,null,null,null,"waste"]
[null,null,null,null,null,null,null,null,null,"watch"]
[null,null,null,null,null,null,null,null,null,"water"]
[null,null,null,null,null,null,null,null,null,"waver"]
[null,null,null,null,null,null,null,null,null,"waxen"]
[null,null,null,null,null,null,null,null,null,"weary"]
[null,null,null,null,null,null,null,null,null,"weave"]
[null,null,null,null,null,null,null,null,null,"wedge"]
[null,null,null,null,null,null,null,null,null,"weedy"]
[null,null,null,null,null,null,null,null,null,"weigh"]
[null,null,null,null,null,null,null,null,null,"weird"]
[null,null,null,null,null,null,null,null,null,"welch"]
[null,null,null,null,null,null,null,null,null,"welsh"]
[null,null,null,null,null,null,null,null,null,"whack"]
[null,null,null,null,null,null,null,null,null,"whale"]
[null,null,null,null,null,null,null,null,null,"wharf"]
[null,null,null,null,null,null,null,null,null,"wheat"]
[null,null,null,null,null,null,null,null,null,"wheel"]
[null,null,null,null,null,null,null,null,null,"whelp"]
[null,null,null,null,null,null,null,null,null,"where"]
[null,null,null,null,null,null,null,null,null,"which"]
[null,null,null,null,null,null,null,null,null,"whiff"]
[null,null,null,null,null,null,null,null,null,"while"]
[null,null,null,null,null,null,null,null,null,"whine"]
[null,null,null,null,null,null,null,null,null,"whiny"]
[null,null,null,null,null,null,null,null,null,"whirl"]
[null,null,null,null,null,null,null,null,null,"whisk"]
[null,null,null,null,null,null,null,null,null,"white"]
[null,null,null,null,null,null,null,null,null,"whole"]
[null,null,null,null,null,null,null,null,null,"whoop"]
[null,null,null,null,null,null,null,null,null,"whose"]
[null,null,null,null,null,null,null,null,null,"widen"]
[null,null,null,null,null,null,null,null,null,"wider"]
[null,null,null,null,null,null,null,null,null,"widow"]
[null,null,null,null,null,null,null,null,null,"width"]
[null,null,null,null,null,null,null,null,null,"wield"]
[null,null,null,null,null,null,null,null,null,"wight"]
[null,null,null,null,null,null,null,null,null,"willy"]
[null,null,null,null,null,null,null,null,null,"wimpy"]
[null,null,null,null,null,null,null,null,null,"wince"]
[null,null,null,null,null,null,null,null,null,"winch"]
[null,null,null,null,null,null,null,null,null,"windy"]
[null,null,null,null,null,null,null,null,null,"wiser"]
[null,null,null,null,null,null,null,null,null,"wispy"]
[null,null,null,null,null,null,null,null,null,"witch"]
[null,null,null,null,null,null,null,null,null,"witty"]
[null,null,null,null,null,null,null,null,null,"woken"]
[null,null,null,null,null,null,null,null,null,"woman"]
[null,null,null,null,null,null,null,null,null,"women"]
[null,null,null,null,null,null,null,null,null,"woody"]
[null,null,null,null,null,null,null,null,null,"wooer"]
[null,null,null,null,null,null,null,null,null,"wooly"]
[null,null,null,null,null,null,null,null,null,"woozy"]
[null,null,null,null,null,null,null,null,null,"wordy"]
[null,null,null,null,null,null,null,null,null,"world"]
[null,null,null,null,null,null,null,null,null,"worry"]
[null,null,null,null,null,null,null,null,null,"worse"]
[null,null,null,null,null,null,null,null,null,"worst"]
[null,null,null,null,null,null,null,null,null,"worth"]
[null,null,null,null,null,null,null,null,null,"would"]
[null,null,null,null,null,null,null,null,null,"wound"]
[null,null,null,null,null,null,null,null,null,"woven"]
[null,null,null,null,null,null,null,null,null,"wrack"]
[null,null,null,null,null,null,null,null,null,"wrath"]
[null,null,null,null,null,null,null,null,null,"wreak"]
[null,null,null,null,null,null,null,null,null,"wreck"]
[null,null,null,null,null,null,null,null,null,"wrest"]
[null,null,null,null,null,null,null,null,null,"wring"]
[null,null,null,null,null,null,null,null,null,"wrist"]
[null,null,null,null,null,null,null,null,null,"write"]
[null,null,null,null,null,null,null,null,null,"wrong"]
[null,null,null,null,null,null,null,null,null,"wrote"]
[null,null,null,null,null,null,null,null,null,"wrung"]
[null,null,null,null,null,null,null,null,null,"wryly"]
[null,null,null,null,null,null,null,null,null,"yacht"]
[null,null,null,null,null,null,null,null,null,"yearn"]
[null,null,null,null,null,null,null,null,null,"yeast"]
[null,null,null,null,null,null,null,null,null,"yield"]
[null,null,null,null,null,null,null,null,null,"young"]
[null,null,null,null,null,null,null,null,null,"youth"]
[null,null,null,null,null,null,null,null,null,"zebra"]
[null,null,null,null,null,null,null,null,null,"zesty"]
[null,null,null,null,null,null,null,null,null,"zonal"]

{"sheet":"Home","index":3,"n_rows":0,"n_cols":0,"rows_kept":0,"cut":false,"hidden":false,"merged":[]}